DIRECTORATE,SECTION,DIVISON,VENDOR_NAME,VENDOR_SITE_ID,PAYMENT_DATE,VOUCHER_NO,AMOUNT,IRRECOVERABLE VATE,PURPOSE_OF_SPEND,PROCUREMENT_CLASSIFICATION
Children and Young People,Capital,Capital,A AND S ENTERPRISES LTD,187826,01/08/2019,3293046,"4,982.33",0.00,N/A,N/A
"Environmental Protection, Licensing, Housing",Environmental Protection,"Communities, Environment & Regulatory Services",A W LYMN,132,01/08/2019,3271544,"1,200.00",0.00,Communities & Place,Default
"Environmental Protection, Licensing, Housing",Environmental Protection,"Communities, Environment & Regulatory Services",A W LYMN,132,01/08/2019,3280256,"1,200.00",0.00,Communities & Place,Default
"Environmental Protection, Licensing, Housing",Environmental Protection,"Communities, Environment & Regulatory Services",A W LYMN,132,01/08/2019,3280256,"1,200.00",0.00,Communities & Place,Default
Integrated Services,Agency Placements,Non-Schools,ACORN FOSTERING SERVICES LTD,188,01/08/2019,3292209,"3,964.29",0.00,People Services - Children & Young People,Politics and Civic Affairs Services
Integrated Services,Agency Placements,Non-Schools,ACORN FOSTERING SERVICES LTD,188,01/08/2019,3292217,"4,227.67",0.00,People Services - Children & Young People,Politics and Civic Affairs Services
Highways & Engineering,Highways Maintenance & Street Lighting,"Strategic Partnerships, Planning & Streetpride",AGGREGATE INDUSTRIES UK LTD,117850,01/08/2019,3293102,878.06,0.00,Communities & Place,Building and Construction Machinery and
Highways & Engineering,Highways Maintenance & Street Lighting,"Strategic Partnerships, Planning & Streetpride",AGGREGATE INDUSTRIES UK LTD,117850,01/08/2019,3293104,976.84,0.00,Communities & Place,Building and Construction Machinery and
Integrated Services,Agency Placements,Non-Schools,ALLIANCE FOSTER CARE,265,01/08/2019,3292180,"3,381.30",0.00,People Services - Children & Young People,Politics and Civic Affairs Services
Integrated Services,Agency Placements,Non-Schools,ALLIANCE FOSTER CARE,265,01/08/2019,3292198,"3,875.29",0.00,People Services - Children & Young People,Politics and Civic Affairs Services
Highways & Engineering,Highways Maintenance & Street Lighting,"Strategic Partnerships, Planning & Streetpride",ANTHONY COLLINS SOLICITORS,65,01/08/2019,3292454,"5,411.40",0.00,N/A,N/A
Food & Safety & Trading Standards,Trading Standards,"Communities, Environment & Regulatory Services",ANTHONY COLLINS SOLICITORS,65,01/08/2019,3292527,"1,547.50",0.00,N/A,N/A
Neighbourhoods,Capital,Capital,AQUA JET,187848,01/08/2019,3293019,"1,900.00",0.00,N/A,N/A
Non Delegated Schools Budget,Non Delegated School Expenditure,Schools Block,ASPIRE MULTI ACADEMY TRUST,1059479,01/08/2019,3292379,"1,785.00",0.00,N/A,N/A
Non Delegated Schools Budget,Non Delegated School Expenditure,Schools Block,ASPIRE MULTI ACADEMY TRUST,1059479,01/08/2019,3292380,720.00,0.00,N/A,N/A
Facilities Management,Accommodation Buildings,Strategic Services and Organisational Development,ATLAS CONTRACTORS LTD,626,01/08/2019,3292471,516.00,0.00,N/A,N/A
Facilities Management,Cleaning & Caretaking,Strategic Services and Organisational Development,ATLAS CONTRACTORS LTD,626,01/08/2019,3292472,"4,077.50",0.00,N/A,N/A
Community Safety and Integration,Partnerships,"Communities, Environment & Regulatory Services",ATLAS ENFORCEMENT LTD,904472,01/08/2019,3292931,"2,272.00",0.00,N/A,N/A
Community Safety and Integration,Partnerships,"Communities, Environment & Regulatory Services",ATLAS ENFORCEMENT LTD,904472,01/08/2019,3292932,"2,240.00",0.00,N/A,N/A
Community Safety and Integration,Partnerships,"Communities, Environment & Regulatory Services",ATLAS ENFORCEMENT LTD,904472,01/08/2019,3292933,"2,176.00",0.00,N/A,N/A
Community Safety and Integration,Partnerships,"Communities, Environment & Regulatory Services",ATLAS ENFORCEMENT LTD,904472,01/08/2019,3292934,"2,176.00",0.00,N/A,N/A
Community Safety and Integration,Partnerships,"Communities, Environment & Regulatory Services",ATLAS ENFORCEMENT LTD,904472,01/08/2019,3292934,"1,280.00",0.00,N/A,N/A
Community Safety and Integration,Partnerships,"Communities, Environment & Regulatory Services",ATLAS ENFORCEMENT LTD,904472,01/08/2019,3292935,"2,240.00",0.00,N/A,N/A
Community Safety and Integration,Partnerships,"Communities, Environment & Regulatory Services",ATLAS ENFORCEMENT LTD,904472,01/08/2019,3292937,"1,728.00",0.00,N/A,N/A
Culture & Business Development,Culture & Business Development,"Leisure, Culture and Tourism",ATLAS UK LIMITED,1084469,01/08/2019,3270458,"1,800.00",0.00,N/A,N/A
Integrated Services,Agency Placements,Non-Schools,BARNARDOS,941506,01/08/2019,3289147,"3,291.77",0.00,N/A,N/A
Learning Disability Support,Transitions and Ordinary Lives - Learning Disability Support,Transitions and Ordinary Lives,BRIARS BARN LTD,469450,01/08/2019,3292541,612.00,0.00,N/A,N/A
Non Delegated Schools Budget,Non Delegated School Expenditure,Schools Block,BROOKE WESTERN TRUST,1059475,01/08/2019,3290652,"1,580.00",0.00,N/A,N/A
"Information, Computing & Technology","Information, Computing & Technology",Digital Services,BT PLC,1025473,01/08/2019,3292484,"1,896.42",0.00,N/A,N/A
Integrated Services,Agency Placements,Non-Schools,BY THE BRIDGE LTD,577451,01/08/2019,3292210,"3,740.19",0.00,N/A,N/A
Integrated Services,Agency Placements,Non-Schools,BY THE BRIDGE LTD,577451,01/08/2019,3292212,"3,740.19",0.00,N/A,N/A
Integrated Services,Agency Placements,Non-Schools,BY THE BRIDGE LTD,577451,01/08/2019,3292214,"4,065.43",0.00,N/A,N/A
Integrated Services,Agency Placements,Non-Schools,BY THE BRIDGE LTD,577451,01/08/2019,3292215,"3,740.19",0.00,N/A,N/A
Integrated Services,Agency Placements,Non-Schools,BY THE BRIDGE LTD,577451,01/08/2019,3292241,"4,028.57",0.00,N/A,N/A
Integrated Services,Agency Placements,Non-Schools,BY THE BRIDGE LTD,577451,01/08/2019,3292243,"3,625.71",0.00,N/A,N/A
Integrated Services,Agency Placements,Non-Schools,BY THE BRIDGE LTD,577451,01/08/2019,3292246,"4,153.41",0.00,N/A,N/A
Integrated Services,Agency Placements,Non-Schools,BY THE BRIDGE LTD,577451,01/08/2019,3292247,"3,740.19",0.00,N/A,N/A
Integrated Services,Agency Placements,Non-Schools,BY THE BRIDGE LTD,577451,01/08/2019,3292248,"5,978.57",0.00,N/A,N/A
Integrated Services,Agency Placements,Non-Schools,BY THE BRIDGE LTD,577451,01/08/2019,3292249,"3,740.19",0.00,N/A,N/A
Integrated Services,Agency Placements,Non-Schools,BY THE BRIDGE LTD,577451,01/08/2019,3292250,"3,634.71",0.00,N/A,N/A
Integrated Services,Agency Placements,Non-Schools,BY THE BRIDGE LTD,577451,01/08/2019,3292251,"3,943.46",0.00,N/A,N/A
Integrated Services,Agency Placements,Non-Schools,BY THE BRIDGE LTD,577451,01/08/2019,3292252,"4,281.86",0.00,N/A,N/A
Integrated Services,Agency Placements,Non-Schools,BY THE BRIDGE LTD,577451,01/08/2019,3292262,"3,740.19",0.00,N/A,N/A
Integrated Services,Agency Placements,Non-Schools,CALDECOTT FOSTERING LTD,216392,01/08/2019,3292211,"5,142.90",0.00,People Services - Children & Young People,Politics and Civic Affairs Services
Integrated Services,Agency Placements,Non-Schools,CALDECOTT FOSTERING LTD,216392,01/08/2019,3292213,"4,285.80",0.00,People Services - Children & Young People,Politics and Civic Affairs Services
Integrated Services,Agency Placements,Non-Schools,CAPSTONE FOSTER CARE,125689,01/08/2019,3292190,"3,479.40",0.00,People Services - Children & Young People,Politics and Civic Affairs Services
Integrated Services,Agency Placements,Non-Schools,CAPSTONE FOSTER CARE,125689,01/08/2019,3292195,"3,318.00",0.00,People Services - Children & Young People,Politics and Civic Affairs Services
Integrated Services,Agency Placements,Non-Schools,CAPSTONE FOSTER CARE,125689,01/08/2019,3292197,"3,421.63",0.00,People Services - Children & Young People,Politics and Civic Affairs Services
Integrated Services,Agency Placements,Non-Schools,CAPSTONE FOSTER CARE,125689,01/08/2019,3292199,"3,186.60",0.00,People Services - Children & Young People,Politics and Civic Affairs Services
Integrated Services,Agency Placements,Non-Schools,CAPSTONE FOSTER CARE,125689,01/08/2019,3292200,"3,229.52",0.00,People Services - Children & Young People,Politics and Civic Affairs Services
Early Help & Children�s Safeguarding,Integrated and Safeguarding Services Locality 2,Non-Schools,CARTER BROWN THE EXPERT SERVICE LTD,1112487,01/08/2019,3292828,"4,558.45",0.00,N/A,N/A
Social Care Activities,Home First - Social Care Activities,Home First,CDW LTD,465403,01/08/2019,3267875,608.00,0.00,People Services - Adults and Health,Information Technology Broadcasting and
Social Care Activities,Home First - Social Care Activities,Home First,CDW LTD,465403,01/08/2019,3267875,912.00,0.00,People Services - Adults and Health,Information Technology Broadcasting and
"Information, Computing & Technology","Information, Computing & Technology",Digital Services,CDW LTD,465403,01/08/2019,3263760,"2,474.10",0.00,Organisation & Governance,Information Technology Broadcasting and
Legal Services,Legal Services,Governance and Assurance,CDW LTD,465403,01/08/2019,3270457,760.00,0.00,Organisation & Governance,Information Technology Broadcasting and
Integrated Services,Agency Placements,Non-Schools,CHILDCARE BUREAU LTD,889473,01/08/2019,3292177,"3,359.01",0.00,N/A,N/A
Integrated Services,Agency Placements,Non-Schools,CHILDCARE BUREAU LTD,889473,01/08/2019,3292193,"3,318.26",0.00,N/A,N/A
Integrated Services,Agency Placements,Non-Schools,CHRYSALIS CONSORTIUM,178378,01/08/2019,3292216,"5,142.90",0.00,People Services - Children & Young People,Politics and Civic Affairs Services
Integrated Services,Agency Placements,Non-Schools,CHRYSALIS CONSORTIUM,178378,01/08/2019,3292219,"5,142.90",0.00,People Services - Children & Young People,Politics and Civic Affairs Services
Early Help & Children�s Safeguarding,Integrated Services Locality 2,Non-Schools,CHUBB FIRE AND SECURITY LTD,941485,01/08/2019,3267298,828.00,0.00,N/A,N/A
Integrated Services,Agency Placements,Non-Schools,COMPASS FOSTERING CENTRAL LTD,194367,01/08/2019,3289186,"2,915.66",0.00,People Services - Children & Young People,Politics and Civic Affairs Services
Integrated Services,Agency Placements,Non-Schools,COMPASS FOSTERING CENTRAL LTD,194367,01/08/2019,3289106,"2,622.60",0.00,People Services - Children & Young People,Politics and Civic Affairs Services
Integrated Services,Agency Placements,Non-Schools,COMPASS FOSTERING CENTRAL LTD,194367,01/08/2019,3289107,"4,808.40",0.00,People Services - Children & Young People,Politics and Civic Affairs Services
Integrated Services,Agency Placements,Non-Schools,COMPASS FOSTERING CENTRAL LTD,194367,01/08/2019,3292260,"3,060.00",0.00,People Services - Children & Young People,Politics and Civic Affairs Services
Integrated Services,Agency Placements,Non-Schools,COMPASS FOSTERING CENTRAL LTD,194367,01/08/2019,3292260,"2,815.20",0.00,People Services - Children & Young People,Politics and Civic Affairs Services
Integrated Services,Agency Placements,Non-Schools,COMPASS FOSTERING CENTRAL LTD,194367,01/08/2019,3292264,"3,042.43",0.00,People Services - Children & Young People,Politics and Civic Affairs Services
Integrated Services,Agency Placements,Non-Schools,CREDO CARE LTD,122993,01/08/2019,3289197,"6,306.00",0.00,People Services - Children & Young People,Politics and Civic Affairs Services
Integrated Services,Agency Placements,Non-Schools,CREDO CARE LTD,122993,01/08/2019,3289197,"5,824.00",0.00,People Services - Children & Young People,Politics and Civic Affairs Services
"Environmental Protection, Licensing, Housing",Environmental Protection,"Communities, Environment & Regulatory Services",CROWFOOT KENNELS LTD,134352,01/08/2019,3292952,"4,470.00",0.00,Communities & Place,Farming Fishing Forestry and Wildlife Co
General,Stores Road Depot & Fleet Management,"Strategic Partnerships, Planning & Streetpride",CTS HIRE,1026468,01/08/2019,3293116,"3,976.83",0.00,N/A,N/A
General,Stores Road Depot & Fleet Management,"Strategic Partnerships, Planning & Streetpride",CTS HIRE,1026468,01/08/2019,3293127,"2,575.95",0.00,N/A,N/A
Commissioning,School Organisation & Provision,Non-Schools,DA VINCI ACADEMY,696442,01/08/2019,3292970,"2,220.26",0.00,N/A,N/A
Retained Housing Revenue Account,Retained Housing Revenue Account,"Regeneration, Property & Housing",DERBY CITY COUNCIL C/TAX,1036478,01/08/2019,3292490,"1,460.69",0.00,N/A,N/A
Learning & Inclusion - Schools Block,Learning & Inclusion - Schools Block,Schools Block,DERBY PRIDE ACADEMY,144370,01/08/2019,3293169,840.00,0.00,N/A,N/A
Corporate,Corporate Resources Other,Corporate,DERBYSHIRE COUNTY COUNCIL,1042479,01/08/2019,3282510,"325,189.40",0.00,N/A,N/A
Non Delegated Schools Budget,Non Delegated School Expenditure,Schools Block,DERBYSHIRE COUNTY COUNCIL,9786,01/08/2019,3292365,945.00,0.00,People Services - Children & Young People,Politics and Civic Affairs Services
Commissioning - Schools Block,Recoupment - Independent Special School Fees,Schools Block,DERBYSHIRE COUNTY COUNCIL,1042479,01/08/2019,3287791,"87,748.39",0.00,N/A,N/A
Traffic & Transportation,Traffic & Transportation (inc Integrated Pass Transport),"Strategic Partnerships, Planning & Streetpride",DERBYSHIRE COUNTY COUNCIL,9786,01/08/2019,3272150,"30,000.00",0.00,Communities & Place,Politics and Civic Affairs Services
Public Health,Drugs and Alcohol,Public Health,DERBYSHIRE HEALTHCARE NHS FOUNDATION TRUST,107468,01/08/2019,3292668,"12,905.53",0.00,People Services - Adults and Health,Healthcare Services
Leisure,Leisure,"Leisure, Culture and Tourism",DISC GOLF UK LTD,1052468,01/08/2019,3292925,"2,421.00",0.00,N/A,N/A
Leisure,Leisure,"Leisure, Culture and Tourism",DISC GOLF UK LTD,1052468,01/08/2019,3292925,550.00,0.00,N/A,N/A
Early Help & Children�s Safeguarding,Integrated and Safeguarding Services Locality 3/4,Non-Schools,DMR SERVICES,235403,01/08/2019,3292848,825.00,0.00,People Services - Children & Young People,Healthcare Services
Culture & Business Development,Culture & Business Development,"Leisure, Culture and Tourism",EDEN FARM LTD,238423,01/08/2019,3292448,553.63,0.00,Communities & Place,Food Beverage and Tobacco Products
Grounds Maintenance & Cleansing,Grounds Maintenance,"Strategic Partnerships, Planning & Streetpride",EMERY LANDSCAPES LTD,16115,01/08/2019,3292444,"1,260.00",0.00,Communities & Place,Environmental Services
Integrated Services,Agency Placements,Non-Schools,FIVE RIVERS CHILDCARE LTD,125027,01/08/2019,3289127,"6,642.86",0.00,People Services - Children & Young People,Politics and Civic Affairs Services
Integrated Services,Agency Placements,Non-Schools,FOSTERING PEOPLE LTD,8384,01/08/2019,3239277,"8,204.70",0.00,People Services - Children & Young People,Politics and Civic Affairs Services
Integrated Services,Agency Placements,Non-Schools,FOSTERING PEOPLE LTD,8384,01/08/2019,3239277,"3,205.09",0.00,People Services - Children & Young People,Politics and Civic Affairs Services
Integrated Services,Agency Placements,Non-Schools,FOSTERING PEOPLE LTD,8384,01/08/2019,3289067,"3,843.60",0.00,People Services - Children & Young People,Politics and Civic Affairs Services
Integrated Services,Agency Placements,Non-Schools,FOSTERING PEOPLE LTD,8384,01/08/2019,3289072,"3,101.70",0.00,People Services - Children & Young People,Politics and Civic Affairs Services
Integrated Services,Agency Placements,Non-Schools,FOSTERING PEOPLE LTD,8384,01/08/2019,3289092,"3,101.70",0.00,People Services - Children & Young People,Politics and Civic Affairs Services
Integrated Services,Agency Placements,Non-Schools,FOSTERING PEOPLE LTD,8384,01/08/2019,3289095,"2,997.00",0.00,People Services - Children & Young People,Politics and Civic Affairs Services
Integrated Services,Agency Placements,Non-Schools,FOSTERING PEOPLE LTD,8384,01/08/2019,3289102,"3,266.34",0.00,People Services - Children & Young People,Politics and Civic Affairs Services
Integrated Services,Agency Placements,Non-Schools,FOSTERING PEOPLE LTD,8384,01/08/2019,3289199,"2,584.75",0.00,People Services - Children & Young People,Politics and Civic Affairs Services
Integrated Services,Agency Placements,Non-Schools,FOSTERING SOLUTIONS LTD,123940,01/08/2019,3292220,"2,719.17",0.00,People Services - Children & Young People,Politics and Civic Affairs Services
Integrated Services,Agency Placements,Non-Schools,FOSTERING SOLUTIONS LTD,123940,01/08/2019,3292222,"3,216.51",0.00,People Services - Children & Young People,Politics and Civic Affairs Services
Integrated Services,Agency Placements,Non-Schools,FOSTERING SOLUTIONS LTD,123940,01/08/2019,3292223,"3,216.51",0.00,People Services - Children & Young People,Politics and Civic Affairs Services
Property Design & Maintenance,Building - Repairs & Maintenance,"Regeneration, Property & Housing",G2V RECRUITMENT GROUP LIMITED,886475,01/08/2019,3293027,"1,480.00",0.00,N/A,N/A
Property Design & Maintenance,Building - Repairs & Maintenance,"Regeneration, Property & Housing",G2V RECRUITMENT GROUP LIMITED,886475,01/08/2019,3293066,640.00,0.00,N/A,N/A
Property Design & Maintenance,Building - Repairs & Maintenance,"Regeneration, Property & Housing",G2V RECRUITMENT GROUP LIMITED,886475,01/08/2019,3293067,"1,480.00",0.00,N/A,N/A
Property Design & Maintenance,Building - Repairs & Maintenance,"Regeneration, Property & Housing",G2V RECRUITMENT GROUP LIMITED,886475,01/08/2019,3293036,"1,480.00",0.00,N/A,N/A
Non Delegated Schools Budget,Non Delegated School Expenditure,Schools Block,GREATER NOTTINGHAM EDUCATION TRUST,1033476,01/08/2019,3292366,625.00,0.00,N/A,N/A
Early Help & Children�s Safeguarding,Integrated and Safeguarding Services Locality 3/4,Non-Schools,GREEN GABLES,476406,01/08/2019,3292486,665.00,0.00,N/A,N/A
Early Help & Children�s Safeguarding,Integrated and Safeguarding Services Locality 3/4,Non-Schools,GREEN GABLES,476406,01/08/2019,3292487,665.00,0.00,N/A,N/A
Highways & Engineering,Highways Maintenance & Street Lighting,"Strategic Partnerships, Planning & Streetpride",GTM GO TRAFFIC MANAGEMENT,200402,01/08/2019,3292773,"1,177.50",0.00,Communities & Place,Defense and Law Enforcement and Security
Highways & Engineering,Highways Maintenance & Street Lighting,"Strategic Partnerships, Planning & Streetpride",GTM GO TRAFFIC MANAGEMENT,200402,01/08/2019,3292776,532.50,0.00,Communities & Place,Defense and Law Enforcement and Security
Property Design & Maintenance,Building - Repairs & Maintenance,"Regeneration, Property & Housing",HAYS SPECIALIST RECRUITMENT LTD,188508,01/08/2019,3293062,"4,937.61",0.00,N/A,N/A
Non Delegated Schools Budget,Non Delegated School Expenditure,Schools Block,HEATON ST BARNABAS C OF E PRIMARY SCHOOL,1098471,01/08/2019,3290649,"1,387.00",0.00,N/A,N/A
HR Casework,Human Resources,Governance and Assurance,HEMMING GROUP LTD,936490,01/08/2019,3292160,"3,362.50",0.00,N/A,N/A
HR Casework,Human Resources,Governance and Assurance,HEMMING GROUP LTD,936490,01/08/2019,3292185,"4,650.00",0.00,N/A,N/A
Early Help & Children�s Safeguarding,Integrated Services Locality 3/4,Non-Schools,HILBROKE HOUSE LTD,1002472,01/08/2019,3292509,525.00,0.00,N/A,N/A
Early Help & Children�s Safeguarding,Integrated Services Locality 3/4,Non-Schools,HILBROKE HOUSE LTD,1002472,01/08/2019,3292511,525.00,0.00,N/A,N/A
Strategic Housing,Housing and Advice,"Regeneration, Property & Housing",HOUSING TRAINING & CONSULTANCY LTD,118031,01/08/2019,3292528,"1,000.00",0.00,Communities & Place,Education and Training Services
Neighbourhoods,Capital,Capital,IDVERDE LIMITED,1016502,01/08/2019,3282086,"83,754.74",0.00,N/A,N/A
Planning,Climate Change and Environment,"Strategic Partnerships, Planning & Streetpride",INSIGHT DIRECT UK LTD,2323,01/08/2019,3262706,668.48,0.00,Communities & Place,Information Technology Broadcasting and
Traffic & Transportation,Traffic & Transportation (inc Integrated Pass Transport),"Strategic Partnerships, Planning & Streetpride",INSIGHT DIRECT UK LTD,2323,01/08/2019,3262709,"1,003.43",0.00,Communities & Place,Information Technology Broadcasting and
"Information, Computing & Technology","Information, Computing & Technology",Digital Services,INTERTEK NTA,982470,01/08/2019,3292462,"1,062.50",0.00,N/A,N/A
Integrated Services,Agency Placements,Non-Schools,ISP CENTRAL OFFICE,502422,01/08/2019,3292179,"5,567.10",0.00,N/A,N/A
Integrated Services,Agency Placements,Non-Schools,ISP CENTRAL OFFICE,502422,01/08/2019,3292181,"5,567.10",0.00,N/A,N/A
Integrated Services,Agency Placements,Non-Schools,ISP CENTRAL OFFICE,502422,01/08/2019,3292183,"5,567.10",0.00,N/A,N/A
Integrated Services,Agency Placements,Non-Schools,ISP CENTRAL OFFICE,502422,01/08/2019,3292184,"5,567.10",0.00,N/A,N/A
Integrated Services,Agency Placements,Non-Schools,ISP CENTRAL OFFICE,502422,01/08/2019,3292186,"5,567.10",0.00,N/A,N/A
Integrated Services,Agency Placements,Non-Schools,ISP CENTRAL OFFICE,502422,01/08/2019,3292187,"5,567.10",0.00,N/A,N/A
Integrated Services,Agency Placements,Non-Schools,ISP CENTRAL OFFICE,502422,01/08/2019,3292188,"5,567.10",0.00,N/A,N/A
Integrated Services,Agency Placements,Non-Schools,ISP CENTRAL OFFICE,502422,01/08/2019,3292189,"5,567.10",0.00,N/A,N/A
Integrated Services,Children's Quality Assurance,Non-Schools,JANE HELD CONSULTING LTD,910494,01/08/2019,3288604,"1,500.00",0.00,N/A,N/A
Integrated Services,Agency Placements,Non-Schools,JAY FOSTERING,2148,01/08/2019,3289219,"3,338.70",0.00,People Services - Children & Young People,Politics and Civic Affairs Services
Leisure,Leisure,"Leisure, Culture and Tourism",JC DECAUX UK LTD,11496,01/08/2019,3190344,740.00,0.00,Communities & Place,Industrial Manufacturing and Processing
Non Delegated Schools Budget,Non Delegated School Expenditure,Schools Block,KINGSWAY PRIMARY SCHOOL,1097472,01/08/2019,3290645,"2,273.00",0.00,N/A,N/A
Non Delegated Schools Budget,Non Delegated School Expenditure,Schools Block,KINGSWAY PRIMARY SCHOOL,1097472,01/08/2019,3290648,837.00,0.00,N/A,N/A
Property Design & Maintenance,Building - Repairs & Maintenance,"Regeneration, Property & Housing",MANOR ELECTRICAL SERVICES,188116,01/08/2019,3293020,"13,747.52",0.00,N/A,N/A
Strategic Housing,Housing and Advice,"Regeneration, Property & Housing",MASAMI LTD,846457,01/08/2019,3292524,900.00,0.00,N/A,N/A
Corporate,Corporate Resources Other,Corporate,MATRIX SCM LTD,822477,01/08/2019,3290611,"123,516.71",0.00,N/A,N/A
Traffic & Transportation,Network Mgmnt & Highway Dev Control,"Strategic Partnerships, Planning & Streetpride",MCCONNELLS (MIDLANDS) LTD,2917,01/08/2019,3292568,763.50,0.00,Communities & Place,Editorial and Design and Graphic and Fin
Commissioning,School Organisation & Provision,Non-Schools,MERRILL ACADEMY,544443,01/08/2019,3292969,704.54,0.00,N/A,N/A
Finance,Accountancy,Finance,MILTON KEYNES COUNCIL,1112503,01/08/2019,3292819,"6,000.00",0.00,N/A,N/A
Community Safety,Partnerships,Public Protection and Streetride,MULTI FAITH CENTRE,9439,01/08/2019,3283298,"7,715.00",0.00,N/A,N/A
Non Delegated Schools Budget,Non Delegated School Expenditure,Schools Block,MURRAY PARK COMMUNITY SCHOOL,3446,01/08/2019,3290642,"5,750.00",0.00,People Services - Children & Young People,Organizations and Clubs
Non Delegated Schools Budget,Non Delegated School Expenditure,Schools Block,MURRAY PARK COMMUNITY SCHOOL,3446,01/08/2019,3292409,625.00,0.00,People Services - Children & Young People,Organizations and Clubs
Traffic & Transportation,Traffic & Transportation (inc Integrated Pass Transport),"Strategic Partnerships, Planning & Streetpride",NATIONAL EXPRESS LTD,904470,01/08/2019,3292918,"12,310.78",0.00,N/A,N/A
Integrated Services,Agency Placements,Non-Schools,NATIONAL FOSTERING AGENCY,3496,01/08/2019,3292191,"3,321.60",0.00,People Services - Children & Young People,Organizations and Clubs
Integrated Services,Agency Placements,Non-Schools,NATIONAL FOSTERING AGENCY,3496,01/08/2019,3292194,"3,278.70",0.00,People Services - Children & Young People,Organizations and Clubs
Integrated Services,Agency Placements,Non-Schools,NATIONAL FOSTERING AGENCY,3496,01/08/2019,3292194,"3,278.40",0.00,People Services - Children & Young People,Organizations and Clubs
Integrated Services,Agency Placements,Non-Schools,NATIONAL FOSTERING AGENCY,3496,01/08/2019,3292196,"4,152.90",0.00,People Services - Children & Young People,Organizations and Clubs
Integrated Services,Agency Placements,Non-Schools,NATIONAL FOSTERING AGENCY,3496,01/08/2019,3292201,"3,321.60",0.00,People Services - Children & Young People,Organizations and Clubs
Integrated Services,Agency Placements,Non-Schools,NATIONAL FOSTERING AGENCY,3496,01/08/2019,3292202,"3,180.30",0.00,People Services - Children & Young People,Organizations and Clubs
Integrated Services,Agency Placements,Non-Schools,NATIONAL FOSTERING AGENCY,3496,01/08/2019,3292203,"4,281.30",0.00,People Services - Children & Young People,Organizations and Clubs
Integrated Services,Agency Placements,Non-Schools,NATIONAL FOSTERING AGENCY,3496,01/08/2019,3292204,"3,278.40",0.00,People Services - Children & Young People,Organizations and Clubs
Integrated Services,Agency Placements,Non-Schools,NATIONAL FOSTERING AGENCY,3496,01/08/2019,3292205,"3,321.60",0.00,People Services - Children & Young People,Organizations and Clubs
Integrated Services,Agency Placements,Non-Schools,NATIONAL FOSTERING AGENCY,3496,01/08/2019,3292206,"3,321.60",0.00,People Services - Children & Young People,Organizations and Clubs
Integrated Services,Agency Placements,Non-Schools,NATIONAL FOSTERING AGENCY,3496,01/08/2019,3292207,"3,264.30",0.00,People Services - Children & Young People,Organizations and Clubs
Integrated Services,Agency Placements,Non-Schools,NATIONAL FOSTERING AGENCY,3496,01/08/2019,3292208,"3,264.30",0.00,People Services - Children & Young People,Organizations and Clubs
Commissioning - Schools Block,Recoupment - Independent Special School Fees,Schools Block,NEW BRIDGE MULTI ACADEMY TRUST,853453,01/08/2019,3292747,"14,438.35",0.00,N/A,N/A
Integrated Services,Agency Placements,Non-Schools,NEXUS FOSTERING LTD,189362,01/08/2019,3292254,"3,510.00",0.00,People Services - Children & Young People,Politics and Civic Affairs Services
Integrated Services,Agency Placements,Non-Schools,NEXUS FOSTERING LTD,189362,01/08/2019,3292255,"3,360.00",0.00,People Services - Children & Young People,Politics and Civic Affairs Services
Integrated Services,Agency Placements,Non-Schools,NEXUS FOSTERING LTD,189362,01/08/2019,3292256,"3,360.00",0.00,People Services - Children & Young People,Politics and Civic Affairs Services
Integrated Services,Agency Placements,Non-Schools,NEXUS FOSTERING LTD,189362,01/08/2019,3292257,"3,360.00",0.00,People Services - Children & Young People,Politics and Civic Affairs Services
Integrated Services,Agency Placements,Non-Schools,NEXUS FOSTERING LTD,189362,01/08/2019,3292258,"3,360.00",0.00,People Services - Children & Young People,Politics and Civic Affairs Services
Integrated Services,Agency Placements,Non-Schools,NEXUS FOSTERING LTD,189362,01/08/2019,3292259,"3,720.00",0.00,People Services - Children & Young People,Politics and Civic Affairs Services
Integrated Services,Agency Placements,Non-Schools,NEXUS FOSTERING LTD,189362,01/08/2019,3292263,"3,720.00",0.00,People Services - Children & Young People,Politics and Civic Affairs Services
Integrated Services,Agency Placements,Non-Schools,NEXUS FOSTERING LTD,189362,01/08/2019,3292265,"3,720.00",0.00,People Services - Children & Young People,Politics and Civic Affairs Services
Property Design & Maintenance,Building - Repairs & Maintenance,"Regeneration, Property & Housing",NIYAA PEOPLE,389403,01/08/2019,3293021,835.64,0.00,N/A,N/A
Property Design & Maintenance,Building - Repairs & Maintenance,"Regeneration, Property & Housing",NIYAA PEOPLE,389403,01/08/2019,3293065,816.43,0.00,N/A,N/A
Non Delegated Schools Budget,Non Delegated School Expenditure,Schools Block,NOEL BAKER ACADEMY,595442,01/08/2019,3292368,750.00,0.00,N/A,N/A
Commissioning,School Organisation & Provision,Non-Schools,NOEL BAKER ACADEMY,595442,01/08/2019,3292966,"2,822.81",0.00,N/A,N/A
Community Safety and Integration,Neighbourhood Boards,"Communities, Environment & Regulatory Services",NOTICE BOARD COMPANY UK LTD,1112511,01/08/2019,3292965,"1,020.00",0.00,N/A,N/A
Neighbourhoods,Capital,Capital,NOTTINGHAM CITY COUNCIL,3638,01/08/2019,3292489,"58,000.00",0.00,N/A,N/A
Culture & Business Development,Culture & Business Development,"Leisure, Culture and Tourism",NOTTS AND DERBY CASH REGISTERS LTD,3517,01/08/2019,3292445,850.00,0.00,Communities & Place,Office Equipment and Accessories and Sup
Learning Disability Support,Transitions and Ordinary Lives - Learning Disability Support,Transitions and Ordinary Lives,OAKLANDS SUPPORT LIMITED,1056472,01/08/2019,3292605,"2,701.76",0.00,N/A,N/A
Integrated Services,Agency Placements,Non-Schools,ORANGE GROVE FOSTERCARE,254396,01/08/2019,3289151,"3,233.40",0.00,People Services - Children & Young People,Healthcare Services
Integrated Services,Agency Placements,Non-Schools,ORANGE GROVE FOSTERCARE,254396,01/08/2019,3289154,"2,946.90",0.00,People Services - Children & Young People,Healthcare Services
Integrated Services,Agency Placements,Non-Schools,ORANGE GROVE FOSTERCARE,254396,01/08/2019,3289148,"3,233.40",0.00,People Services - Children & Young People,Healthcare Services
Integrated Services,Agency Placements,Non-Schools,PARALLEL PARENTS,7822,01/08/2019,3289166,"3,767.10",0.00,People Services - Children & Young People,Politics and Civic Affairs Services
Integrated Services,Agency Placements,Non-Schools,PARALLEL PARENTS,7822,01/08/2019,3289128,"3,338.70",0.00,People Services - Children & Young People,Politics and Civic Affairs Services
Integrated Services,Agency Placements,Non-Schools,PARALLEL PARENTS,7822,01/08/2019,3289133,"3,595.80",0.00,People Services - Children & Young People,Politics and Civic Affairs Services
Integrated Services,Agency Placements,Non-Schools,PARALLEL PARENTS,7822,01/08/2019,3289135,"1,697.62",0.00,People Services - Children & Young People,Politics and Civic Affairs Services
Integrated Services,Agency Placements,Non-Schools,PARALLEL PARENTS,7822,01/08/2019,3289136,"3,660.00",0.00,People Services - Children & Young People,Politics and Civic Affairs Services
Integrated Services,Agency Placements,Non-Schools,PARALLEL PARENTS,7822,01/08/2019,3289138,"1,697.62",0.00,People Services - Children & Young People,Politics and Civic Affairs Services
Business Support,Business Support,Strategic Services and Organisational Development,PARKING AND SECURE DOCUMENTS LTD,711454,01/08/2019,3292540,"2,360.00",0.00,N/A,N/A
Traffic & Transportation,Parking Services,"Strategic Partnerships, Planning & Streetpride",PARKSAFE,3809,01/08/2019,3292595,"15,920.50",0.00,Communities & Place,Commercial and Military and Private Vehi
Adults Health and Housing,Capital,Capital,PRISM MEDICAL UK WESTHOLME DIVISION,126874,01/08/2019,3292579,"1,865.00",0.00,Disabled Facilities Grant 96 Act,Medical Equipment and Accessories and Su
Adults Health and Housing,Capital,Capital,PRISM MEDICAL UK WESTHOLME DIVISION,126874,01/08/2019,3292582,"4,803.06",0.00,Disabled Facilities Grant 96 Act,Medical Equipment and Accessories and Su
Property Design & Maintenance,Building - Repairs & Maintenance,"Regeneration, Property & Housing",REDACTED - PERSONAL DATA,1094475,01/08/2019,3292293,"6,750.00",0.00,N/A,N/A
Physical Support,Community Support - Physical Support,Community Support,REDACTED - PERSONAL DATA,1012481,01/08/2019,3292129,"4,600.00",0.00,N/A,N/A
"Environmental Protection, Licensing, Housing",Licensing,"Communities, Environment & Regulatory Services",REDACTED - PERSONAL DATA,686448,01/08/2019,3292359,700.00,0.00,N/A,N/A
Mental Health Support,Mental Health - Mental Health Support,Mental Health,REDACTED - PERSONAL DATA,1040473,01/08/2019,3293255,505.90,0.00,N/A,N/A
Mental Health Support,Mental Health - Mental Health Support,Mental Health,REDACTED - PERSONAL DATA,1040473,01/08/2019,3293255,833.24,0.00,N/A,N/A
Mental Health Support,Mental Health - Mental Health Support,Mental Health,REDACTED - PERSONAL DATA,1040473,01/08/2019,3293255,833.24,0.00,N/A,N/A
Mental Health Support,Mental Health - Mental Health Support,Mental Health,REDACTED - PERSONAL DATA,1040473,01/08/2019,3293255,833.24,0.00,N/A,N/A
Mental Health Support,Mental Health - Mental Health Support,Mental Health,REDACTED - PERSONAL DATA,188457,01/08/2019,3293254,658.36,0.00,N/A,N/A
Mental Health Support,Mental Health - Mental Health Support,Mental Health,REDACTED - PERSONAL DATA,188457,01/08/2019,3293254,658.36,0.00,N/A,N/A
Mental Health Support,Mental Health - Mental Health Support,Mental Health,REDACTED - PERSONAL DATA,188457,01/08/2019,3293254,658.36,0.00,N/A,N/A
Mental Health Support,Mental Health - Mental Health Support,Mental Health,REDACTED - PERSONAL DATA,188457,01/08/2019,3293254,658.36,0.00,N/A,N/A
Mental Health Support,Mental Health - Mental Health Support,Mental Health,REDACTED - PERSONAL DATA,267406,01/08/2019,3293253,"1,888.32",0.00,N/A,N/A
Mental Health Support,Mental Health - Mental Health Support,Mental Health,REDACTED - PERSONAL DATA,267406,01/08/2019,3293253,"1,888.32",0.00,N/A,N/A
Mental Health Support,Mental Health - Mental Health Support,Mental Health,REDACTED - PERSONAL DATA,267406,01/08/2019,3293253,"1,888.32",0.00,N/A,N/A
Mental Health Support,Mental Health - Mental Health Support,Mental Health,REDACTED - PERSONAL DATA,267406,01/08/2019,3293253,"1,888.32",0.00,N/A,N/A
Mental Health Support,Mental Health - Mental Health Support,Mental Health,REDACTED - PERSONAL DATA,267406,01/08/2019,3293253,"1,888.32",0.00,N/A,N/A
Community Safety and Integration,Partnerships,"Communities, Environment & Regulatory Services",REDACTED - PERSONAL DATA,1072478,01/08/2019,3292724,"2,496.08",0.00,N/A,N/A
Community Safety and Integration,Partnerships,"Communities, Environment & Regulatory Services",REDACTED - PERSONAL DATA,1072478,01/08/2019,3292726,"1,407.08",0.00,N/A,N/A
Community Safety and Integration,Partnerships,"Communities, Environment & Regulatory Services",REDACTED - PERSONAL DATA,1072478,01/08/2019,3292727,"2,209.16",0.00,N/A,N/A
Integrated Services,Youth Offending Service,Non-Schools,REMEDI,49769,01/08/2019,3292779,"29,950.00",0.00,People Services - Children & Young People,Education and Training Services
Non Delegated Schools Budget,Non Delegated School Expenditure,Schools Block,RIDGEWAY INFANT SCHOOL,170354,01/08/2019,3290640,"3,833.33",0.00,N/A,N/A
Social Care Activities,Community Support - Social Care Activities,Community Support,RIGHT LEGAL GROUP LIMITED,853456,01/08/2019,3292382,"1,175.02",0.00,N/A,N/A
Children and Young People,Capital,Capital,SANTIA ASBESTOS MANAGEMENT LTD,679477,01/08/2019,3293045,"1,158.20",0.00,N/A,N/A
Children and Young People,Capital,Capital,SANTIA ASBESTOS MANAGEMENT LTD,679477,01/08/2019,3293034,"7,510.00",0.00,N/A,N/A
Non Delegated Schools Budget,Non Delegated School Expenditure,Schools Block,SEVERN BRIDGES MULTI ACADEMY TRUST,1098472,01/08/2019,3290646,"2,343.00",0.00,N/A,N/A
Facilities Management,Accommodation Buildings,Strategic Services and Organisational Development,SIEMENS FINANCIAL SERVICES LIMITED,861446,01/08/2019,3282958,773.84,0.00,N/A,N/A
Culture & Business Development,Culture & Business Development,"Leisure, Culture and Tourism",SIEMENS FINANCIAL SERVICES LIMITED,861446,01/08/2019,3288285,"1,393.86",0.00,N/A,N/A
Non Delegated Schools Budget,Non Delegated School Expenditure,Schools Block,ST RALPH SHERWIN CATHOLIC MULTI ACADEMY TRUST,892478,01/08/2019,3292378,520.00,0.00,N/A,N/A
Commissioning - Schools Block,Recoupment - Independent Special School Fees,Schools Block,ST RALPH SHERWIN CATHOLIC MULTI ACADEMY TRUST,892483,01/08/2019,3283236,"2,933.32",0.00,N/A,N/A
Early Help & Children�s Safeguarding,Integrated and Safeguarding Services Locality 2,Non-Schools,STRAW AND PEARCE,1010477,01/08/2019,3292302,697.90,0.00,N/A,N/A
Early Help & Children�s Safeguarding,Integrated and Safeguarding Services Locality 2,Non-Schools,STRAW AND PEARCE,1010477,01/08/2019,3292304,"1,229.42",0.00,N/A,N/A
Early Help & Children�s Safeguarding,Integrated and Safeguarding Services Locality 2,Non-Schools,STRAW AND PEARCE,1010477,01/08/2019,3292304,"1,197.50",0.00,N/A,N/A
Integrated Services,Agency Placements,Non-Schools,SWAP LTD,471363,01/08/2019,3289182,"3,276.39",0.00,People Services - Children & Young People,Healthcare Services
Highways & Engineering,Highways Maintenance & Street Lighting,"Strategic Partnerships, Planning & Streetpride",TARBY CONSTRUCTION LTD,194477,01/08/2019,3284604,"5,800.00",0.00,Communities & Place,Structures and Building and Construction
Neighbourhoods,Capital,Capital,TCS UK LTD,642466,01/08/2019,3266875,"6,189.96",0.00,N/A,N/A
Non Delegated Schools Budget,Non Delegated School Expenditure,Schools Block,TEACHING PERSONNEL LTD,5067,01/08/2019,3292113,"2,268.00",0.00,N/A,N/A
Integrated Services,Agency Placements,Non-Schools,THE ADOLESCENT AND CHILDRENS TRUST,227387,01/08/2019,3289093,"2,872.33",0.00,People Services - Children & Young People,Healthcare Services
Grounds Maintenance & Cleansing,Grounds Maintenance,"Strategic Partnerships, Planning & Streetpride",THE F A BARTLETT TREE EXPERT COMPANY LTD,876443,01/08/2019,3290552,580.00,0.00,N/A,N/A
Learning & Inclusion,Inclusion & Intervention,Non-Schools,THE HARMONY TRUST LTD,874448,01/08/2019,3293007,"6,262.50",0.00,N/A,N/A
Learning & Inclusion,Inclusion & Intervention,Non-Schools,THE SPENCER ACADEMIES TRUST,877467,01/08/2019,3292972,"20,760.00",0.00,N/A,N/A
"Occupational Health, Safety, Markets & Bereavement Services",Bereavement Services,"Communities, Environment & Regulatory Services",THE YABOO CO LTD,4884,01/08/2019,3288592,847.74,0.00,Communities & Place,Musical Instruments and Games and Toys a
Neighbourhoods,Capital,Capital,THOMAS BOW LTD,40570,01/08/2019,3292234,"1,281.50",0.00,Asset Management - Highways Maintenance,Building and Construction and Maintenanc
Leisure,Leisure,"Leisure, Culture and Tourism",TUTORCARE LTD,266396,01/08/2019,3293133,895.50,0.00,Communities & Place,Education and Training Services
Highways & Engineering,Highways Maintenance & Street Lighting,"Strategic Partnerships, Planning & Streetpride",UK DIAMOND DRILLING LTD,8870,01/08/2019,3292276,"1,220.00",0.00,Communities & Place,Industrial Manufacturing and Processing
Neighbourhoods,Capital,Capital,VALE ENGINEERING YORK LTD,411400,01/08/2019,3292455,"3,500.00",0.00,Grounds Plant & Equipment,Tools and General Machinery
Neighbourhoods,Capital,Capital,VALE ENGINEERING YORK LTD,411400,01/08/2019,3292455,"4,603.00",0.00,Grounds Plant & Equipment,Tools and General Machinery
Culture & Business Development,Culture & Business Development,"Leisure, Culture and Tourism",WATER DIRECT LIMITED,874453,01/08/2019,3292984,740.00,0.00,N/A,N/A
Leisure,Leisure,"Leisure, Culture and Tourism",WATER PLUS LIMITED,1034471,01/08/2019,3289275,"3,118.82",0.00,N/A,N/A
Children and Young People,Capital,Capital,WATES CONSTRUCTION LTD,605446,01/08/2019,3293024,"339,827.48",0.00,N/A,N/A
Early Help & Children�s Safeguarding,Children In Care,Non-Schools,WEIGHTMANS LLP,127207,01/08/2019,3292306,602.00,0.00,N/A,N/A
Adults Health and Housing,Capital,Capital,A M PROPERTY SERVICES LTD,121,06/08/2019,3294985,"5,760.00",0.00,Disabled Facilities Grant 96 Act,Building and Construction and Maintenanc
Adults Health and Housing,Capital,Capital,A M PROPERTY SERVICES LTD,121,06/08/2019,3294986,"3,000.00",0.00,Disabled Facilities Grant 96 Act,Building and Construction and Maintenanc
General,Stores Road Depot & Fleet Management,"Strategic Partnerships, Planning & Streetpride",ADT SITE SERVICES LTD,982472,06/08/2019,3294200,"3,000.00",0.00,N/A,N/A
Highways & Engineering,Highways Maintenance & Street Lighting,"Strategic Partnerships, Planning & Streetpride",AGGREGATE INDUSTRIES UK LTD,117850,06/08/2019,3294203,822.51,0.00,Communities & Place,Building and Construction Machinery and
Highways & Engineering,Highways Maintenance & Street Lighting,"Strategic Partnerships, Planning & Streetpride",AGGREGATE INDUSTRIES UK LTD,117850,06/08/2019,3294204,"1,091.94",0.00,Communities & Place,Building and Construction Machinery and
Highways & Engineering,Highways Maintenance & Street Lighting,"Strategic Partnerships, Planning & Streetpride",AGGREGATE INDUSTRIES UK LTD,117850,06/08/2019,3294209,"1,318.28",0.00,Communities & Place,Building and Construction Machinery and
Highways & Engineering,Highways Maintenance & Street Lighting,"Strategic Partnerships, Planning & Streetpride",AGGREGATE INDUSTRIES UK LTD,117850,06/08/2019,3294212,782.41,0.00,Communities & Place,Building and Construction Machinery and
Highways & Engineering,Highways Maintenance & Street Lighting,"Strategic Partnerships, Planning & Streetpride",AGGREGATE INDUSTRIES UK LTD,117850,06/08/2019,3294213,868.19,0.00,Communities & Place,Building and Construction Machinery and
Highways & Engineering,Highways Maintenance & Street Lighting,"Strategic Partnerships, Planning & Streetpride",AGGREGATE INDUSTRIES UK LTD,117850,06/08/2019,3294214,809.71,0.00,Communities & Place,Building and Construction Machinery and
Highways & Engineering,Highways Maintenance & Street Lighting,"Strategic Partnerships, Planning & Streetpride",AGGREGATE INDUSTRIES UK LTD,117850,06/08/2019,3294215,"1,307.61",0.00,Communities & Place,Building and Construction Machinery and
Highways & Engineering,Highways Maintenance & Street Lighting,"Strategic Partnerships, Planning & Streetpride",AGGREGATE INDUSTRIES UK LTD,117850,06/08/2019,3294221,"1,101.25",0.00,Communities & Place,Building and Construction Machinery and
Grounds Maintenance & Cleansing,Cleansing (inc public conveniences & gullies),"Strategic Partnerships, Planning & Streetpride",AMA SUPPLIES LTD,285,06/08/2019,3292929,809.94,0.00,Communities & Place,Apparel and Luggage and Personal Care Pr
Refuse & Waste Management,Waste Disposal,"Strategic Partnerships, Planning & Streetpride",ANTHONY COLLINS SOLICITORS,65,06/08/2019,3294839,"3,799.00",0.00,N/A,N/A
Public Health,Drugs and Alcohol,Public Health,ASDA STORES LTD,187667,06/08/2019,3295103,562.00,0.00,N/A,N/A
Public Health,Drugs and Alcohol,Public Health,ASDA STORES LTD,187667,06/08/2019,3295104,874.00,0.00,N/A,N/A
Public Health,Drugs and Alcohol,Public Health,ASDA STORES LTD,187667,06/08/2019,3295104,604.00,0.00,N/A,N/A
Libraries,Libraries,"Leisure, Culture and Tourism",ASKEWS AND HOLTS LIBRARY SERVICES LTD,876447,06/08/2019,3294342,911.54,0.00,N/A,N/A
Libraries,Libraries,"Leisure, Culture and Tourism",ASKEWS AND HOLTS LIBRARY SERVICES LTD,876447,06/08/2019,3294343,"1,438.64",0.00,N/A,N/A
Libraries,Libraries,"Leisure, Culture and Tourism",ASKEWS AND HOLTS LIBRARY SERVICES LTD,876447,06/08/2019,3294345,"2,007.37",0.00,N/A,N/A
Libraries,Libraries,"Leisure, Culture and Tourism",ASKEWS AND HOLTS LIBRARY SERVICES LTD,876447,06/08/2019,3294346,"1,754.63",0.00,N/A,N/A
Libraries,Libraries,"Leisure, Culture and Tourism",ASKEWS AND HOLTS LIBRARY SERVICES LTD,876447,06/08/2019,3294347,"1,797.99",0.00,N/A,N/A
Libraries,Libraries,"Leisure, Culture and Tourism",ASKEWS AND HOLTS LIBRARY SERVICES LTD,876447,06/08/2019,3294321,648.41,0.00,N/A,N/A
Adults Health and Housing,Capital,Capital,B K PLUMBING AND HEATING LTD,1051469,06/08/2019,3293235,"8,000.00",0.00,N/A,N/A
Children and Young People,Capital,Capital,BALFOUR BEATTY CIVIL ENGINEERING LTD,116647,06/08/2019,3294890,"15,854.45",0.00,Cuttlebrook Flood Alleviation Scheme,Management and Business Professionals an
Children and Young People,Capital,Capital,BALFOUR BEATTY CIVIL ENGINEERING LTD,116647,06/08/2019,3294890,"8,749.77",0.00,Cuttlebrook Flood Alleviation Scheme,Management and Business Professionals an
Children and Young People,Capital,Capital,BALFOUR BEATTY CIVIL ENGINEERING LTD,116647,06/08/2019,3294900,"24,571.55",0.00,Cuttlebrook Flood Alleviation Scheme,Management and Business Professionals an
Learning & Inclusion,Adult Learning - SFA,Non-Schools,BLACKBOARD INTERNATIONAL B V,1052482,06/08/2019,3266858,700.00,0.00,N/A,N/A
Economic Regeneration,Economic Regeneration,"Regeneration, Property & Housing",BRIGHTER FUTURES EMPLOYABILITY DERBYSHIRE,940474,06/08/2019,3293156,"1,000.00",0.00,N/A,N/A
Grounds Maintenance & Cleansing,Cleansing (inc public conveniences & gullies),"Strategic Partnerships, Planning & Streetpride",BUNZL CLEANING AND HYGIENE SUPPLIES,961498,06/08/2019,3292718,562.80,0.00,N/A,N/A
Physical Support,Community Support - Physical Support,Community Support,BWA HEALTH AND CARE SERVICE LTD,8079,06/08/2019,3293207,"1,299.44",0.00,N/A,N/A
Physical Support,Community Support - Physical Support,Community Support,BWA HEALTH AND CARE SERVICE LTD,8079,06/08/2019,3293208,"1,162.12",0.00,N/A,N/A
Physical Support,Community Support - Physical Support,Community Support,BWA HEALTH AND CARE SERVICE LTD,8079,06/08/2019,3293209,637.20,0.00,N/A,N/A
Neighbourhoods,Capital,Capital,CAPITA BUSINESS SERVICES LTD,7754,06/08/2019,3284016,"44,575.00",0.00,Replacement/ Retender Council Tax System,Information Technology Broadcasting and
Neighbourhoods,Capital,Capital,CAWARDEN CO LTD,191369,06/08/2019,3292856,"26,600.00",0.00,N/A,N/A
Social Care Activities,Community Support - Social Care Activities,Community Support,CDW LTD,465403,06/08/2019,3294254,760.00,0.00,People Services - Adults and Health,Information Technology Broadcasting and
Strategic Housing,Housing and Advice,"Regeneration, Property & Housing",CDW LTD,465403,06/08/2019,3294253,760.00,0.00,Communities & Place,Information Technology Broadcasting and
"Information, Computing & Technology","Information, Computing & Technology",Digital Services,CDW LTD,465403,06/08/2019,3292356,"14,604.50",0.00,Organisation & Governance,Information Technology Broadcasting and
"Information, Computing & Technology","Information, Computing & Technology",Digital Services,CDW LTD,465403,06/08/2019,3293095,"1,456.39",0.00,Organisation & Governance,Information Technology Broadcasting and
"Information, Computing & Technology","Information, Computing & Technology",Digital Services,CDW LTD,465403,06/08/2019,3293095,"3,507.14",0.00,Organisation & Governance,Information Technology Broadcasting and
"Information, Computing & Technology","Information, Computing & Technology",Digital Services,CDW LTD,465403,06/08/2019,3293095,"2,778.50",0.00,Organisation & Governance,Information Technology Broadcasting and
Early Help & Children�s Safeguarding,Children In Care,Non-Schools,CHADDESDEN FURNITURE AND CARPETS,715,06/08/2019,3294288,540.00,0.00,People Services - Children & Young People,Furniture and Furnishings
Early Help & Children�s Safeguarding,Children In Care,Non-Schools,CHADDESDEN FURNITURE AND CARPETS,715,06/08/2019,3294288,540.00,0.00,People Services - Children & Young People,Furniture and Furnishings
Facilities Management,Catering,Strategic Services and Organisational Development,CHARTWELLS,1044472,06/08/2019,3293229,"113,621.12",0.00,N/A,N/A
Traffic & Transportation,Traffic & Transportation (inc Integrated Pass Transport),"Strategic Partnerships, Planning & Streetpride",CHELLASTON CARS UK LTD,1007486,06/08/2019,3294450,525.00,0.00,N/A,N/A
Traffic & Transportation,Traffic & Transportation (inc Integrated Pass Transport),"Strategic Partnerships, Planning & Streetpride",CHELLASTON CARS UK LTD,1007486,06/08/2019,3294450,525.00,0.00,N/A,N/A
Traffic & Transportation,Traffic & Transportation (inc Integrated Pass Transport),"Strategic Partnerships, Planning & Streetpride",CHELLASTON CARS UK LTD,1007486,06/08/2019,3294480,"1,460.00",0.00,N/A,N/A
Integrated Services,Agency Placements,Non-Schools,CHILDCARE BUREAU LTD,889473,06/08/2019,3292175,"3,445.80",0.00,N/A,N/A
Integrated Services,Agency Placements,Non-Schools,CHILDCARE BUREAU LTD,889473,06/08/2019,3292753,"3,560.66",0.00,N/A,N/A
Integrated Services,Agency Placements,Non-Schools,CHILDCARE BUREAU LTD,889473,06/08/2019,3292758,"3,470.98",0.00,N/A,N/A
Integrated Services,Agency Placements,Non-Schools,CHILDCARE BUREAU LTD,889473,06/08/2019,3292759,774.26,0.00,N/A,N/A
Integrated Services,Agency Placements,Non-Schools,CHILDCARE BUREAU LTD,889473,06/08/2019,3292761,"2,654.60",0.00,N/A,N/A
Integrated Services,Agency Placements,Non-Schools,CHRYSALIS CONSORTIUM,178378,06/08/2019,3294962,"5,314.33",0.00,People Services - Children & Young People,Politics and Civic Affairs Services
Integrated Services,Agency Placements,Non-Schools,CHRYSALIS CONSORTIUM,178378,06/08/2019,3294963,"5,314.33",0.00,People Services - Children & Young People,Politics and Civic Affairs Services
Finance,Accountancy,Finance,CIPFA BUSINESS,124324,06/08/2019,3292123,990.00,0.00,Organisation & Governance,Education and Training Services
Sector Development,Business Efficiency,Commissioning,CITIZENS ADVICE SOUTH DERBYSHIRE AND CITY,1036476,06/08/2019,3294348,"44,304.00",0.00,N/A,N/A
Traffic & Transportation,Traffic & Transportation (inc Integrated Pass Transport),"Strategic Partnerships, Planning & Streetpride",CLAIRE HOLMES,768454,06/08/2019,3294497,791.28,0.00,N/A,N/A
Adults Health and Housing,Capital,Capital,CLOSOMAT LTD,921492,06/08/2019,3271423,"3,780.88",0.00,N/A,N/A
Learning Disability Support,Community Support - Learning Disability Support,Community Support,CREATIVE SUPPORT LTD,1026475,06/08/2019,3293463,"1,692.20",0.00,N/A,N/A
Learning Disability Support,Community Support - Learning Disability Support,Community Support,CREATIVE SUPPORT LTD,1026475,06/08/2019,3293519,"1,831.88",0.00,N/A,N/A
Learning Disability Support,Transitions and Ordinary Lives - Learning Disability Support,Transitions and Ordinary Lives,CREATIVE SUPPORT LTD,1026475,06/08/2019,3293497,"8,440.32",0.00,N/A,N/A
Learning Disability Support,Transitions and Ordinary Lives - Learning Disability Support,Transitions and Ordinary Lives,CREATIVE SUPPORT LTD,1026475,06/08/2019,3293432,"7,811.04",0.00,N/A,N/A
Learning Disability Support,Transitions and Ordinary Lives - Learning Disability Support,Transitions and Ordinary Lives,CREATIVE SUPPORT LTD,1026475,06/08/2019,3293443,"4,220.16",0.00,N/A,N/A
Learning Disability Support,Transitions and Ordinary Lives - Learning Disability Support,Transitions and Ordinary Lives,CREATIVE SUPPORT LTD,1026475,06/08/2019,3293443,"4,220.16",0.00,N/A,N/A
Learning Disability Support,Transitions and Ordinary Lives - Learning Disability Support,Transitions and Ordinary Lives,CREATIVE SUPPORT LTD,1026475,06/08/2019,3293444,"1,831.88",0.00,N/A,N/A
Learning Disability Support,Transitions and Ordinary Lives - Learning Disability Support,Transitions and Ordinary Lives,CREATIVE SUPPORT LTD,1026475,06/08/2019,3293445,"6,525.80",0.00,N/A,N/A
Learning Disability Support,Transitions and Ordinary Lives - Learning Disability Support,Transitions and Ordinary Lives,CREATIVE SUPPORT LTD,1026475,06/08/2019,3293446,894.08,0.00,N/A,N/A
Learning Disability Support,Transitions and Ordinary Lives - Learning Disability Support,Transitions and Ordinary Lives,CREATIVE SUPPORT LTD,1026475,06/08/2019,3293498,"8,440.32",0.00,N/A,N/A
Learning Disability Support,Transitions and Ordinary Lives - Learning Disability Support,Transitions and Ordinary Lives,CREATIVE SUPPORT LTD,1026475,06/08/2019,3293499,"5,017.04",0.00,N/A,N/A
Learning Disability Support,Transitions and Ordinary Lives - Learning Disability Support,Transitions and Ordinary Lives,CREATIVE SUPPORT LTD,1026475,06/08/2019,3293535,"6,176.56",0.00,N/A,N/A
Learning Disability Support,Transitions and Ordinary Lives - Learning Disability Support,Transitions and Ordinary Lives,CREATIVE SUPPORT LTD,1026475,06/08/2019,3293536,"1,105.44",0.00,N/A,N/A
Grounds Maintenance & Cleansing,Cleansing (inc public conveniences & gullies),"Strategic Partnerships, Planning & Streetpride",CROMWELL POLYTHENE LTD,696471,06/08/2019,3293147,"1,033.92",0.00,N/A,N/A
Traffic & Transportation,Traffic & Transportation (inc Integrated Pass Transport),"Strategic Partnerships, Planning & Streetpride",CROWN CARS Derby LTD,112999,06/08/2019,3294430,"1,657.50",0.00,N/A,N/A
Traffic & Transportation,Traffic & Transportation (inc Integrated Pass Transport),"Strategic Partnerships, Planning & Streetpride",CROWN CARS Derby LTD,112999,06/08/2019,3294451,612.00,0.00,N/A,N/A
Traffic & Transportation,Traffic & Transportation (inc Integrated Pass Transport),"Strategic Partnerships, Planning & Streetpride",CROWN CARS Derby LTD,112999,06/08/2019,3294492,788.40,0.00,N/A,N/A
Traffic & Transportation,Traffic & Transportation (inc Integrated Pass Transport),"Strategic Partnerships, Planning & Streetpride",CROWN CARS Derby LTD,112999,06/08/2019,3294515,514.35,0.00,N/A,N/A
Traffic & Transportation,Traffic & Transportation (inc Integrated Pass Transport),"Strategic Partnerships, Planning & Streetpride",CROWN CARS Derby LTD,112999,06/08/2019,3294515,514.35,0.00,N/A,N/A
Traffic & Transportation,Traffic & Transportation (inc Integrated Pass Transport),"Strategic Partnerships, Planning & Streetpride",CROWN CARS Derby LTD,112999,06/08/2019,3294488,"1,261.50",0.00,N/A,N/A
"Information, Computing & Technology","Information, Computing & Technology",Digital Services,CROWN HOSTING DATA CENTRES LTD,470548,06/08/2019,3294354,"2,211.65",0.00,Organisation & Governance,Information Technology Broadcasting and
"Information, Computing & Technology","Information, Computing & Technology",Digital Services,CROWN HOSTING DATA CENTRES LTD,470548,06/08/2019,3295278,"1,351.77",0.00,Organisation & Governance,Information Technology Broadcasting and
General,Stores Road Depot & Fleet Management,"Strategic Partnerships, Planning & Streetpride",CTS HIRE,1026468,06/08/2019,3293117,"4,949.55",0.00,N/A,N/A
General,Stores Road Depot & Fleet Management,"Strategic Partnerships, Planning & Streetpride",CTS HIRE,1026468,06/08/2019,3293118,"4,910.34",0.00,N/A,N/A
General,Stores Road Depot & Fleet Management,"Strategic Partnerships, Planning & Streetpride",CTS HIRE,1026468,06/08/2019,3295200,"3,949.79",0.00,N/A,N/A
Public Health,Drugs and Alcohol,Public Health,DAY NIGHT LTD,187651,06/08/2019,3295099,730.00,0.00,N/A,N/A
Public Health,Drugs and Alcohol,Public Health,DAY NIGHT LTD,187651,06/08/2019,3295099,"1,356.00",0.00,N/A,N/A
Public Health,Drugs and Alcohol,Public Health,DAY NIGHT LTD,187651,06/08/2019,3295110,"1,562.00",0.00,N/A,N/A
Public Health,Drugs and Alcohol,Public Health,DAY NIGHT LTD,187651,06/08/2019,3295110,"2,524.00",0.00,N/A,N/A
Public Health,Drugs and Alcohol,Public Health,DAY NIGHT LTD,187651,06/08/2019,3295129,"1,262.00",0.00,N/A,N/A
Public Health,Drugs and Alcohol,Public Health,DAY NIGHT LTD,187651,06/08/2019,3295129,"2,450.00",0.00,N/A,N/A
Traffic & Transportation,Traffic & Transportation (inc Integrated Pass Transport),"Strategic Partnerships, Planning & Streetpride",DERBY CITY CARS LTD,583454,06/08/2019,3294494,"1,780.00",0.00,N/A,N/A
Strategic Housing,Housing and Advice,"Regeneration, Property & Housing",DERBY CITY COUNCIL C/TAX,1036478,06/08/2019,3294983,759.95,0.00,N/A,N/A
Non Delegated Schools Budget,Non Delegated School Expenditure,Schools Block,DERBY COLLEGE,153576,06/08/2019,3277497,"310,000.00",0.00,People Services - Children & Young People,Education and Training Services
Learning & Inclusion,Inclusion & Intervention,Non-Schools,DERBY COUNTY COMMUNITY TRUST,178343,06/08/2019,3293243,"1,725.00",0.00,N/A,N/A
Strategic Housing,Housing and Advice,"Regeneration, Property & Housing",DERBY GUESTHOUSE LTD,255426,06/08/2019,3294371,550.00,0.00,N/A,N/A
Strategic Housing,Housing and Advice,"Regeneration, Property & Housing",DERBY GUESTHOUSE LTD,255426,06/08/2019,3294373,700.00,0.00,N/A,N/A
Strategic Housing,Housing and Advice,"Regeneration, Property & Housing",DERBY GUESTHOUSE LTD,255426,06/08/2019,3294376,560.00,0.00,N/A,N/A
Strategic Housing,Housing and Advice,"Regeneration, Property & Housing",DERBY GUESTHOUSE LTD,255426,06/08/2019,3294377,560.00,0.00,N/A,N/A
Strategic Housing,Housing and Advice,"Regeneration, Property & Housing",DERBY GUESTHOUSE LTD,255426,06/08/2019,3294379,700.00,0.00,N/A,N/A
Strategic Housing,Housing and Advice,"Regeneration, Property & Housing",DERBY GUESTHOUSE LTD,255426,06/08/2019,3294380,700.00,0.00,N/A,N/A
Strategic Housing,Housing and Advice,"Regeneration, Property & Housing",DERBY GUESTHOUSE LTD,255426,06/08/2019,3294383,700.00,0.00,N/A,N/A
Strategic Housing,Housing and Advice,"Regeneration, Property & Housing",DERBY GUESTHOUSE LTD,255426,06/08/2019,3294384,700.00,0.00,N/A,N/A
Strategic Housing,Housing and Advice,"Regeneration, Property & Housing",DERBY GUESTHOUSE LTD,255426,06/08/2019,3294385,520.00,0.00,N/A,N/A
Strategic Housing,Housing and Advice,"Regeneration, Property & Housing",DERBY GUESTHOUSE LTD,255426,06/08/2019,3294393,700.00,0.00,N/A,N/A
Early Help & Children�s Safeguarding,Integrated and Safeguarding Services Locality 3/4,Non-Schools,DERBY GUESTHOUSE LTD,255426,06/08/2019,3294367,560.00,0.00,N/A,N/A
Early Help & Children�s Safeguarding,Integrated and Safeguarding Services Locality 3/4,Non-Schools,DERBY GUESTHOUSE LTD,255426,06/08/2019,3294368,560.00,0.00,N/A,N/A
Housing Revenue Account,Housing Revenue Account,"Regeneration, Property & Housing",DERBY HOMES LTD,1175,06/08/2019,3249562,"16,710,000.00",0.00,Communities & Place,Travel and Food and Lodging and Entertai
Housing Revenue Account,Housing Revenue Account,"Regeneration, Property & Housing",DERBY HOMES LTD,1175,06/08/2019,3249562,"10,312,000.00",0.00,Communities & Place,Travel and Food and Lodging and Entertai
Retained Housing Revenue Account,Retained Housing Revenue Account,"Regeneration, Property & Housing",DERBY HOMES LTD,1175,06/08/2019,3249562,"29,976.00",0.00,Communities & Place,Travel and Food and Lodging and Entertai
Retained Housing Revenue Account,Retained Housing Revenue Account,"Regeneration, Property & Housing",DERBY HOMES LTD,1175,06/08/2019,3249562,"52,885.00",0.00,Communities & Place,Travel and Food and Lodging and Entertai
Retained Housing Revenue Account,Retained Housing Revenue Account,"Regeneration, Property & Housing",DERBY HOMES LTD,1175,06/08/2019,3249562,"22,986.00",0.00,Communities & Place,Travel and Food and Lodging and Entertai
Retained Housing Revenue Account,Retained Housing Revenue Account,"Regeneration, Property & Housing",DERBY HOMES LTD,1175,06/08/2019,3249562,"190,153.00",0.00,Communities & Place,Travel and Food and Lodging and Entertai
Retained Housing Revenue Account,Retained Housing Revenue Account,"Regeneration, Property & Housing",DERBY HOMES LTD,1175,06/08/2019,3249562,"965,399.00",0.00,Communities & Place,Travel and Food and Lodging and Entertai
Retained Housing Revenue Account,Retained Housing Revenue Account,"Regeneration, Property & Housing",DERBY HOMES LTD,1175,06/08/2019,3249562,"309,601.00",0.00,Communities & Place,Travel and Food and Lodging and Entertai
Neighbourhoods,Capital,Capital,DERBY HOMES LTD,1175,06/08/2019,3288973,"142,857.16",0.00,Planned Maintenance,Travel and Food and Lodging and Entertai
Learning & Inclusion - Schools Block,Learning & Inclusion - Schools Block,Schools Block,DERBY PRIDE ACADEMY,144370,06/08/2019,3293170,"2,244.00",0.00,N/A,N/A
Learning & Inclusion - Schools Block,Learning & Inclusion - Schools Block,Schools Block,DERBY PRIDE ACADEMY,144370,06/08/2019,3293171,"1,624.00",0.00,N/A,N/A
Commissioning,School Organisation & Provision,Non-Schools,DERBY SCHOOLS SOLUTIONS LIMITED,8266,06/08/2019,3293128,"1,414.58",0.00,N/A,N/A
Commissioning,School Organisation & Provision,Non-Schools,DERBY SCHOOLS SOLUTIONS LIMITED,8266,06/08/2019,3293128,"4,517.73",0.00,N/A,N/A
Commissioning,School Organisation & Provision,Non-Schools,DERBY SCHOOLS SOLUTIONS LIMITED,8266,06/08/2019,3293128,"6,923.11",0.00,N/A,N/A
Commissioning,School Organisation & Provision,Non-Schools,DERBY SCHOOLS SOLUTIONS LIMITED,8266,06/08/2019,3293128,"5,897.06",0.00,N/A,N/A
Commissioning,School Organisation & Provision,Non-Schools,DERBY SCHOOLS SOLUTIONS LIMITED,8266,06/08/2019,3293128,"3,872.74",0.00,N/A,N/A
Commissioning,School Organisation & Provision,Non-Schools,DERBY SCHOOLS SOLUTIONS LIMITED,8266,06/08/2019,3293129,"2,809.23",0.00,N/A,N/A
Commissioning,School Organisation & Provision,Non-Schools,DERBY SCHOOLS SOLUTIONS LIMITED,8266,06/08/2019,3293129,"2,973.46",0.00,N/A,N/A
Commissioning,School Organisation & Provision,Non-Schools,DERBY SCHOOLS SOLUTIONS LIMITED,8266,06/08/2019,3293129,"6,239.54",0.00,N/A,N/A
Commissioning,School Organisation & Provision,Non-Schools,DERBY SCHOOLS SOLUTIONS LIMITED,8266,06/08/2019,3293129,"3,158.03",0.00,N/A,N/A
Corporate,Corporate Resources Other,Corporate,DERBYSHIRE COUNTY COUNCIL,1042479,06/08/2019,3287732,"153,075.32",0.00,N/A,N/A
Corporate,Corporate Resources Other,Corporate,DERBYSHIRE COUNTY COUNCIL,1042478,06/08/2019,3287734,"111,708.07",0.00,N/A,N/A
Learning & Inclusion,Quality Standards and Performance,Non-Schools,DERBYSHIRE COUNTY COUNCIL,1042479,06/08/2019,3284033,"1,060.96",0.00,N/A,N/A
Commissioning - Schools Block,Recoupment - Independent Special School Fees,Schools Block,DERBYSHIRE COUNTY COUNCIL,1042479,06/08/2019,3283272,"20,624.55",0.00,N/A,N/A
General,Stores Road Depot & Fleet Management,"Strategic Partnerships, Planning & Streetpride",DERBYSHIRE COUNTY COUNCIL,1042479,06/08/2019,3293119,"2,514.93",0.00,N/A,N/A
Public Health,Adults,Public Health,DR BLACK & PARTNERS,406399,06/08/2019,3295000,660.00,0.00,N/A,N/A
Public Health,Adults,Public Health,DR MOSS & PARTNERS,407399,06/08/2019,3295001,"1,080.00",0.00,N/A,N/A
Public Health,Adults,Public Health,DR MOSS & PARTNERS,407399,06/08/2019,3295009,760.00,0.00,N/A,N/A
Public Health,Sexual Health,Public Health,DR MOSS & PARTNERS,407399,06/08/2019,3295029,813.00,0.00,N/A,N/A
Public Health,Adults,Public Health,DR YOUNG AND PARTNERS,409402,06/08/2019,3295002,740.00,0.00,N/A,N/A
Public Health,Sexual Health,Public Health,DR YOUNG AND PARTNERS,409402,06/08/2019,3295045,511.60,0.00,N/A,N/A
Grounds Maintenance & Cleansing,Grounds Maintenance,"Strategic Partnerships, Planning & Streetpride",ELITE LUBRICANTS LTD,1391,06/08/2019,3294266,701.10,0.00,Communities & Place,Chemicals including Bio Chemicals and Ga
Facilities Management,Accommodation Buildings,Strategic Services and Organisational Development,EMS SECURITY SERVICES LTD,471442,06/08/2019,3294956,938.07,0.00,Organisation & Governance,Defense and Law Enforcement and Security
Facilities Management,Accommodation Buildings,Strategic Services and Organisational Development,EMS SECURITY SERVICES LTD,471442,06/08/2019,3294957,"2,295.09",0.00,Organisation & Governance,Defense and Law Enforcement and Security
Facilities Management,Accommodation Buildings,Strategic Services and Organisational Development,EMS SECURITY SERVICES LTD,471442,06/08/2019,3295262,632.00,0.00,Organisation & Governance,Defense and Law Enforcement and Security
Leisure,Leisure,"Leisure, Culture and Tourism",EMS SECURITY SERVICES LTD,471442,06/08/2019,3276952,865.20,0.00,Communities & Place,Defense and Law Enforcement and Security
Leisure,Leisure,"Leisure, Culture and Tourism",EMS SECURITY SERVICES LTD,471442,06/08/2019,3294340,894.04,0.00,Communities & Place,Defense and Law Enforcement and Security
Leisure,Leisure,"Leisure, Culture and Tourism",EMS SECURITY SERVICES LTD,471442,06/08/2019,3294352,894.04,0.00,Communities & Place,Defense and Law Enforcement and Security
Traffic & Transportation,Parking Services,"Strategic Partnerships, Planning & Streetpride",EMS SECURITY SERVICES LTD,471442,06/08/2019,3294949,"1,657.44",0.00,Communities & Place,Defense and Law Enforcement and Security
General,Stores Road Depot & Fleet Management,"Strategic Partnerships, Planning & Streetpride",EMS SECURITY SERVICES LTD,471442,06/08/2019,3294341,"4,955.59",0.00,Communities & Place,Defense and Law Enforcement and Security
Traffic & Transportation,Parking Services,"Strategic Partnerships, Planning & Streetpride",EQUITA LTD,11254,06/08/2019,3294842,"3,475.82",0.00,N/A,N/A
"Occupational Health, Safety, Markets & Bereavement Services",Bereavement Services,"Communities, Environment & Regulatory Services",FACULTATIEVE TECHNOLOGIES,1528,06/08/2019,3294891,"5,249.04",0.00,Communities & Place,Politics and Civic Affairs Services
Property Design & Maintenance,Building - Repairs & Maintenance,"Regeneration, Property & Housing",FAITHFUL AND GOULD LIMITED,945490,06/08/2019,3294814,"5,062.50",0.00,N/A,N/A
Property Design & Maintenance,Building - Repairs & Maintenance,"Regeneration, Property & Housing",FAITHFUL AND GOULD LIMITED,945490,06/08/2019,3294826,"7,762.50",0.00,N/A,N/A
Neighbourhoods,Capital,Capital,FAITHFUL AND GOULD LIMITED,945490,06/08/2019,3294829,"1,685.00",0.00,N/A,N/A
Neighbourhoods,Capital,Capital,FAITHFUL AND GOULD LIMITED,945490,06/08/2019,3294830,"1,168.43",0.00,N/A,N/A
Neighbourhoods,Capital,Capital,FAITHFUL AND GOULD LIMITED,945490,06/08/2019,3294790,847.80,0.00,N/A,N/A
Democracy,Democracy,Governance and Assurance,FINANCIAL DATA MANAGEMENT LTD,1559,06/08/2019,3241216,"13,859.14",0.00,N/A,N/A
Democracy,Democracy,Governance and Assurance,FINANCIAL DATA MANAGEMENT LTD,1559,06/08/2019,3276276,"20,914.73",0.00,N/A,N/A
Democracy,Democracy,Governance and Assurance,FINANCIAL DATA MANAGEMENT LTD,1559,06/08/2019,3276276,"20,914.73",0.00,N/A,N/A
Integrated Services,Agency Placements,Non-Schools,FIVE RIVERS CHILDCARE LTD,125027,06/08/2019,3289179,"3,604.02",0.00,People Services - Children & Young People,Politics and Civic Affairs Services
Integrated Services,Agency Placements,Non-Schools,FIVE RIVERS CHILDCARE LTD,125027,06/08/2019,3289179,"2,789.67",0.00,People Services - Children & Young People,Politics and Civic Affairs Services
Integrated Services,Agency Placements,Non-Schools,FOSTERING DIMENSIONS LTD,887468,06/08/2019,3292650,"2,854.83",0.00,N/A,N/A
Regeneration Projects,Connect Project,"Regeneration, Property & Housing",FRANCOTYP POSTALIA LTD,833444,06/08/2019,3293185,"1,000.00",0.00,N/A,N/A
Neighbourhoods,Capital,Capital,GALLIFORD TRY PLC,990469,06/08/2019,3294977,"1,203,525.77",0.00,N/A,N/A
General,Stores Road Depot & Fleet Management,"Strategic Partnerships, Planning & Streetpride",GO PLANT FLEET SERVICES LTD,746443,06/08/2019,3294926,"4,101.05",0.00,N/A,N/A
Public Health,Drugs and Alcohol,Public Health,HABIB AHMED TA MEDINA CHEMIST,187659,06/08/2019,3295120,840.00,0.00,N/A,N/A
Public Health,Adults,Public Health,HAVEN MEDICAL CENTRE,408400,06/08/2019,3295006,920.00,0.00,N/A,N/A
Public Health,Adults,Public Health,HAVEN MEDICAL CENTRE,408400,06/08/2019,3295006,580.00,0.00,N/A,N/A
Strategic Asset Management and Estates,Strategic Asset Management and Estates,"Regeneration, Property & Housing",HAYS SPECIALIST RECRUITMENT LTD,1852,06/08/2019,3292732,"4,883.08",0.00,N/A,N/A
Strategic Asset Management and Estates,Strategic Asset Management and Estates,"Regeneration, Property & Housing",HAYS SPECIALIST RECRUITMENT LTD,1852,06/08/2019,3294846,"5,678.43",0.00,N/A,N/A
Strategic Asset Management and Estates,Strategic Asset Management and Estates,"Regeneration, Property & Housing",HAYS SPECIALIST RECRUITMENT LTD,1852,06/08/2019,3294861,"5,344.14",0.00,N/A,N/A
Integrated Services,Agency Placements,Non-Schools,HILLCREST CHILDRENS 2 LTD,822475,06/08/2019,3292766,"18,961.86",0.00,N/A,N/A
Integrated Services,Agency Placements,Non-Schools,HILLCREST CHILDRENS 2 LTD,822475,06/08/2019,3292768,"20,157.75",0.00,N/A,N/A
Integrated Services,Agency Placements,Non-Schools,HILLCREST CHILDRENS 2 LTD,822475,06/08/2019,3292769,"17,990.36",0.00,N/A,N/A
Integrated Services,Agency Placements,Non-Schools,HILLCREST CHILDRENS 2 LTD,822475,06/08/2019,3292772,"19,507.50",0.00,N/A,N/A
Social Care Activities,Home First - Social Care Activities,Home First,HOLDSWORTH FOODS,1111476,06/08/2019,3293162,527.75,0.00,N/A,N/A
Physical Support,Community Support - Physical Support,Community Support,HOME FROM HOME CARE SERVICES,388466,06/08/2019,3293428,793.88,0.00,N/A,N/A
Physical Support,Community Support - Physical Support,Community Support,HOME FROM HOME CARE SERVICES,388466,06/08/2019,3293429,"2,198.70",0.00,N/A,N/A
Physical Support,Community Support - Physical Support,Community Support,HOME FROM HOME CARE SERVICES,388466,06/08/2019,3293429,"3,024.12",0.00,N/A,N/A
Public Health,Adults,Public Health,HORIZON HEALTHCARE,1030472,06/08/2019,3295003,880.00,0.00,N/A,N/A
"Occupational Health, Safety, Markets & Bereavement Services",Bereavement Services,"Communities, Environment & Regulatory Services",IMPACT MARKETING & PUBLICITY LTD,2283,06/08/2019,3294892,995.00,0.00,Communities & Place,Editorial and Design and Graphic and Fin
Social Care Activities,Direct Services - Social Care Activities,Direct Services,IMPERIAL,2285,06/08/2019,3293172,944.04,0.00,People Services - Adults and Health,Industrial Cleaning Services
Refuse & Waste Management,Refuse Collection,"Strategic Partnerships, Planning & Streetpride",IVYGROVE DEVELOPMENTS LTD,69012,06/08/2019,3292738,"4,500.00",0.00,Communities & Place,Management and Business Professionals an
Adults Health and Housing,Capital,Capital,J A L ROOFING LTD,186824,06/08/2019,3294192,"20,800.00",0.00,Re-Roofing,Building and Construction and Maintenanc
Adults Health and Housing,Capital,Capital,J A L ROOFING LTD,186824,06/08/2019,3294192,"50,013.17",0.00,Re-Roofing,Building and Construction and Maintenanc
Adults Health and Housing,Capital,Capital,J A L ROOFING LTD,186824,06/08/2019,3294193,"1,489.80",0.00,Re-Roofing,Building and Construction and Maintenanc
Adults Health and Housing,Capital,Capital,J A L ROOFING LTD,186824,06/08/2019,3294193,"2,977.44",0.00,Re-Roofing,Building and Construction and Maintenanc
Communication and Consultation,Communication,Strategic Services and Organisational Development,JADU LTD,15857,06/08/2019,3293203,512.50,0.00,Organisation & Governance,Education and Training Services
Information Systems Support,Information Systems Support,Digital Services,JADU LTD,15857,06/08/2019,3293202,512.50,0.00,Organisation & Governance,Education and Training Services
Integrated Services,Agency Placements,Non-Schools,JAY FOSTERING,2148,06/08/2019,3292756,"3,058.42",0.00,People Services - Children & Young People,Politics and Civic Affairs Services
Integrated Services,Agency Placements,Non-Schools,JAY FOSTERING,2148,06/08/2019,3292763,"3,058.42",0.00,People Services - Children & Young People,Politics and Civic Affairs Services
Communication and Consultation,Communication,Strategic Services and Organisational Development,JOHN E WRIGHT & CO LTD,2190,06/08/2019,3292478,"1,415.50",0.00,Organisation & Governance,Printing and Photographic and Audio and
Communication and Consultation,Communication,Strategic Services and Organisational Development,JOHN E WRIGHT & CO LTD,2190,06/08/2019,3292478,"1,395.00",0.00,Organisation & Governance,Printing and Photographic and Audio and
Neighbourhoods,Capital,Capital,KBI UK LTD,995475,06/08/2019,3292800,"9,460.25",0.00,N/A,N/A
Neighbourhoods,Capital,Capital,KBI UK LTD,995475,06/08/2019,3292801,"12,594.85",0.00,N/A,N/A
Physical Support,Community Support - Physical Support,Community Support,LAM SERVICES LIMITED,900486,06/08/2019,3292741,"1,152.00",0.00,N/A,N/A
Commissioning - Schools Block,Recoupment - Independent Special School Fees,Schools Block,LEICESTER CITY COUNCIL,809451,06/08/2019,3255522,"20,393.33",0.00,N/A,N/A
Property Design & Maintenance,Building - Repairs & Maintenance,"Regeneration, Property & Housing",LIFT AND ENGINEERING SERVICES LIMITED,215432,06/08/2019,3294798,"5,897.15",0.00,N/A,N/A
Learning & Inclusion,Adult Learning - SFA,Non-Schools,LINK ICT SERVICES LTD,154331,06/08/2019,3294914,"3,200.00",0.00,N/A,N/A
Food & Safety & Trading Standards,Food & Safety,"Communities, Environment & Regulatory Services",LJJ CONSULTANCY SERVICES LIMITED,1103479,06/08/2019,3293199,"1,802.50",0.00,N/A,N/A
Public Health,Adults,Public Health,MACKLIN STREET SURGERY,406411,06/08/2019,3295008,560.00,0.00,N/A,N/A
Property Design & Maintenance,Building - Repairs & Maintenance,"Regeneration, Property & Housing",MANOR ELECTRICAL SERVICES,188116,06/08/2019,3294800,"2,933.00",0.00,N/A,N/A
Property Design & Maintenance,Building - Repairs & Maintenance,"Regeneration, Property & Housing",MARLOWE FIRE AND SECURITY LTD,749444,06/08/2019,3294815,594.00,0.00,N/A,N/A
Corporate,Corporate Resources Other,Corporate,MATRIX SCM LTD,822477,06/08/2019,3293212,"12,489.71",0.00,N/A,N/A
Physical Support,Community Support - Physical Support,Community Support,MEARS CARE LIMITED,1052472,06/08/2019,3293458,849.28,0.00,N/A,N/A
Physical Support,Community Support - Physical Support,Community Support,MEARS CARE LIMITED,1052472,06/08/2019,3293555,617.15,0.00,N/A,N/A
Physical Support,Community Support - Physical Support,Community Support,MEARS CARE LIMITED,1052472,06/08/2019,3293555,627.52,0.00,N/A,N/A
Support with Memory and Cognition,Community Support - Support with Memory and Cognition,Community Support,MEARS CARE LIMITED,1052472,06/08/2019,3293460,931.86,0.00,N/A,N/A
Support with Memory and Cognition,Community Support - Support with Memory and Cognition,Community Support,MEARS CARE LIMITED,1052472,06/08/2019,3293425,731.47,0.00,N/A,N/A
Support with Memory and Cognition,Community Support - Support with Memory and Cognition,Community Support,MEARS CARE LIMITED,1052472,06/08/2019,3293426,910.56,0.00,N/A,N/A
Support with Memory and Cognition,Community Support - Support with Memory and Cognition,Community Support,MEARS CARE LIMITED,1052472,06/08/2019,3293472,975.90,0.00,N/A,N/A
Neighbourhoods,Capital,Capital,MGB PLASTICS,1026472,06/08/2019,3293123,"5,702.00",0.00,N/A,N/A
Strategic Asset Management and Estates,Strategic Asset Management and Estates,"Regeneration, Property & Housing",MICHAEL PAGE INTERNATIONAL RECRUITMENT LTD,1089468,06/08/2019,3292889,"1,369.00",0.00,N/A,N/A
Non Delegated Schools Budget,Non Delegated School Expenditure,Schools Block,MURRAY PARK COMMUNITY SCHOOL,3446,06/08/2019,3290644,"118,433.33",0.00,People Services - Children & Young People,Organizations and Clubs
Public Health,Drugs and Alcohol,Public Health,N LAD LTD,189363,06/08/2019,3295095,778.00,0.00,N/A,N/A
Early Help & Children�s Safeguarding,Children In Care,Non-Schools,NAIDPROJECT LTD,1113477,06/08/2019,3294363,"5,637.76",0.00,N/A,N/A
Integrated Services,Agency Placements,Non-Schools,NATIONAL FOSTERING AGENCY,3496,06/08/2019,3292459,"4,281.30",0.00,People Services - Children & Young People,Organizations and Clubs
Learning Disability Support,Community Support - Learning Disability Support,Community Support,NATIONWIDE CARE SERVICES,471122,06/08/2019,3293532,702.24,0.00,N/A,N/A
Learning Disability Support,Community Support - Learning Disability Support,Community Support,NATIONWIDE CARE SERVICES,471122,06/08/2019,3293551,"1,009.14",0.00,N/A,N/A
Learning Disability Support,Community Support - Learning Disability Support,Community Support,NATIONWIDE CARE SERVICES,471122,06/08/2019,3293551,"1,009.14",0.00,N/A,N/A
Mental Health Support,Community Support - Mental Health Support,Community Support,NATIONWIDE CARE SERVICES,471122,06/08/2019,3293470,708.48,0.00,N/A,N/A
Physical Support,Community Support - Physical Support,Community Support,NATIONWIDE CARE SERVICES,471122,06/08/2019,3293453,664.49,0.00,N/A,N/A
Physical Support,Community Support - Physical Support,Community Support,NATIONWIDE CARE SERVICES,471122,06/08/2019,3293454,715.11,0.00,N/A,N/A
Physical Support,Community Support - Physical Support,Community Support,NATIONWIDE CARE SERVICES,471122,06/08/2019,3293455,"1,082.47",0.00,N/A,N/A
Physical Support,Community Support - Physical Support,Community Support,NATIONWIDE CARE SERVICES,471122,06/08/2019,3293456,"1,095.88",0.00,N/A,N/A
Physical Support,Community Support - Physical Support,Community Support,NATIONWIDE CARE SERVICES,471122,06/08/2019,3293481,963.47,0.00,N/A,N/A
Physical Support,Community Support - Physical Support,Community Support,NATIONWIDE CARE SERVICES,471122,06/08/2019,3293486,727.90,0.00,N/A,N/A
Physical Support,Community Support - Physical Support,Community Support,NATIONWIDE CARE SERVICES,471122,06/08/2019,3293488,"1,099.78",0.00,N/A,N/A
Physical Support,Community Support - Physical Support,Community Support,NATIONWIDE CARE SERVICES,471122,06/08/2019,3293523,"1,040.86",0.00,N/A,N/A
Physical Support,Community Support - Physical Support,Community Support,NATIONWIDE CARE SERVICES,471122,06/08/2019,3293523,"1,040.86",0.00,N/A,N/A
Physical Support,Community Support - Physical Support,Community Support,NATIONWIDE CARE SERVICES,471122,06/08/2019,3293418,534.14,0.00,N/A,N/A
Physical Support,Community Support - Physical Support,Community Support,NATIONWIDE CARE SERVICES,471122,06/08/2019,3293419,641.73,0.00,N/A,N/A
Physical Support,Community Support - Physical Support,Community Support,NATIONWIDE CARE SERVICES,471122,06/08/2019,3293420,963.30,0.00,N/A,N/A
Physical Support,Community Support - Physical Support,Community Support,NATIONWIDE CARE SERVICES,471122,06/08/2019,3293420,963.30,0.00,N/A,N/A
Physical Support,Community Support - Physical Support,Community Support,NATIONWIDE CARE SERVICES,471122,06/08/2019,3293421,"1,006.56",0.00,N/A,N/A
Physical Support,Community Support - Physical Support,Community Support,NATIONWIDE CARE SERVICES,471122,06/08/2019,3293422,"1,121.78",0.00,N/A,N/A
Physical Support,Community Support - Physical Support,Community Support,NATIONWIDE CARE SERVICES,471122,06/08/2019,3293422,"1,121.78",0.00,N/A,N/A
Physical Support,Community Support - Physical Support,Community Support,NATIONWIDE CARE SERVICES,471122,06/08/2019,3293436,533.72,0.00,N/A,N/A
Physical Support,Community Support - Physical Support,Community Support,NATIONWIDE CARE SERVICES,471122,06/08/2019,3293437,722.88,0.00,N/A,N/A
Physical Support,Community Support - Physical Support,Community Support,NATIONWIDE CARE SERVICES,471122,06/08/2019,3293438,837.16,0.00,N/A,N/A
Physical Support,Community Support - Physical Support,Community Support,NATIONWIDE CARE SERVICES,471122,06/08/2019,3293465,659.80,0.00,N/A,N/A
Physical Support,Community Support - Physical Support,Community Support,NATIONWIDE CARE SERVICES,471122,06/08/2019,3293468,891.03,0.00,N/A,N/A
Physical Support,Community Support - Physical Support,Community Support,NATIONWIDE CARE SERVICES,471122,06/08/2019,3293480,628.58,0.00,N/A,N/A
Physical Support,Community Support - Physical Support,Community Support,NATIONWIDE CARE SERVICES,471122,06/08/2019,3293504,539.69,0.00,N/A,N/A
Physical Support,Community Support - Physical Support,Community Support,NATIONWIDE CARE SERVICES,471122,06/08/2019,3293506,503.83,0.00,N/A,N/A
Physical Support,Community Support - Physical Support,Community Support,NATIONWIDE CARE SERVICES,471122,06/08/2019,3293507,619.56,0.00,N/A,N/A
Physical Support,Community Support - Physical Support,Community Support,NATIONWIDE CARE SERVICES,471122,06/08/2019,3293508,762.28,0.00,N/A,N/A
Physical Support,Community Support - Physical Support,Community Support,NATIONWIDE CARE SERVICES,471122,06/08/2019,3293509,826.35,0.00,N/A,N/A
Physical Support,Community Support - Physical Support,Community Support,NATIONWIDE CARE SERVICES,471122,06/08/2019,3293510,937.92,0.00,N/A,N/A
Physical Support,Community Support - Physical Support,Community Support,NATIONWIDE CARE SERVICES,471122,06/08/2019,3293510,937.92,0.00,N/A,N/A
Physical Support,Community Support - Physical Support,Community Support,NATIONWIDE CARE SERVICES,471122,06/08/2019,3293511,941.48,0.00,N/A,N/A
Physical Support,Community Support - Physical Support,Community Support,NATIONWIDE CARE SERVICES,471122,06/08/2019,3293512,"1,041.46",0.00,N/A,N/A
Physical Support,Community Support - Physical Support,Community Support,NATIONWIDE CARE SERVICES,471122,06/08/2019,3293513,"1,047.01",0.00,N/A,N/A
Physical Support,Community Support - Physical Support,Community Support,NATIONWIDE CARE SERVICES,471122,06/08/2019,3293513,"1,047.01",0.00,N/A,N/A
Physical Support,Community Support - Physical Support,Community Support,NATIONWIDE CARE SERVICES,471122,06/08/2019,3293526,503.41,0.00,N/A,N/A
Physical Support,Community Support - Physical Support,Community Support,NATIONWIDE CARE SERVICES,471122,06/08/2019,3293527,520.03,0.00,N/A,N/A
Physical Support,Community Support - Physical Support,Community Support,NATIONWIDE CARE SERVICES,471122,06/08/2019,3293528,824.26,0.00,N/A,N/A
Physical Support,Community Support - Physical Support,Community Support,NATIONWIDE CARE SERVICES,471122,06/08/2019,3293530,"1,028.36",0.00,N/A,N/A
Physical Support,Community Support - Physical Support,Community Support,NATIONWIDE CARE SERVICES,471122,06/08/2019,3293543,697.00,0.00,N/A,N/A
Physical Support,Community Support - Physical Support,Community Support,NATIONWIDE CARE SERVICES,471122,06/08/2019,3293544,730.20,0.00,N/A,N/A
Physical Support,Community Support - Physical Support,Community Support,NATIONWIDE CARE SERVICES,471122,06/08/2019,3293545,748.80,0.00,N/A,N/A
Physical Support,Community Support - Physical Support,Community Support,NATIONWIDE CARE SERVICES,471122,06/08/2019,3293546,797.76,0.00,N/A,N/A
Physical Support,Community Support - Physical Support,Community Support,NATIONWIDE CARE SERVICES,471122,06/08/2019,3293547,858.86,0.00,N/A,N/A
Physical Support,Community Support - Physical Support,Community Support,NATIONWIDE CARE SERVICES,471122,06/08/2019,3293548,882.48,0.00,N/A,N/A
Physical Support,Community Support - Physical Support,Community Support,NATIONWIDE CARE SERVICES,471122,06/08/2019,3293549,"1,192.69",0.00,N/A,N/A
Physical Support,Community Support - Physical Support,Community Support,NATIONWIDE CARE SERVICES,471122,06/08/2019,3293550,"1,064.54",0.00,N/A,N/A
Mental Health Support,Mental Health - Mental Health Support,Mental Health,NATIONWIDE CARE SERVICES,471122,06/08/2019,3293489,701.08,0.00,N/A,N/A
Mental Health Support,Mental Health - Mental Health Support,Mental Health,NATIONWIDE CARE SERVICES,471122,06/08/2019,3293424,590.95,0.00,N/A,N/A
Mental Health Support,Mental Health - Mental Health Support,Mental Health,NATIONWIDE CARE SERVICES,471122,06/08/2019,3293516,860.77,0.00,N/A,N/A
General,Stores Road Depot & Fleet Management,"Strategic Partnerships, Planning & Streetpride",ND BROWN LTD,93859,06/08/2019,3293111,"1,180.00",0.00,Communities & Place,Commercial and Military and Private Vehi
General,Stores Road Depot & Fleet Management,"Strategic Partnerships, Planning & Streetpride",ND BROWN LTD,93859,06/08/2019,3293112,"1,700.00",0.00,Communities & Place,Commercial and Military and Private Vehi
Integrated Services,Agency Placements,Non-Schools,NEW CHAPTERS FOSTERCARE LTD,872456,06/08/2019,3272046,"3,594.76",0.00,N/A,N/A
Libraries,Libraries,"Leisure, Culture and Tourism",NEWS TEAM GROUP LTD,882474,06/08/2019,3294311,880.80,0.00,N/A,N/A
Integrated Services,Agency Placements,Non-Schools,NEXUS FOSTERING LTD,189362,06/08/2019,3292253,"3,360.00",0.00,People Services - Children & Young People,Politics and Civic Affairs Services
Public Health,Adults,Public Health,NHS DERBY AND DERBYSHIRE CCG,1112514,06/08/2019,3289059,"3,569.26",0.00,N/A,N/A
Obsolete Codes,Capital,Capital,NMCN PLC,1013472,06/08/2019,3283332,"276,500.49",0.00,N/A,N/A
Learning & Inclusion,Inclusion & Intervention,Non-Schools,NOEL BAKER ACADEMY,595442,06/08/2019,3292979,"17,672.00",0.00,N/A,N/A
Performance and Intelligence,Performance and Intelligence,Strategic Services and Organisational Development,NOTTINGHAM CITY COUNCIL,3638,06/08/2019,3259859,"9,500.00",0.00,Organisation & Governance,Organizations and Clubs
Performance and Intelligence,Performance and Intelligence,Strategic Services and Organisational Development,NOTTINGHAM CITY COUNCIL,3638,06/08/2019,3259859,"9,500.00",0.00,Organisation & Governance,Organizations and Clubs
Traffic & Transportation,Traffic & Transportation (inc Integrated Pass Transport),"Strategic Partnerships, Planning & Streetpride",NOTTINGHAM CITY COUNCIL,3638,06/08/2019,3276913,"7,686.00",0.00,Communities & Place,Organizations and Clubs
Integrated Services,Workforce Learning & Development,Non-Schools,NOTTINGHAM CITY COUNCIL,3638,06/08/2019,3292938,"2,880.00",0.00,People Services - Children & Young People,Organizations and Clubs
Integrated Services,Workforce Learning & Development,Non-Schools,NOTTINGHAM CITY COUNCIL,3638,06/08/2019,3292938,"1,026.00",0.00,People Services - Children & Young People,Organizations and Clubs
Children and Young People,Capital,Capital,NOTTINGHAM CITY COUNCIL,3638,06/08/2019,3267338,"1,250.00",0.00,Market Hall Refurbishments,Organizations and Clubs
Neighbourhoods,Capital,Capital,NOTTINGHAM CITY COUNCIL,3638,06/08/2019,3267338,"1,250.00",0.00,Becket Well,Organizations and Clubs
Neighbourhoods,Capital,Capital,NOTTINGHAM CITY COUNCIL,3638,06/08/2019,3267338,"1,250.00",0.00,N/A,N/A
Neighbourhoods,Capital,Capital,NOTTINGHAM CITY COUNCIL,3638,06/08/2019,3267338,"1,250.00",0.00,N/A,N/A
Neighbourhoods,Capital,Capital,NOTTINGHAM CITY COUNCIL,3638,06/08/2019,3277467,"31,288.00",0.00,N/A,N/A
Neighbourhoods,Capital,Capital,NOTTINGHAM CITY COUNCIL,3638,06/08/2019,3277467,"31,288.00",0.00,N/A,N/A
Regeneration Projects,Regeneration Projects,"Regeneration, Property & Housing",O HEAP AND SON DERBY LTD,992491,06/08/2019,3294788,"1,167.73",0.00,N/A,N/A
Physical Support,Community Support - Physical Support,Community Support,OAKLANDS SUPPORT LIMITED,1056472,06/08/2019,3293094,685.13,0.00,N/A,N/A
Commissioning - Schools Block,Recoupment - Independent Special School Fees,Schools Block,ON TRACK EDUCATION SERVICES LTD,789450,06/08/2019,3294874,"2,726.50",0.00,N/A,N/A
Commissioning - Schools Block,Recoupment - Independent Special School Fees,Schools Block,ON TRACK EDUCATION SERVICES LTD,789450,06/08/2019,3294877,"2,726.50",0.00,N/A,N/A
Commissioning - Schools Block,Recoupment - Independent Special School Fees,Schools Block,ON TRACK EDUCATION SERVICES LTD,789450,06/08/2019,3294879,"2,726.50",0.00,N/A,N/A
General,Stores Road Depot & Fleet Management,"Strategic Partnerships, Planning & Streetpride",PACE FUELCARE,474148,06/08/2019,3290598,"5,622.00",0.00,N/A,N/A
General,Stores Road Depot & Fleet Management,"Strategic Partnerships, Planning & Streetpride",PACE FUELCARE,997487,06/08/2019,3294235,560.00,0.00,N/A,N/A
General,Stores Road Depot & Fleet Management,"Strategic Partnerships, Planning & Streetpride",PACE FUELCARE,997487,06/08/2019,3294237,"36,288.00",0.00,N/A,N/A
General,Stores Road Depot & Fleet Management,"Strategic Partnerships, Planning & Streetpride",PACE FUELCARE,997487,06/08/2019,3294923,559.50,0.00,N/A,N/A
Integrated Services,Agency Placements,Non-Schools,PARALLEL PARENTS,7822,06/08/2019,3088750,556.45,0.00,People Services - Children & Young People,Politics and Civic Affairs Services
Integrated Services,Agency Placements,Non-Schools,PARK FOSTER CARE LTD,890473,06/08/2019,3294903,"3,528.00",0.00,N/A,N/A
Integrated Services,Agency Placements,Non-Schools,PARK FOSTER CARE LTD,890473,06/08/2019,3294913,"3,214.20",0.00,N/A,N/A
Integrated Services,Agency Placements,Non-Schools,PATHWAY CARE SOLUTIONS 2 LTD,892485,06/08/2019,3294897,"1,244.29",0.00,N/A,N/A
Integrated Services,Agency Placements,Non-Schools,PATHWAY CARE SOLUTIONS 2 LTD,892485,06/08/2019,3294906,"15,013.52",0.00,N/A,N/A
Integrated Services,Agency Placements,Non-Schools,PATHWAY CARE SOLUTIONS 2 LTD,892485,06/08/2019,3294909,"15,477.86",0.00,N/A,N/A
Customer Management,Welfare,Strategic Services and Organisational Development,PAYPOINT NETWORK LIMITED,995472,06/08/2019,3294831,837.10,0.00,N/A,N/A
Early Help & Children�s Safeguarding,Children In Care,Non-Schools,POSTURITE UK LTD,7572,06/08/2019,3294274,824.20,0.00,People Services - Children & Young People,Furniture and Furnishings
Social Care Activities,Home First - Social Care Activities,Home First,PRISM MEDICAL UK,899482,06/08/2019,3294309,"2,558.00",0.00,N/A,N/A
Adults Health and Housing,Capital,Capital,PRISM MEDICAL UK WESTHOLME DIVISION,126874,06/08/2019,3292815,"4,242.72",0.00,Disabled Facilities Grant 96 Act,Medical Equipment and Accessories and Su
Adults Health and Housing,Capital,Capital,PRISM MEDICAL UK WESTHOLME DIVISION,126874,06/08/2019,3294527,"4,803.06",0.00,Disabled Facilities Grant 96 Act,Medical Equipment and Accessories and Su
Adults Health and Housing,Capital,Capital,PRISM MEDICAL UK WESTHOLME DIVISION,126874,06/08/2019,3294785,"7,667.24",0.00,Disability Adaptions,Medical Equipment and Accessories and Su
Adults Health and Housing,Capital,Capital,PRISM MEDICAL UK WESTHOLME DIVISION,126874,06/08/2019,3294784,"1,399.00",0.00,Disability Adaptions,Medical Equipment and Accessories and Su
"Information, Computing & Technology","Information, Computing & Technology",Digital Services,PRO DBA LTD,889471,06/08/2019,3293200,"2,891.75",0.00,N/A,N/A
"Information, Computing & Technology","Information, Computing & Technology",Digital Services,PRO DBA LTD,889471,06/08/2019,3293200,"2,393.17",0.00,N/A,N/A
Early Help & Children�s Safeguarding,Children In Care,Non-Schools,REDACTED - PERSONAL DATA,425400,06/08/2019,3293882,614.05,0.00,N/A,N/A
Early Help & Children�s Safeguarding,Children In Care,Non-Schools,REDACTED - PERSONAL DATA,401397,06/08/2019,3293958,655.50,0.00,N/A,N/A
Early Help & Children�s Safeguarding,Children In Care,Non-Schools,REDACTED - PERSONAL DATA,401397,06/08/2019,3293958,655.50,0.00,N/A,N/A
Commissioning,Commissioned Providers,Non-Schools,REDACTED - PERSONAL DATA,1111469,06/08/2019,3293264,560.00,0.00,N/A,N/A
Shared Lives,Community Support - Shared Lives,Community Support,REDACTED - PERSONAL DATA,496461,06/08/2019,3294588,603.48,0.00,N/A,N/A
Shared Lives,Community Support - Shared Lives,Community Support,REDACTED - PERSONAL DATA,496478,06/08/2019,3294683,"1,460.44",0.00,N/A,N/A
Shared Lives,Community Support - Shared Lives,Community Support,REDACTED - PERSONAL DATA,496478,06/08/2019,3294709,"1,460.44",0.00,N/A,N/A
Shared Lives,Community Support - Shared Lives,Community Support,REDACTED - PERSONAL DATA,496477,06/08/2019,3294659,703.92,0.00,N/A,N/A
Shared Lives,Community Support - Shared Lives,Community Support,REDACTED - PERSONAL DATA,537466,06/08/2019,3294544,"3,906.88",0.00,N/A,N/A
Shared Lives,Community Support - Shared Lives,Community Support,REDACTED - PERSONAL DATA,929470,06/08/2019,3294708,"2,046.00",0.00,N/A,N/A
Shared Lives,Community Support - Shared Lives,Community Support,REDACTED - PERSONAL DATA,1037473,06/08/2019,3294726,828.48,0.00,N/A,N/A
Shared Lives,Community Support - Shared Lives,Community Support,REDACTED - PERSONAL DATA,1037473,06/08/2019,3294670,603.48,0.00,N/A,N/A
Shared Lives,Community Support - Shared Lives,Community Support,REDACTED - PERSONAL DATA,496455,06/08/2019,3294706,"1,132.44",0.00,N/A,N/A
Shared Lives,Community Support - Shared Lives,Community Support,REDACTED - PERSONAL DATA,496455,06/08/2019,3294733,"1,085.16",0.00,N/A,N/A
Shared Lives,Community Support - Shared Lives,Community Support,REDACTED - PERSONAL DATA,496484,06/08/2019,3294673,"1,460.44",0.00,N/A,N/A
Shared Lives,Community Support - Shared Lives,Community Support,REDACTED - PERSONAL DATA,496475,06/08/2019,3294720,"1,460.44",0.00,N/A,N/A
Shared Lives,Community Support - Shared Lives,Community Support,REDACTED - PERSONAL DATA,496486,06/08/2019,3294578,"1,460.44",0.00,N/A,N/A
Shared Lives,Community Support - Shared Lives,Community Support,REDACTED - PERSONAL DATA,496469,06/08/2019,3294679,"1,460.44",0.00,N/A,N/A
Shared Lives,Community Support - Shared Lives,Community Support,REDACTED - PERSONAL DATA,496469,06/08/2019,3294680,"1,460.44",0.00,N/A,N/A
Shared Lives,Community Support - Shared Lives,Community Support,REDACTED - PERSONAL DATA,1022474,06/08/2019,3294669,"1,460.44",0.00,N/A,N/A
Shared Lives,Community Support - Shared Lives,Community Support,REDACTED - PERSONAL DATA,560446,06/08/2019,3294570,865.48,0.00,N/A,N/A
Shared Lives,Community Support - Shared Lives,Community Support,REDACTED - PERSONAL DATA,785446,06/08/2019,3294534,"1,460.44",0.00,N/A,N/A
Shared Lives,Community Support - Shared Lives,Community Support,REDACTED - PERSONAL DATA,496467,06/08/2019,3294739,"1,460.44",0.00,N/A,N/A
Shared Lives,Community Support - Shared Lives,Community Support,REDACTED - PERSONAL DATA,496468,06/08/2019,3294647,"1,195.96",0.00,N/A,N/A
Shared Lives,Community Support - Shared Lives,Community Support,REDACTED - PERSONAL DATA,496445,06/08/2019,3294529,"1,460.44",0.00,N/A,N/A
Shared Lives,Community Support - Shared Lives,Community Support,REDACTED - PERSONAL DATA,496445,06/08/2019,3294665,603.48,0.00,N/A,N/A
Shared Lives,Community Support - Shared Lives,Community Support,REDACTED - PERSONAL DATA,883472,06/08/2019,3294600,603.48,0.00,N/A,N/A
Shared Lives,Community Support - Shared Lives,Community Support,REDACTED - PERSONAL DATA,502439,06/08/2019,3294590,603.48,0.00,N/A,N/A
Social Care Activities,Community Support - Social Care Activities,Community Support,REDACTED - PERSONAL DATA,12,06/08/2019,3293233,875.12,0.00,N/A,N/A
Social Care Activities,Community Support - Social Care Activities,Community Support,REDACTED - PERSONAL DATA,12,06/08/2019,3294982,780.44,0.00,N/A,N/A
Learning Disability Support,Direct Services - Learning Disability Support,Direct Services,REDACTED - PERSONAL DATA,496494,06/08/2019,3294595,603.48,0.00,N/A,N/A
Early Help & Children�s Safeguarding,Integrated and Safeguarding Services Locality 2,Non-Schools,REDACTED - PERSONAL DATA,248567,06/08/2019,3293585,"2,541.67",0.00,N/A,N/A
Early Help & Children�s Safeguarding,Integrated and Safeguarding Services Locality 2,Non-Schools,REDACTED - PERSONAL DATA,248567,06/08/2019,3293585,"2,541.67",0.00,N/A,N/A
Early Help & Children�s Safeguarding,Integrated and Safeguarding Services Locality 2,Non-Schools,REDACTED - PERSONAL DATA,248567,06/08/2019,3293585,"2,541.67",0.00,N/A,N/A
Early Help & Children�s Safeguarding,Integrated and Safeguarding Services Locality 3/4,Non-Schools,REDACTED - PERSONAL DATA,1042470,06/08/2019,3293791,"2,268.76",0.00,N/A,N/A
Integrated Commissioning,Integrated Commissioning,Commissioning,REDACTED - PERSONAL DATA,1115469,06/08/2019,3294722,754.32,0.00,N/A,N/A
Integrated Commissioning,Integrated Commissioning,Commissioning,REDACTED - PERSONAL DATA,927477,06/08/2019,3294536,754.32,0.00,N/A,N/A
"Environmental Protection, Licensing, Housing",Licensing,"Communities, Environment & Regulatory Services",REDACTED - PERSONAL DATA,12,06/08/2019,3292620,"1,800.00",0.00,N/A,N/A
Mental Health Support,Mental Health - Mental Health Support,Mental Health,REDACTED - PERSONAL DATA,496477,06/08/2019,3294630,603.48,0.00,N/A,N/A
Mental Health Support,Mental Health - Mental Health Support,Mental Health,REDACTED - PERSONAL DATA,496467,06/08/2019,3294688,"1,680.44",0.00,N/A,N/A
Community Safety and Integration,Partnerships,"Communities, Environment & Regulatory Services",REDACTED - PERSONAL DATA,531444,06/08/2019,3294308,"20,000.00",0.00,N/A,N/A
Traffic & Transportation,Traffic & Transportation (inc Integrated Pass Transport),"Strategic Partnerships, Planning & Streetpride",REDACTED - PERSONAL DATA,124,06/08/2019,3294478,"1,292.00",0.00,N/A,N/A
Traffic & Transportation,Traffic & Transportation (inc Integrated Pass Transport),"Strategic Partnerships, Planning & Streetpride",REDACTED - PERSONAL DATA,268421,06/08/2019,3294491,"1,305.00",0.00,N/A,N/A
Traffic & Transportation,Traffic & Transportation (inc Integrated Pass Transport),"Strategic Partnerships, Planning & Streetpride",REDACTED - PERSONAL DATA,268421,06/08/2019,3294489,684.00,0.00,N/A,N/A
Traffic & Transportation,Traffic & Transportation (inc Integrated Pass Transport),"Strategic Partnerships, Planning & Streetpride",REDACTED - PERSONAL DATA,118391,06/08/2019,3294477,"1,080.00",0.00,N/A,N/A
Traffic & Transportation,Traffic & Transportation (inc Integrated Pass Transport),"Strategic Partnerships, Planning & Streetpride",REDACTED - PERSONAL DATA,631443,06/08/2019,3294482,669.06,0.00,N/A,N/A
Traffic & Transportation,Traffic & Transportation (inc Integrated Pass Transport),"Strategic Partnerships, Planning & Streetpride",REDACTED - PERSONAL DATA,407411,06/08/2019,3294483,"1,595.00",0.00,N/A,N/A
Traffic & Transportation,Traffic & Transportation (inc Integrated Pass Transport),"Strategic Partnerships, Planning & Streetpride",REDACTED - PERSONAL DATA,113035,06/08/2019,3294433,"1,020.00",0.00,N/A,N/A
Traffic & Transportation,Traffic & Transportation (inc Integrated Pass Transport),"Strategic Partnerships, Planning & Streetpride",REDACTED - PERSONAL DATA,113016,06/08/2019,3294448,"1,116.00",0.00,N/A,N/A
Traffic & Transportation,Traffic & Transportation (inc Integrated Pass Transport),"Strategic Partnerships, Planning & Streetpride",REDACTED - PERSONAL DATA,113031,06/08/2019,3294522,"1,052.60",0.00,N/A,N/A
Traffic & Transportation,Traffic & Transportation (inc Integrated Pass Transport),"Strategic Partnerships, Planning & Streetpride",REDACTED - PERSONAL DATA,113031,06/08/2019,3294479,799.20,0.00,N/A,N/A
Traffic & Transportation,Traffic & Transportation (inc Integrated Pass Transport),"Strategic Partnerships, Planning & Streetpride",REDACTED - PERSONAL DATA,143381,06/08/2019,3294466,"1,185.00",0.00,N/A,N/A
Traffic & Transportation,Traffic & Transportation (inc Integrated Pass Transport),"Strategic Partnerships, Planning & Streetpride",REDACTED - PERSONAL DATA,813443,06/08/2019,3294437,"1,024.32",0.00,N/A,N/A
Traffic & Transportation,Traffic & Transportation (inc Integrated Pass Transport),"Strategic Partnerships, Planning & Streetpride",REDACTED - PERSONAL DATA,1059477,06/08/2019,3294498,848.61,0.00,N/A,N/A
Traffic & Transportation,Traffic & Transportation (inc Integrated Pass Transport),"Strategic Partnerships, Planning & Streetpride",REDACTED - PERSONAL DATA,255399,06/08/2019,3294505,670.14,0.00,N/A,N/A
Traffic & Transportation,Traffic & Transportation (inc Integrated Pass Transport),"Strategic Partnerships, Planning & Streetpride",REDACTED - PERSONAL DATA,633447,06/08/2019,3294469,"1,058.40",0.00,N/A,N/A
Traffic & Transportation,Traffic & Transportation (inc Integrated Pass Transport),"Strategic Partnerships, Planning & Streetpride",REDACTED - PERSONAL DATA,113041,06/08/2019,3294444,"1,170.00",0.00,N/A,N/A
Traffic & Transportation,Traffic & Transportation (inc Integrated Pass Transport),"Strategic Partnerships, Planning & Streetpride",REDACTED - PERSONAL DATA,113060,06/08/2019,3294514,"1,935.00",0.00,N/A,N/A
Traffic & Transportation,Traffic & Transportation (inc Integrated Pass Transport),"Strategic Partnerships, Planning & Streetpride",REDACTED - PERSONAL DATA,113057,06/08/2019,3294432,680.00,0.00,N/A,N/A
Traffic & Transportation,Traffic & Transportation (inc Integrated Pass Transport),"Strategic Partnerships, Planning & Streetpride",REDACTED - PERSONAL DATA,650452,06/08/2019,3294484,529.20,0.00,N/A,N/A
Traffic & Transportation,Traffic & Transportation (inc Integrated Pass Transport),"Strategic Partnerships, Planning & Streetpride",REDACTED - PERSONAL DATA,113018,06/08/2019,3294428,"1,042.20",0.00,N/A,N/A
Traffic & Transportation,Traffic & Transportation (inc Integrated Pass Transport),"Strategic Partnerships, Planning & Streetpride",REDACTED - PERSONAL DATA,221423,06/08/2019,3294493,"1,242.00",0.00,N/A,N/A
Traffic & Transportation,Traffic & Transportation (inc Integrated Pass Transport),"Strategic Partnerships, Planning & Streetpride",REDACTED - PERSONAL DATA,113135,06/08/2019,3294481,515.16,0.00,N/A,N/A
Traffic & Transportation,Traffic & Transportation (inc Integrated Pass Transport),"Strategic Partnerships, Planning & Streetpride",REDACTED - PERSONAL DATA,113056,06/08/2019,3294463,"1,512.00",0.00,N/A,N/A
Traffic & Transportation,Traffic & Transportation (inc Integrated Pass Transport),"Strategic Partnerships, Planning & Streetpride",REDACTED - PERSONAL DATA,278398,06/08/2019,3294486,"1,564.00",0.00,N/A,N/A
Traffic & Transportation,Traffic & Transportation (inc Integrated Pass Transport),"Strategic Partnerships, Planning & Streetpride",REDACTED - PERSONAL DATA,113088,06/08/2019,3294474,"1,491.00",0.00,N/A,N/A
Traffic & Transportation,Traffic & Transportation (inc Integrated Pass Transport),"Strategic Partnerships, Planning & Streetpride",REDACTED - PERSONAL DATA,126428,06/08/2019,3294506,584.64,0.00,N/A,N/A
Traffic & Transportation,Traffic & Transportation (inc Integrated Pass Transport),"Strategic Partnerships, Planning & Streetpride",REDACTED - PERSONAL DATA,904480,06/08/2019,3294423,792.00,0.00,N/A,N/A
Traffic & Transportation,Traffic & Transportation (inc Integrated Pass Transport),"Strategic Partnerships, Planning & Streetpride",REDACTED - PERSONAL DATA,914471,06/08/2019,3294511,"1,832.60",0.00,N/A,N/A
Traffic & Transportation,Traffic & Transportation (inc Integrated Pass Transport),"Strategic Partnerships, Planning & Streetpride",REDACTED - PERSONAL DATA,118398,06/08/2019,3294434,"3,004.24",0.00,N/A,N/A
Traffic & Transportation,Traffic & Transportation (inc Integrated Pass Transport),"Strategic Partnerships, Planning & Streetpride",REDACTED - PERSONAL DATA,118398,06/08/2019,3294452,"2,172.65",0.00,N/A,N/A
Traffic & Transportation,Traffic & Transportation (inc Integrated Pass Transport),"Strategic Partnerships, Planning & Streetpride",REDACTED - PERSONAL DATA,118398,06/08/2019,3294453,"1,889.24",0.00,N/A,N/A
Traffic & Transportation,Traffic & Transportation (inc Integrated Pass Transport),"Strategic Partnerships, Planning & Streetpride",REDACTED - PERSONAL DATA,118398,06/08/2019,3294454,607.10,0.00,N/A,N/A
Traffic & Transportation,Traffic & Transportation (inc Integrated Pass Transport),"Strategic Partnerships, Planning & Streetpride",REDACTED - PERSONAL DATA,118398,06/08/2019,3294424,"3,186.11",0.00,N/A,N/A
Traffic & Transportation,Traffic & Transportation (inc Integrated Pass Transport),"Strategic Partnerships, Planning & Streetpride",REDACTED - PERSONAL DATA,118398,06/08/2019,3294517,"1,070.08",0.00,N/A,N/A
Traffic & Transportation,Traffic & Transportation (inc Integrated Pass Transport),"Strategic Partnerships, Planning & Streetpride",REDACTED - PERSONAL DATA,118398,06/08/2019,3294468,"3,619.50",0.00,N/A,N/A
Traffic & Transportation,Traffic & Transportation (inc Integrated Pass Transport),"Strategic Partnerships, Planning & Streetpride",REDACTED - PERSONAL DATA,424412,06/08/2019,3294502,"1,216.55",0.00,N/A,N/A
Traffic & Transportation,Traffic & Transportation (inc Integrated Pass Transport),"Strategic Partnerships, Planning & Streetpride",REDACTED - PERSONAL DATA,872443,06/08/2019,3294446,"1,035.00",0.00,N/A,N/A
Traffic & Transportation,Traffic & Transportation (inc Integrated Pass Transport),"Strategic Partnerships, Planning & Streetpride",REDACTED - PERSONAL DATA,260442,06/08/2019,3294519,"1,297.44",0.00,N/A,N/A
Traffic & Transportation,Traffic & Transportation (inc Integrated Pass Transport),"Strategic Partnerships, Planning & Streetpride",REDACTED - PERSONAL DATA,113004,06/08/2019,3294475,"1,292.00",0.00,N/A,N/A
Traffic & Transportation,Traffic & Transportation (inc Integrated Pass Transport),"Strategic Partnerships, Planning & Streetpride",REDACTED - PERSONAL DATA,113032,06/08/2019,3294503,"1,837.98",0.00,N/A,N/A
Traffic & Transportation,Traffic & Transportation (inc Integrated Pass Transport),"Strategic Partnerships, Planning & Streetpride",REDACTED - PERSONAL DATA,406408,06/08/2019,3294439,"1,105.00",0.00,N/A,N/A
Traffic & Transportation,Traffic & Transportation (inc Integrated Pass Transport),"Strategic Partnerships, Planning & Streetpride",REDACTED - PERSONAL DATA,113027,06/08/2019,3294476,"1,286.05",0.00,N/A,N/A
Traffic & Transportation,Traffic & Transportation (inc Integrated Pass Transport),"Strategic Partnerships, Planning & Streetpride",REDACTED - PERSONAL DATA,969477,06/08/2019,3294431,"1,538.68",0.00,N/A,N/A
Traffic & Transportation,Traffic & Transportation (inc Integrated Pass Transport),"Strategic Partnerships, Planning & Streetpride",REDACTED - PERSONAL DATA,969477,06/08/2019,3294449,"2,640.00",0.00,N/A,N/A
Traffic & Transportation,Traffic & Transportation (inc Integrated Pass Transport),"Strategic Partnerships, Planning & Streetpride",REDACTED - PERSONAL DATA,885476,06/08/2019,3294459,880.44,0.00,N/A,N/A
Learning Disability Support,Transitions and Ordinary Lives - Learning Disability Support,Transitions and Ordinary Lives,REDACTED - PERSONAL DATA,496463,06/08/2019,3294699,"1,460.44",0.00,N/A,N/A
Learning Disability Support,Transitions and Ordinary Lives - Learning Disability Support,Transitions and Ordinary Lives,REDACTED - PERSONAL DATA,496474,06/08/2019,3294579,603.44,0.00,N/A,N/A
Learning Disability Support,Transitions and Ordinary Lives - Learning Disability Support,Transitions and Ordinary Lives,REDACTED - PERSONAL DATA,807446,06/08/2019,3294535,"1,680.44",0.00,N/A,N/A
Learning Disability Support,Transitions and Ordinary Lives - Learning Disability Support,Transitions and Ordinary Lives,REDACTED - PERSONAL DATA,496493,06/08/2019,3294553,"1,460.44",0.00,N/A,N/A
Learning Disability Support,Transitions and Ordinary Lives - Learning Disability Support,Transitions and Ordinary Lives,REDACTED - PERSONAL DATA,496493,06/08/2019,3294554,"1,174.58",0.00,N/A,N/A
Learning Disability Support,Transitions and Ordinary Lives - Learning Disability Support,Transitions and Ordinary Lives,REDACTED - PERSONAL DATA,496486,06/08/2019,3294743,603.48,0.00,N/A,N/A
Learning Disability Support,Transitions and Ordinary Lives - Learning Disability Support,Transitions and Ordinary Lives,REDACTED - PERSONAL DATA,1049470,06/08/2019,3294734,"1,460.44",0.00,N/A,N/A
Learning Disability Support,Transitions and Ordinary Lives - Learning Disability Support,Transitions and Ordinary Lives,REDACTED - PERSONAL DATA,496490,06/08/2019,3294569,556.38,0.00,N/A,N/A
Learning Disability Support,Transitions and Ordinary Lives - Learning Disability Support,Transitions and Ordinary Lives,REDACTED - PERSONAL DATA,496444,06/08/2019,3294730,"1,180.44",0.00,N/A,N/A
Learning Disability Support,Transitions and Ordinary Lives - Learning Disability Support,Transitions and Ordinary Lives,REDACTED - PERSONAL DATA,715474,06/08/2019,3294584,"1,680.44",0.00,N/A,N/A
Learning Disability Support,Transitions and Ordinary Lives - Learning Disability Support,Transitions and Ordinary Lives,REDACTED - PERSONAL DATA,715474,06/08/2019,3294667,"1,460.44",0.00,N/A,N/A
Learning Disability Support,Transitions and Ordinary Lives - Learning Disability Support,Transitions and Ordinary Lives,REDACTED - PERSONAL DATA,937527,06/08/2019,3294707,804.64,0.00,N/A,N/A
Learning Disability Support,Transitions and Ordinary Lives - Learning Disability Support,Transitions and Ordinary Lives,REDACTED - PERSONAL DATA,937527,06/08/2019,3294674,989.12,0.00,N/A,N/A
Learning Disability Support,Transitions and Ordinary Lives - Learning Disability Support,Transitions and Ordinary Lives,REDACTED - PERSONAL DATA,937527,06/08/2019,3294677,"1,460.44",0.00,N/A,N/A
Learning Disability Support,Transitions and Ordinary Lives - Learning Disability Support,Transitions and Ordinary Lives,REDACTED - PERSONAL DATA,496485,06/08/2019,3294691,"1,460.44",0.00,N/A,N/A
Learning Disability Support,Transitions and Ordinary Lives - Learning Disability Support,Transitions and Ordinary Lives,REDACTED - PERSONAL DATA,971481,06/08/2019,3294642,"1,121.44",0.00,N/A,N/A
Adults Health and Housing,Capital,Capital,REDACTED - PERSONAL DATA,62669,06/08/2019,3293234,"7,000.00",0.00,N/A,N/A
Adults Health and Housing,Capital,Capital,REDACTED - PERSONAL DATA,830447,06/08/2019,3293238,"11,000.00",0.00,N/A,N/A
Support to Carers,Community Support - Support to Carers,Community Support,REDACTED - PERSONAL DATA,779457,06/08/2019,3294764,700.00,0.00,N/A,N/A
Support to Carers,Community Support - Support to Carers,Community Support,REDACTED - PERSONAL DATA,867456,06/08/2019,3294757,851.75,0.00,N/A,N/A
Support to Carers,Community Support - Support to Carers,Community Support,REDACTED - PERSONAL DATA,1098503,06/08/2019,3294778,"1,334.05",0.00,N/A,N/A
Support to Carers,Community Support - Support to Carers,Community Support,REDACTED - PERSONAL DATA,797447,06/08/2019,3294775,881.00,0.00,N/A,N/A
Support to Carers,Community Support - Support to Carers,Community Support,REDACTED - PERSONAL DATA,1098491,06/08/2019,3294776,591.05,0.00,N/A,N/A
Support to Carers,Community Support - Support to Carers,Community Support,REDACTED - PERSONAL DATA,1096483,06/08/2019,3294766,600.00,0.00,N/A,N/A
Non Delegated Schools Budget,Non Delegated School Expenditure,Schools Block,RIDGEWAY INFANT SCHOOL,170354,06/08/2019,3290641,"28,050.00",0.00,N/A,N/A
Public Health,Drugs and Alcohol,Public Health,ROSEHILL PHARMACY LTD,187661,06/08/2019,3295102,"1,998.00",0.00,N/A,N/A
Public Health,Drugs and Alcohol,Public Health,ROSEHILL PHARMACY LTD,187661,06/08/2019,3295102,"5,140.00",0.00,N/A,N/A
Business Support,Business Support,Strategic Services and Organisational Development,ROYAL MAIL GROUP PLC,4194,06/08/2019,3282957,"23,408.13",0.00,Organisation & Governance,Transportation and Storage and Mail Serv
Economic Regeneration,Economic Regeneration,"Regeneration, Property & Housing",ROYAL MAIL GROUP PLC,963476,06/08/2019,3293184,787.00,0.00,N/A,N/A
Property Design & Maintenance,Building - Repairs & Maintenance,"Regeneration, Property & Housing",S S SYSTEMS LTD,188339,06/08/2019,3294810,546.66,0.00,N/A,N/A
"Occupational Health, Safety, Markets & Bereavement Services",Bereavement Services,"Communities, Environment & Regulatory Services",SENATOR INTERNATIONAL LTD,101641,06/08/2019,3275376,"1,138.50",0.00,Communities & Place,Furniture and Furnishings
Integrated Services,Youth Offending Service,Non-Schools,SHARED SERVICES CONNECTED LTD,769444,06/08/2019,3294261,"7,200.00",0.00,N/A,N/A
Integrated Services,Youth Offending Service,Non-Schools,SHARED SERVICES CONNECTED LTD,769444,06/08/2019,3294262,"7,200.00",0.00,N/A,N/A
Integrated Services,Youth Offending Service,Non-Schools,SHARED SERVICES CONNECTED LTD,769444,06/08/2019,3294263,"18,360.00",0.00,N/A,N/A
Integrated Services,Youth Offending Service,Non-Schools,SHARED SERVICES CONNECTED LTD,769444,06/08/2019,3294264,"7,200.00",0.00,N/A,N/A
Integrated Services,Youth Offending Service,Non-Schools,SHARED SERVICES CONNECTED LTD,769444,06/08/2019,3294265,"3,672.00",0.00,N/A,N/A
Traffic & Transportation,Traffic & Transportation (inc Integrated Pass Transport),"Strategic Partnerships, Planning & Streetpride",SHELTER MAINTENANCE LTD,188028,06/08/2019,3294286,"1,209.12",0.00,Communities & Place,Industrial Cleaning Services
Leisure,Leisure,"Leisure, Culture and Tourism",SHOWSEC INTERNATIONAL LTD,4772,06/08/2019,3294943,"2,292.64",0.00,Communities & Place,Defense and Law Enforcement and Security
Facilities Management,Accommodation Buildings,Strategic Services and Organisational Development,SIEMENS FINANCIAL SERVICES LIMITED,861446,06/08/2019,3232861,723.84,0.00,N/A,N/A
Neighbourhoods,Capital,Capital,SNUG RECORDING CO,1110475,06/08/2019,3292108,"2,152.00",0.00,N/A,N/A
"Environmental Protection, Licensing, Housing",Environmental Protection,"Communities, Environment & Regulatory Services",SRL TECHNICAL SERVICES LTD,574442,06/08/2019,3279806,"1,350.00",0.00,N/A,N/A
Commissioning,Commissioned Providers,Non-Schools,ST JAMES CENTRE,8002,06/08/2019,3294282,"8,130.68",0.00,People Services - Children & Young People,Travel and Food and Lodging and Entertai
Commissioning,Commissioned Providers,Non-Schools,ST JAMES CENTRE,8002,06/08/2019,3294283,"6,970.43",0.00,People Services - Children & Young People,Travel and Food and Lodging and Entertai
Commissioning,Commissioned Providers,Non-Schools,ST JAMES CENTRE,8002,06/08/2019,3295313,"9,000.86",0.00,People Services - Children & Young People,Travel and Food and Lodging and Entertai
Traffic & Transportation,Traffic & Transportation (inc Integrated Pass Transport),"Strategic Partnerships, Planning & Streetpride",SWIFT CABS MIDLANDS LTD,113024,06/08/2019,3294429,"3,375.00",0.00,N/A,N/A
Traffic & Transportation,Traffic & Transportation (inc Integrated Pass Transport),"Strategic Partnerships, Planning & Streetpride",SWIFT CABS MIDLANDS LTD,113024,06/08/2019,3294445,972.00,0.00,N/A,N/A
Traffic & Transportation,Traffic & Transportation (inc Integrated Pass Transport),"Strategic Partnerships, Planning & Streetpride",SWIFT CABS MIDLANDS LTD,113024,06/08/2019,3294426,551.00,0.00,N/A,N/A
Traffic & Transportation,Traffic & Transportation (inc Integrated Pass Transport),"Strategic Partnerships, Planning & Streetpride",SWIFT CABS MIDLANDS LTD,113024,06/08/2019,3294499,"1,868.30",0.00,N/A,N/A
Traffic & Transportation,Traffic & Transportation (inc Integrated Pass Transport),"Strategic Partnerships, Planning & Streetpride",SWIFT CABS MIDLANDS LTD,113024,06/08/2019,3294500,"2,812.00",0.00,N/A,N/A
Traffic & Transportation,Traffic & Transportation (inc Integrated Pass Transport),"Strategic Partnerships, Planning & Streetpride",SWIFT CABS MIDLANDS LTD,113024,06/08/2019,3294501,"1,485.00",0.00,N/A,N/A
Traffic & Transportation,Traffic & Transportation (inc Integrated Pass Transport),"Strategic Partnerships, Planning & Streetpride",SWIFT CABS MIDLANDS LTD,113024,06/08/2019,3294512,"2,295.00",0.00,N/A,N/A
Traffic & Transportation,Traffic & Transportation (inc Integrated Pass Transport),"Strategic Partnerships, Planning & Streetpride",SWIFT CABS MIDLANDS LTD,113024,06/08/2019,3294513,"1,386.00",0.00,N/A,N/A
Traffic & Transportation,Traffic & Transportation (inc Integrated Pass Transport),"Strategic Partnerships, Planning & Streetpride",SWIFT CABS MIDLANDS LTD,113024,06/08/2019,3294516,"1,526.00",0.00,N/A,N/A
Traffic & Transportation,Traffic & Transportation (inc Integrated Pass Transport),"Strategic Partnerships, Planning & Streetpride",SWIFT CABS MIDLANDS LTD,113024,06/08/2019,3294462,"1,080.00",0.00,N/A,N/A
Traffic & Transportation,Traffic & Transportation (inc Integrated Pass Transport),"Strategic Partnerships, Planning & Streetpride",SWIFT CABS MIDLANDS LTD,113024,06/08/2019,3294487,"1,121.00",0.00,N/A,N/A
Highways & Engineering,Highways Maintenance & Street Lighting,"Strategic Partnerships, Planning & Streetpride",TARBY CONSTRUCTION LTD,194477,06/08/2019,3294351,"3,854.00",0.00,Communities & Place,Structures and Building and Construction
Highways & Engineering,Highways Maintenance & Street Lighting,"Strategic Partnerships, Planning & Streetpride",TARBY CONSTRUCTION LTD,194477,06/08/2019,3294353,"5,840.00",0.00,Communities & Place,Structures and Building and Construction
Highways & Engineering,Highways Maintenance & Street Lighting,"Strategic Partnerships, Planning & Streetpride",TARBY CONSTRUCTION LTD,194477,06/08/2019,3294355,"5,625.00",0.00,Communities & Place,Structures and Building and Construction
Non Delegated Schools Budget,Non Delegated School Expenditure,Schools Block,TEACHING PERSONNEL LTD,5067,06/08/2019,3293167,760.00,0.00,N/A,N/A
Integrated Services,Agency Placements,Non-Schools,THE ADOLESCENT AND CHILDRENS TRUST,227387,06/08/2019,3229407,"2,781.48",0.00,People Services - Children & Young People,Healthcare Services
Senior Management,Senior Management,Senior Management,THE DISABILITY SYNDICATE,1039487,06/08/2019,3293071,"5,832.00",0.00,N/A,N/A
Non Delegated Schools Budget,Schools In Financial Difficulty,Schools Block,THE HARMONY TRUST LTD,1112504,06/08/2019,3292963,"100,000.00",0.00,N/A,N/A
Libraries,Libraries,"Leisure, Culture and Tourism",THE READING AGENCY FOR LIBRARIES LTD,4852,06/08/2019,3292849,"1,561.11",0.00,Communities & Place,Published Products
Public Health,Drugs and Alcohol,Public Health,THE RIVERSIDE GROUP LTD,90997,06/08/2019,3293092,"26,287.58",0.00,People Services - Adults and Health,Healthcare Services
Children and Young People,Capital,Capital,THE RIVERSIDE GROUP LTD,90997,06/08/2019,3282452,"25,000.00",0.00,N/A,N/A
Leisure,Leisure,"Leisure, Culture and Tourism",THE SWATCH GROUP UK LTD,8188,06/08/2019,3294938,"8,960.00",0.00,Communities & Place,Building and Construction and Maintenanc
Public Health,Adults,Public Health,THE VERNON STREET MEDICAL CENTRE,411402,06/08/2019,3295004,"1,260.00",0.00,N/A,N/A
Property Design & Maintenance,Building - Repairs & Maintenance,"Regeneration, Property & Housing",TOM OLEARY BUILDING SERVICES LTD,602492,06/08/2019,3294809,"8,480.75",0.00,N/A,N/A
Highways & Engineering,Highways Maintenance & Street Lighting,"Strategic Partnerships, Planning & Streetpride",TONY STACEY SERVICES LIMITED,667476,06/08/2019,3294236,"1,382.40",0.00,N/A,N/A
Highways & Engineering,Highways Maintenance & Street Lighting,"Strategic Partnerships, Planning & Streetpride",TONY STACEY SERVICES LIMITED,667476,06/08/2019,3294240,"3,204.75",0.00,N/A,N/A
Highways & Engineering,Highways Maintenance & Street Lighting,"Strategic Partnerships, Planning & Streetpride",TONY STACEY SERVICES LIMITED,667476,06/08/2019,3294242,"3,808.60",0.00,N/A,N/A
Highways & Engineering,Highways Maintenance & Street Lighting,"Strategic Partnerships, Planning & Streetpride",TONY STACEY SERVICES LIMITED,667476,06/08/2019,3294243,"6,329.00",0.00,N/A,N/A
Traffic & Transportation,Traffic & Transportation (inc Integrated Pass Transport),"Strategic Partnerships, Planning & Streetpride",TONYS TRAVEL,113007,06/08/2019,3294442,"1,520.00",0.00,N/A,N/A
Traffic & Transportation,Traffic & Transportation (inc Integrated Pass Transport),"Strategic Partnerships, Planning & Streetpride",TONYS TRAVEL,113007,06/08/2019,3294473,"1,360.00",0.00,N/A,N/A
Integrated Services,Agency Placements,Non-Schools,TREEHOUSE CARE FOSTERING SOLUTIONS LTD,88329,06/08/2019,3293159,"7,000.42",0.00,People Services - Children & Young People,Politics and Civic Affairs Services
Integrated Services,Agency Placements,Non-Schools,TREEHOUSE CARE FOSTERING SOLUTIONS LTD,88329,06/08/2019,3293204,"22,192.59",0.00,People Services - Children & Young People,Politics and Civic Affairs Services
Non Delegated Schools Budget,Non Delegated School Expenditure,Schools Block,TRINITY SCHOOL AND COLLEGE,1042481,06/08/2019,3288214,"12,766.67",0.00,N/A,N/A
Physical Support,Community Support - Physical Support,Community Support,TURNING POINT,388485,06/08/2019,3293493,859.80,0.00,N/A,N/A
Physical Support,Community Support - Physical Support,Community Support,TURNING POINT,388485,06/08/2019,3293430,"1,146.40",0.00,N/A,N/A
Physical Support,Community Support - Physical Support,Community Support,TURNING POINT,388485,06/08/2019,3293430,"1,146.40",0.00,N/A,N/A
Physical Support,Community Support - Physical Support,Community Support,TURNING POINT,388485,06/08/2019,3293430,"1,146.40",0.00,N/A,N/A
Physical Support,Community Support - Physical Support,Community Support,TURNING POINT,388485,06/08/2019,3293430,"1,146.40",0.00,N/A,N/A
Learning Disability Support,Transitions and Ordinary Lives - Learning Disability Support,Transitions and Ordinary Lives,TURNING POINT,388485,06/08/2019,3293475,"1,965.32",0.00,N/A,N/A
Neighbourhoods,Capital,Capital,UK DIAMOND DRILLING LTD,8870,06/08/2019,3265143,"2,950.00",0.00,Asset Management - Highways Maintenance,Industrial Manufacturing and Processing
Neighbourhoods,Capital,Capital,UK DIAMOND DRILLING LTD,8870,06/08/2019,3265143,600.00,0.00,Asset Management - Highways Maintenance,Industrial Manufacturing and Processing
Libraries,Libraries,"Leisure, Culture and Tourism",ULVERSCROFT LARGE PRINT BOOKS,5055,06/08/2019,3294328,514.80,0.00,Communities & Place,Published Products
Commissioning,Commissioned Providers,Non-Schools,UMBRELLA DERBY AND DERBYSHIRE,915471,06/08/2019,3292722,"8,344.88",0.00,N/A,N/A
Commissioning,Commissioned Providers,Non-Schools,UMBRELLA DERBY AND DERBYSHIRE,915471,06/08/2019,3292913,"9,174.90",0.00,N/A,N/A
Social Care Activities,Home First - Social Care Activities,Home First,VALTECH LIMITED,1006474,06/08/2019,3294323,"1,154.40",0.00,N/A,N/A
Adults Health and Housing,Capital,Capital,VINSHIRE PLUMBING and HEATING,5339,06/08/2019,3294988,"1,853.25",0.00,Healthy Housing Assistance,Structures and Building and Construction
Learning Disability Support,Transitions and Ordinary Lives - Learning Disability Support,Transitions and Ordinary Lives,VOYAGE 2 LTD,126075,06/08/2019,3293364,600.00,0.00,N/A,N/A
Early Help & Children�s Safeguarding,Children In Care,Non-Schools,WEIGHTMANS LLP,127207,06/08/2019,3292825,552.00,0.00,N/A,N/A
Public Health,Drugs and Alcohol,Public Health,WELFARE PHARMACY,194498,06/08/2019,3295131,"1,740.00",0.00,N/A,N/A
Public Health,Drugs and Alcohol,Public Health,WELFARE PHARMACY,194498,06/08/2019,3295131,"2,824.00",0.00,N/A,N/A
Traffic & Transportation,Traffic & Transportation (inc Integrated Pass Transport),"Strategic Partnerships, Planning & Streetpride",WESTERN CARS CO,1062473,06/08/2019,3294460,600.00,0.00,N/A,N/A
Neighbourhoods,Capital,Capital,WESTERN POWER DISTRIBUTION,919468,06/08/2019,3275422,"63,024.97",0.00,N/A,N/A
General,Stores Road Depot & Fleet Management,"Strategic Partnerships, Planning & Streetpride",WHALE TANKERS LTD,5212,06/08/2019,3294222,889.79,0.00,Communities & Place,Commercial and Military and Private Vehi
Refuse & Waste Management,Refuse Collection,"Strategic Partnerships, Planning & Streetpride",WHITESPACE WORK SOFT WARE LTD,573448,06/08/2019,3294864,"35,658.50",0.00,N/A,N/A
Commissioning - Schools Block,Recoupment - Independent Special School Fees,Schools Block,WILLIAM GILBERT ENDOWED PRIMARY SCHOOL,58189,06/08/2019,3290565,"3,050.00",0.00,N/A,N/A
Public Health,Adults,Public Health,WILSON STREET SURGERY,254482,06/08/2019,3294998,780.00,0.00,N/A,N/A
Traffic & Transportation,Traffic & Transportation (inc Integrated Pass Transport),"Strategic Partnerships, Planning & Streetpride",WOLSELEY UK LTD,5259,06/08/2019,3290623,666.60,0.00,Communities & Place,Structures and Building and Construction
Chief Executives,Capital,Capital,WYG ENVIRONMENT PLANNING TRANSPORT LTD,353396,06/08/2019,3292891,"6,022.50",0.00,Our City Our River,Management and Business Professionals an
"Occupational Health, Safety, Markets & Bereavement Services",Markets,"Communities, Environment & Regulatory Services",A R TENNANT LTD,905493,08/08/2019,3295946,700.00,0.00,N/A,N/A
Highways & Engineering,Highways Maintenance & Street Lighting,"Strategic Partnerships, Planning & Streetpride",AGGREGATE INDUSTRIES UK LTD,117850,08/08/2019,3295884,501.12,0.00,Communities & Place,Building and Construction Machinery and
Highways & Engineering,Highways Maintenance & Street Lighting,"Strategic Partnerships, Planning & Streetpride",AGGREGATE INDUSTRIES UK LTD,117850,08/08/2019,3295886,"1,035.53",0.00,Communities & Place,Building and Construction Machinery and
Highways & Engineering,Highways Maintenance & Street Lighting,"Strategic Partnerships, Planning & Streetpride",AGGREGATE INDUSTRIES UK LTD,117850,08/08/2019,3295890,875.92,0.00,Communities & Place,Building and Construction Machinery and
Highways & Engineering,Highways Maintenance & Street Lighting,"Strategic Partnerships, Planning & Streetpride",AGGREGATE INDUSTRIES UK LTD,117850,08/08/2019,3295893,760.08,0.00,Communities & Place,Building and Construction Machinery and
Highways & Engineering,Highways Maintenance & Street Lighting,"Strategic Partnerships, Planning & Streetpride",AGGREGATE INDUSTRIES UK LTD,117850,08/08/2019,3295897,"1,222.43",0.00,Communities & Place,Building and Construction Machinery and
Highways & Engineering,Highways Maintenance & Street Lighting,"Strategic Partnerships, Planning & Streetpride",AGGREGATE INDUSTRIES UK LTD,117850,08/08/2019,3295898,739.98,0.00,Communities & Place,Building and Construction Machinery and
General,Stores Road Depot & Fleet Management,"Strategic Partnerships, Planning & Streetpride",ALLSTAR BUSINESS SOLUTIONS LTD,135370,08/08/2019,3295550,"14,364.63",0.00,Communities & Place,Fuels and Fuel Additives and Lubricants
Grounds Maintenance & Cleansing,Cleansing (inc public conveniences & gullies),"Strategic Partnerships, Planning & Streetpride",AMA SUPPLIES LTD,285,08/08/2019,3295276,973.20,0.00,Communities & Place,Apparel and Luggage and Personal Care Pr
Integrated Services,Agency Placements,Non-Schools,ANCHOR FOSTER CARE,537480,08/08/2019,3294908,"3,985.67",0.00,N/A,N/A
Integrated Services,Agency Placements,Non-Schools,ANEW YOUNG PEOPLE SERVICES LTD,125264,08/08/2019,3294364,"29,580.98",0.00,N/A,N/A
Integrated Services,Agency Placements,Non-Schools,ANEW YOUNG PEOPLE SERVICES LTD,125264,08/08/2019,3294364,"28,950.70",0.00,N/A,N/A
Integrated Services,Agency Placements,Non-Schools,ANEW YOUNG PEOPLE SERVICES LTD,125264,08/08/2019,3294364,630.28,0.00,N/A,N/A
Integrated Services,Agency Placements,Non-Schools,ANGLIA FOSTERING AGENCY LTD,872462,08/08/2019,3239299,"3,369.39",0.00,N/A,N/A
Integrated Services,Agency Placements,Non-Schools,ANGLIA FOSTERING AGENCY LTD,872462,08/08/2019,3239300,"3,369.39",0.00,N/A,N/A
Integrated Services,Agency Placements,Non-Schools,ANGLIA FOSTERING AGENCY LTD,872462,08/08/2019,3239301,"3,443.17",0.00,N/A,N/A
Integrated Services,Agency Placements,Non-Schools,ANGLIA FOSTERING AGENCY LTD,872462,08/08/2019,3239301,"2,892.09",0.00,N/A,N/A
Integrated Services,Agency Placements,Non-Schools,ANGLIA FOSTERING AGENCY LTD,872462,08/08/2019,3239301,551.08,0.00,N/A,N/A
Social Care Activities,Home First - Social Care Activities,Home First,APS GROUP,1006473,08/08/2019,3295382,"1,419.15",0.00,N/A,N/A
Early Help & Children�s Safeguarding,Integrated and Safeguarding Services Locality 3/4,Non-Schools,ASI SECURITY SYSTEMS LTD,106643,08/08/2019,3295265,595.00,0.00,People Services - Children & Young People,Defense and Law Enforcement and Security
Culture & Business Development,Culture & Business Development,"Leisure, Culture and Tourism",ATLOW CONTRACTING LTD,423402,08/08/2019,3295651,850.25,0.00,Communities & Place,Environmental Services
Highways & Engineering,Highways Maintenance & Street Lighting,"Strategic Partnerships, Planning & Streetpride",AVERY WEIGH TRONIX,7488,08/08/2019,3295936,565.95,0.00,Communities & Place,Material Handling and Conditioning and S
Early Help & Children�s Safeguarding,Integrated and Safeguarding Services Locality 3/4,Non-Schools,BLUEFRONT CARE,1110477,08/08/2019,3292449,"1,100.00",0.00,N/A,N/A
Early Help & Children�s Safeguarding,Integrated and Safeguarding Services Locality 3/4,Non-Schools,BLUEFRONT CARE,1113491,08/08/2019,3292450,"3,728.70",0.00,N/A,N/A
Early Help & Children�s Safeguarding,Integrated and Safeguarding Services Locality 3/4,Non-Schools,BLUEFRONT CARE,1110477,08/08/2019,3292451,"3,937.28",0.00,N/A,N/A
Traffic & Transportation,Parking Services,"Strategic Partnerships, Planning & Streetpride",BRISTOW AND SUTOR,557,08/08/2019,3295559,"3,767.89",0.00,N/A,N/A
Physical Support,Community Support - Physical Support,Community Support,BROWNE JACOBSON LLP,143376,08/08/2019,3295285,802.50,0.00,People Services - Adults and Health,Management and Business Professionals an
Learning Disability Support,Transitions and Ordinary Lives - Learning Disability Support,Transitions and Ordinary Lives,BROWNE JACOBSON LLP,143376,08/08/2019,3295286,560.00,0.00,People Services - Adults and Health,Management and Business Professionals an
Integrated Services,Agency Placements,Non-Schools,BY THE BRIDGE LTD,577451,08/08/2019,3294886,"4,153.41",0.00,N/A,N/A
Integrated Services,Agency Placements,Non-Schools,BY THE BRIDGE LTD,577451,08/08/2019,3294898,"3,568.21",0.00,N/A,N/A
Integrated Services,Agency Placements,Non-Schools,CAPSTONE FOSTER CARE,125689,08/08/2019,3294895,"3,479.40",0.00,People Services - Children & Young People,Politics and Civic Affairs Services
Integrated Services,Agency Placements,Non-Schools,CAPSTONE FOSTER CARE,125689,08/08/2019,3294902,"3,479.40",0.00,People Services - Children & Young People,Politics and Civic Affairs Services
Learning Disability Support,Transitions and Ordinary Lives - Learning Disability Support,Transitions and Ordinary Lives,CARE FIRST MANAGEMENT SERVICES LTD,1109496,08/08/2019,3292522,880.00,0.00,N/A,N/A
Learning & Inclusion,Inclusion & Intervention,Non-Schools,CDW LTD,465403,08/08/2019,3295185,"3,800.00",0.00,People Services - Children & Young People,Information Technology Broadcasting and
"Information, Computing & Technology","Information, Computing & Technology",Digital Services,CDW LTD,465403,08/08/2019,3229841,647.29,0.00,Organisation & Governance,Information Technology Broadcasting and
"Information, Computing & Technology","Information, Computing & Technology",Digital Services,CDW LTD,465403,08/08/2019,3229841,958.14,0.00,Organisation & Governance,Information Technology Broadcasting and
Social Care Activities,Direct Services - Social Care Activities,Direct Services,CHADS CARS LTD,717,08/08/2019,3294931,666.70,0.00,People Services - Adults and Health,Transportation and Storage and Mail Serv
Traffic & Transportation,Parking Services,"Strategic Partnerships, Planning & Streetpride",CHIPSIDE LTD,926469,08/08/2019,3271542,"6,102.55",0.00,N/A,N/A
Property Design & Maintenance,Building - Repairs & Maintenance,"Regeneration, Property & Housing",CHUBB FIRE AND SECURITY LTD,218385,08/08/2019,3295795,550.73,0.00,N/A,N/A
Property Design & Maintenance,Building - Repairs & Maintenance,"Regeneration, Property & Housing",CLYMAC LTD,187927,08/08/2019,3295742,933.01,0.00,N/A,N/A
Grounds Maintenance & Cleansing,Cleansing (inc public conveniences & gullies),"Strategic Partnerships, Planning & Streetpride",CROMWELL POLYTHENE LTD,696471,08/08/2019,3295541,"1,894.20",0.00,N/A,N/A
Commissioning - Schools Block,Recoupment - Independent Special School Fees,Schools Block,CYGNET NW LTD,812451,08/08/2019,3071890,"1,359.00",0.00,N/A,N/A
Commissioning - Schools Block,Recoupment - Independent Special School Fees,Schools Block,CYGNET NW LTD,812451,08/08/2019,3071898,"1,057.00",0.00,N/A,N/A
Commissioning - Schools Block,Recoupment - Independent Special School Fees,Schools Block,CYGNET NW LTD,812451,08/08/2019,3124403,"1,812.00",0.00,N/A,N/A
Commissioning,School Organisation & Provision,Non-Schools,DA VINCI ACADEMY,696442,08/08/2019,3296000,"1,133.36",0.00,N/A,N/A
Commissioning,School Organisation & Provision,Non-Schools,DERBY CITY BSF LIMITED,127009,08/08/2019,3295646,"8,473.75",0.00,N/A,N/A
Commissioning,School Organisation & Provision,Non-Schools,DERBY CITY BSF LIMITED,127009,08/08/2019,3295646,919.58,0.00,N/A,N/A
Commissioning,School Organisation & Provision,Non-Schools,DERBY CITY BSF LIMITED,127009,08/08/2019,3295646,"1,655.00",0.00,N/A,N/A
Commissioning,School Organisation & Provision,Non-Schools,DERBY CITY BSF LIMITED,127009,08/08/2019,3295646,"7,367.33",0.00,N/A,N/A
Commissioning,School Organisation & Provision,Non-Schools,DERBY CITY BSF LIMITED,127009,08/08/2019,3295646,"444,200.02",0.00,N/A,N/A
Commissioning,School Organisation & Provision,Non-Schools,DERBY CITY BSF LIMITED,127009,08/08/2019,3295646,"5,110.34",0.00,N/A,N/A
Learning & Inclusion,Inclusion & Intervention,Non-Schools,DERBY COUNTY COMMUNITY TRUST,178343,08/08/2019,3295996,"50,000.00",0.00,N/A,N/A
Early Help & Children�s Safeguarding,Integrated and Safeguarding Services Locality 3/4,Non-Schools,DERBY GUESTHOUSE LTD,255426,08/08/2019,3295607,560.00,0.00,N/A,N/A
Early Help & Children�s Safeguarding,Integrated and Safeguarding Services Locality 3/4,Non-Schools,DERBY GUESTHOUSE LTD,255426,08/08/2019,3295608,560.00,0.00,N/A,N/A
Early Help & Children�s Safeguarding,Integrated and Safeguarding Services Locality 3/4,Non-Schools,DERBY GUESTHOUSE LTD,255426,08/08/2019,3295609,560.00,0.00,N/A,N/A
Early Help & Children�s Safeguarding,Integrated Services Locality 3/4,Non-Schools,DERBY GUESTHOUSE LTD,255426,08/08/2019,3295652,560.00,0.00,N/A,N/A
Early Help & Children�s Safeguarding,Integrated Services Locality 3/4,Non-Schools,DERBY GUESTHOUSE LTD,255426,08/08/2019,3295834,560.00,0.00,N/A,N/A
Early Help & Children�s Safeguarding,Integrated Services Locality 3/4,Non-Schools,DERBY GUESTHOUSE LTD,255426,08/08/2019,3295835,560.00,0.00,N/A,N/A
Adults Health and Housing,Capital,Capital,DERBY HOMES LTD,1078471,08/08/2019,3295505,"31,641.55",0.00,N/A,N/A
"Occupational Health, Safety, Markets & Bereavement Services",Bereavement Services,"Communities, Environment & Regulatory Services",DERBY MEDICALS DIRECT,239399,08/08/2019,3295487,518.00,0.00,Communities & Place,Healthcare Services
Culture & Business Development,Culture & Business Development,"Leisure, Culture and Tourism",DERBY QUAD LTD,7833,08/08/2019,3295655,"18,750.00",0.00,Communities & Place,Travel and Food and Lodging and Entertai
Commissioning,School Organisation & Provision,Non-Schools,DERBY SCHOOLS SOLUTIONS LIMITED,8266,08/08/2019,3295978,"1,790.67",0.00,N/A,N/A
Commissioning,School Organisation & Provision,Non-Schools,DERBY SCHOOLS SOLUTIONS LIMITED,8266,08/08/2019,3295978,548.70,0.00,N/A,N/A
Commissioning,School Organisation & Provision,Non-Schools,DERBY SCHOOLS SOLUTIONS LIMITED,8266,08/08/2019,3295978,751.92,0.00,N/A,N/A
Commissioning,School Organisation & Provision,Non-Schools,DERBY SCHOOLS SOLUTIONS LIMITED,8266,08/08/2019,3295978,"1,700.73",0.00,N/A,N/A
Commissioning,School Organisation & Provision,Non-Schools,DERBY SCHOOLS SOLUTIONS LIMITED,8266,08/08/2019,3295978,700.13,0.00,N/A,N/A
Commissioning,School Organisation & Provision,Non-Schools,DERBY SCHOOLS SOLUTIONS LIMITED,8266,08/08/2019,3295978,"1,210.87",0.00,N/A,N/A
Commissioning,School Organisation & Provision,Non-Schools,DERBY SCHOOLS SOLUTIONS LIMITED,8266,08/08/2019,3295978,662.12,0.00,N/A,N/A
Commissioning,School Organisation & Provision,Non-Schools,DERBY SCHOOLS SOLUTIONS LIMITED,8266,08/08/2019,3295978,984.35,0.00,N/A,N/A
Commissioning,School Organisation & Provision,Non-Schools,DERBY SCHOOLS SOLUTIONS LIMITED,8266,08/08/2019,3295978,"1,435.51",0.00,N/A,N/A
Commissioning,School Organisation & Provision,Non-Schools,DERBY SCHOOLS SOLUTIONS LIMITED,8266,08/08/2019,3295978,"428,216.71",0.00,N/A,N/A
Public Health,Drugs and Alcohol,Public Health,DERBYSHIRE LOCAL PHARMACEUTICAL COMMITTEE,1011479,08/08/2019,3295915,"14,000.00",0.00,N/A,N/A
Early Help & Children�s Safeguarding,Integrated and Safeguarding Services Locality 3/4,Non-Schools,DERVENTIO HOUSING TRUST,77649,08/08/2019,3294889,547.75,0.00,People Services - Children & Young People,Healthcare Services
Early Help & Children�s Safeguarding,Integrated and Safeguarding Services Locality 3/4,Non-Schools,DERVENTIO HOUSING TRUST,77649,08/08/2019,3294894,"1,752.80",0.00,People Services - Children & Young People,Healthcare Services
Strategic Housing,Housing and Advice,"Regeneration, Property & Housing",DERWENT HOUSING ASSOCIATION LTD,878449,08/08/2019,3294921,"123,525.00",0.00,N/A,N/A
Strategic Housing,Housing and Advice,"Regeneration, Property & Housing",DERWENT HOUSING ASSOCIATION LTD,878449,08/08/2019,3294921,"123,525.00",0.00,N/A,N/A
Strategic Housing,Housing and Advice,"Regeneration, Property & Housing",DERWENT HOUSING ASSOCIATION LTD,878449,08/08/2019,3294922,"129,129.00",0.00,N/A,N/A
Early Help & Children�s Safeguarding,Integrated and Safeguarding Services Locality 2,Non-Schools,DODDS SOLICITORS LLP,952477,08/08/2019,3289292,"6,047.96",0.00,N/A,N/A
Early Help & Children�s Safeguarding,Integrated and Safeguarding Services Locality 2,Non-Schools,DODDS SOLICITORS LLP,952477,08/08/2019,3289292,628.30,0.00,N/A,N/A
Early Help & Children�s Safeguarding,Integrated and Safeguarding Services Locality 2,Non-Schools,DODDS SOLICITORS LLP,952477,08/08/2019,3292307,692.77,0.00,N/A,N/A
Early Help & Children�s Safeguarding,Integrated and Safeguarding Services Locality 2,Non-Schools,DODDS SOLICITORS LLP,952477,08/08/2019,3292307,540.00,0.00,N/A,N/A
Early Help & Children�s Safeguarding,Integrated and Safeguarding Services Locality 2,Non-Schools,DODDS SOLICITORS LLP,952477,08/08/2019,3292308,895.89,0.00,N/A,N/A
Early Help & Children�s Safeguarding,Integrated and Safeguarding Services Locality 2,Non-Schools,DODDS SOLICITORS LLP,952477,08/08/2019,3292308,507.20,0.00,N/A,N/A
Early Help & Children�s Safeguarding,Integrated and Safeguarding Services Locality 2,Non-Schools,DODDS SOLICITORS LLP,952477,08/08/2019,3292309,"2,585.47",0.00,N/A,N/A
General,Stores Road Depot & Fleet Management,"Strategic Partnerships, Planning & Streetpride",EDEN SPRINGS LTD,1350,08/08/2019,3295552,530.38,0.00,Communities & Place,Food Beverage and Tobacco Products
Learning & Inclusion,Inclusion & Intervention,Non-Schools,EDUCATION AND EMPLOYER TASKFORCE LIMITED,1057478,08/08/2019,3295666,"125,000.00",0.00,N/A,N/A
Facilities Management,Accommodation Buildings,Strategic Services and Organisational Development,EMS SECURITY SERVICES LTD,471442,08/08/2019,3294958,"15,741.78",0.00,Organisation & Governance,Defense and Law Enforcement and Security
Facilities Management,Accommodation Buildings,Strategic Services and Organisational Development,EMS SECURITY SERVICES LTD,471442,08/08/2019,3294959,"6,785.15",0.00,Organisation & Governance,Defense and Law Enforcement and Security
Facilities Management,Cleaning & Caretaking,Strategic Services and Organisational Development,EMS SECURITY SERVICES LTD,471442,08/08/2019,3295568,"1,374.98",0.00,Organisation & Governance,Defense and Law Enforcement and Security
General,Stores Road Depot & Fleet Management,"Strategic Partnerships, Planning & Streetpride",ENTERPRISE FLEX E RENT LTD,277434,08/08/2019,3295184,"15,336.98",0.00,Communities & Place,Transportation and Storage and Mail Serv
Facilities Management,Accommodation Buildings,Strategic Services and Organisational Development,ENVIRONMENT AGENCY,1036468,08/08/2019,3292664,726.00,0.00,N/A,N/A
Neighbourhoods,Capital,Capital,ENVIRONMENT AGENCY,1093468,08/08/2019,3295311,501.25,0.00,N/A,N/A
Commissioning - Schools Block,Recoupment - Independent Special School Fees,Schools Block,ESTEEM MULTI ACADEMY TRUST,1058474,08/08/2019,3295257,"10,352.00",0.00,N/A,N/A
Commissioning - Schools Block,Recoupment - Independent Special School Fees,Schools Block,ESTEEM MULTI ACADEMY TRUST,1058479,08/08/2019,3295206,"18,533.00",0.00,N/A,N/A
Neighbourhoods,Capital,Capital,FAITHFUL AND GOULD LIMITED,945490,08/08/2019,3295807,"1,124.28",0.00,N/A,N/A
Culture & Business Development,Culture & Business Development,"Leisure, Culture and Tourism",FFTS EVENTS LTD,583457,08/08/2019,3295248,"1,330.00",0.00,N/A,N/A
Integrated Services,Agency Placements,Non-Schools,FIVE RIVERS CHILDCARE LTD,125027,08/08/2019,3289131,"4,535.69",0.00,People Services - Children & Young People,Politics and Civic Affairs Services
Integrated Services,Agency Placements,Non-Schools,FIVE RIVERS CHILDCARE LTD,125027,08/08/2019,3289131,"1,678.60",0.00,People Services - Children & Young People,Politics and Civic Affairs Services
Culture & Business Development,Culture & Business Development,"Leisure, Culture and Tourism",FLOYD IN THE FLESH,1113484,08/08/2019,3293158,"1,740.08",0.00,N/A,N/A
Integrated Services,Agency Placements,Non-Schools,FOSTER CARE ASSOCIATES LTD fca,885474,08/08/2019,3262302,"2,946.24",0.00,N/A,N/A
Integrated Services,Agency Placements,Non-Schools,FOSTERING SOLUTIONS LTD,123940,08/08/2019,3292218,"2,176.04",0.00,People Services - Children & Young People,Politics and Civic Affairs Services
Integrated Services,Agency Placements,Non-Schools,FOSTERING SOLUTIONS LTD,123940,08/08/2019,3292218,511.22,0.00,People Services - Children & Young People,Politics and Civic Affairs Services
Integrated Services,Agency Placements,Non-Schools,FOSTERING SOLUTIONS LTD,123940,08/08/2019,3294896,"4,393.01",0.00,People Services - Children & Young People,Politics and Civic Affairs Services
Economic Regeneration,DEGF,"Regeneration, Property & Housing",FREETHS LLP,821453,08/08/2019,3295294,678.50,0.00,N/A,N/A
Economic Regeneration,DEGF,"Regeneration, Property & Housing",FREETHS LLP,865462,08/08/2019,3295953,"1,500.00",0.00,N/A,N/A
Neighbourhoods,Capital,Capital,GF TOMLINSON BUILDING LTD,188552,08/08/2019,3295776,"58,672.41",0.00,N/A,N/A
Neighbourhoods,Capital,Capital,GF TOMLINSON BUILDING LTD,188552,08/08/2019,3295702,"5,343.22",0.00,N/A,N/A
Neighbourhoods,Capital,Capital,GF TOMLINSON BUILDING LTD,188552,08/08/2019,3295802,"2,020.02",0.00,N/A,N/A
Neighbourhoods,Capital,Capital,GF TOMLINSON BUILDING LTD,188552,08/08/2019,3295724,"31,669.92",0.00,N/A,N/A
Leisure,Leisure,"Leisure, Culture and Tourism",GOODGYM,1075473,08/08/2019,3295602,"20,000.00",0.00,N/A,N/A
"Occupational Health, Safety, Markets & Bereavement Services",Bereavement Services,"Communities, Environment & Regulatory Services",GRANART LTD,1720,08/08/2019,3295548,"1,331.00",0.00,Communities & Place,Politics and Civic Affairs Services
Traffic & Transportation,Traffic & Transportation (inc Integrated Pass Transport),"Strategic Partnerships, Planning & Streetpride",GREENHATCH LTD,1735,08/08/2019,3294232,"48,590.00",0.00,Communities & Place,Engineering and Research and Technology
General,Stores Road Depot & Fleet Management,"Strategic Partnerships, Planning & Streetpride",HARTSHORNE MOTOR SERVICES LTD,126441,08/08/2019,3294852,512.05,0.00,Communities & Place,Commercial and Military and Private Vehi
Information Systems Support,Information Systems Support,Digital Services,HAS TECHNOLOGY LTD,523447,08/08/2019,3295575,"1,683.72",0.00,N/A,N/A
Culture & Business Development,Culture & Business Development,"Leisure, Culture and Tourism",HAWTHORN THEATRICAL LTD,39654,08/08/2019,3283134,676.00,0.00,Communities & Place,Electrical systems and Lighting and comp
Mental Health Support,Mental Health - Mental Health Support,Mental Health,HC ONE LIMITED,1111482,08/08/2019,3293237,"13,356.20",0.00,N/A,N/A
Grounds Maintenance & Cleansing,Grounds Maintenance,"Strategic Partnerships, Planning & Streetpride",HENTON AND CHATTELL LTD,1883,08/08/2019,3295228,846.17,0.00,Communities & Place,Commercial and Military and Private Vehi
Integrated Services,Agency Placements,Non-Schools,HILLCREST CHILDRENS 2 LTD,822475,08/08/2019,3279758,"1,334.75",0.00,N/A,N/A
Integrated Services,Agency Placements,Non-Schools,HILLCREST CHILDRENS 2 LTD,822475,08/08/2019,3279758,"18,823.00",0.00,N/A,N/A
Physical Support,Community Support - Physical Support,Community Support,HOME SUPPORT SERVICES,1742,08/08/2019,3287720,634.12,0.00,N/A,N/A
Physical Support,Community Support - Physical Support,Community Support,HOME SUPPORT SERVICES,1742,08/08/2019,3287721,634.12,0.00,N/A,N/A
Physical Support,Community Support - Physical Support,Community Support,HOME SUPPORT SERVICES,1742,08/08/2019,3287726,582.44,0.00,N/A,N/A
Physical Support,Community Support - Physical Support,Community Support,HOME SUPPORT SERVICES,1742,08/08/2019,3287742,634.12,0.00,N/A,N/A
Children and Young People,Capital,Capital,HOOTON ENGINEERING LTD,940470,08/08/2019,3294993,"2,685.00",0.00,N/A,N/A
Children and Young People,Capital,Capital,HOOTON ENGINEERING LTD,940470,08/08/2019,3294993,"12,694.32",0.00,N/A,N/A
Children and Young People,Capital,Capital,HOOTON ENGINEERING LTD,940470,08/08/2019,3294994,895.00,0.00,N/A,N/A
Children and Young People,Capital,Capital,HOOTON ENGINEERING LTD,940470,08/08/2019,3294994,"4,231.44",0.00,N/A,N/A
"Occupational Health, Safety, Markets & Bereavement Services",Bereavement Services,"Communities, Environment & Regulatory Services",IMPACT MARKETING & PUBLICITY LTD,2283,08/08/2019,3295492,995.00,0.00,Communities & Place,Editorial and Design and Graphic and Fin
Adults Health and Housing,Capital,Capital,J A L ROOFING LTD,186824,08/08/2019,3293265,"3,620.95",0.00,Re-Roofing,Building and Construction and Maintenanc
"Occupational Health, Safety, Markets & Bereavement Services",Bereavement Services,"Communities, Environment & Regulatory Services",J AND J MAINTENANCE SERVICES,200416,08/08/2019,3295488,"3,720.00",0.00,Communities & Place,Industrial Manufacturing and Processing
"Occupational Health, Safety, Markets & Bereavement Services",Bereavement Services,"Communities, Environment & Regulatory Services",J AND J MAINTENANCE SERVICES,200416,08/08/2019,3295488,"1,190.00",0.00,Communities & Place,Industrial Manufacturing and Processing
"Occupational Health, Safety, Markets & Bereavement Services",Bereavement Services,"Communities, Environment & Regulatory Services",J AND J MAINTENANCE SERVICES,200416,08/08/2019,3295488,"1,134.00",0.00,Communities & Place,Industrial Manufacturing and Processing
Housing Revenue Account,Housing Revenue Account,"Regeneration, Property & Housing",JLA LIMITED,8254,08/08/2019,3295825,741.60,0.00,Communities & Place,Apparel and Luggage and Personal Care Pr
Early Help & Children�s Safeguarding,Integrated and Safeguarding Services Locality 3/4,Non-Schools,KEY 2 FUTURES LTD,473652,08/08/2019,3294905,"2,982.90",0.00,N/A,N/A
Leisure,Leisure,"Leisure, Culture and Tourism",KINGS ARMOURED SECURITY SERVICES,2618,08/08/2019,3295566,945.74,0.00,Communities & Place,National Defense and Public Order and Se
Property Design & Maintenance,Building - Repairs & Maintenance,"Regeneration, Property & Housing",LANGLEY GATES AND RAILINGS LTD,188101,08/08/2019,3295766,975.00,0.00,N/A,N/A
Culture & Business Development,Culture & Business Development,"Leisure, Culture and Tourism",LITTLE WOLF ENTERTAINMENT LTD,571456,08/08/2019,3295275,"25,000.00",0.00,N/A,N/A
Culture & Business Development,Culture & Business Development,"Leisure, Culture and Tourism",MAD HATTERS EVENTS,949468,08/08/2019,3295431,"16,836.00",0.00,N/A,N/A
Property Design & Maintenance,Building - Repairs & Maintenance,"Regeneration, Property & Housing",MANOR ELECTRICAL SERVICES,188116,08/08/2019,3295770,"1,517.00",0.00,N/A,N/A
Property Design & Maintenance,Building - Repairs & Maintenance,"Regeneration, Property & Housing",MANOR ELECTRICAL SERVICES,188116,08/08/2019,3295772,673.60,0.00,N/A,N/A
Property Design & Maintenance,Building - Repairs & Maintenance,"Regeneration, Property & Housing",MARLOWE FIRE AND SECURITY LTD,749444,08/08/2019,3295799,"1,755.00",0.00,N/A,N/A
Strategic Housing,Housing and Advice,"Regeneration, Property & Housing",MEDEQUIP ASSISTIVE TECH LTD,117887,08/08/2019,3248526,990.00,0.00,Communities & Place,Medical Equipment and Accessories and Su
Adults Health and Housing,Capital,Capital,MEDEQUIP ASSISTIVE TECH LTD,117887,08/08/2019,3248526,990.00,0.00,Healthy Housing Assistance,Medical Equipment and Accessories and Su
Social Care Activities,Community Support - Social Care Activities,Community Support,MEDSERV LIMITED,1076485,08/08/2019,3295976,965.00,0.00,N/A,N/A
Integrated Services,Agency Placements,Non-Schools,NEXUS FOSTERING LTD,189362,08/08/2019,3239630,"3,844.00",0.00,People Services - Children & Young People,Politics and Civic Affairs Services
Integrated Services,Agency Placements,Non-Schools,NEXUS FOSTERING LTD,189362,08/08/2019,3294904,"3,844.00",0.00,People Services - Children & Young People,Politics and Civic Affairs Services
Property Design & Maintenance,Building - Repairs & Maintenance,"Regeneration, Property & Housing",NIYAA PEOPLE,389403,08/08/2019,3295754,922.08,0.00,N/A,N/A
Property Design & Maintenance,Building - Repairs & Maintenance,"Regeneration, Property & Housing",NIYAA PEOPLE,389403,08/08/2019,3295755,624.33,0.00,N/A,N/A
Property Design & Maintenance,Building - Repairs & Maintenance,"Regeneration, Property & Housing",NIYAA PEOPLE,389403,08/08/2019,3295706,950.90,0.00,N/A,N/A
Commissioning,School Organisation & Provision,Non-Schools,NOEL BAKER ACADEMY,595442,08/08/2019,3295992,"2,951.12",0.00,N/A,N/A
Property Design & Maintenance,Building - Repairs & Maintenance,"Regeneration, Property & Housing",NOVAR SYSTEMS LTD,188143,08/08/2019,3295785,619.89,0.00,N/A,N/A
Early Help & Children�s Safeguarding,Integrated and Safeguarding Services Locality 3/4,Non-Schools,POSTURITE UK LTD,7572,08/08/2019,3282525,856.00,0.00,People Services - Children & Young People,Furniture and Furnishings
Social Care Activities,Home First - Social Care Activities,Home First,PRISM MEDICAL UK,899482,08/08/2019,3294310,"1,099.00",0.00,N/A,N/A
Early Help & Children�s Safeguarding,Children In Care,Non-Schools,REDACTED - PERSONAL DATA,1114471,08/08/2019,3294411,"1,421.37",0.00,N/A,N/A
Early Help & Children�s Safeguarding,Integrated and Safeguarding Services Locality 2,Non-Schools,REDACTED - PERSONAL DATA,273400,08/08/2019,3295963,700.00,0.00,N/A,N/A
Early Help & Children�s Safeguarding,Integrated and Safeguarding Services Locality 2,Non-Schools,REDACTED - PERSONAL DATA,933496,08/08/2019,3295966,900.00,0.00,N/A,N/A
Early Help & Children�s Safeguarding,Integrated and Safeguarding Services Locality 2,Non-Schools,REDACTED - PERSONAL DATA,791449,08/08/2019,3295259,590.00,0.00,N/A,N/A
Early Help & Children�s Safeguarding,Integrated and Safeguarding Services Locality 2,Non-Schools,REDACTED - PERSONAL DATA,717446,08/08/2019,3295261,"1,050.00",0.00,N/A,N/A
Early Help & Children�s Safeguarding,Integrated and Safeguarding Services Locality 2,Non-Schools,REDACTED - PERSONAL DATA,1101484,08/08/2019,3295967,550.00,0.00,N/A,N/A
Early Help & Children�s Safeguarding,Integrated and Safeguarding Services Locality 2,Non-Schools,REDACTED - PERSONAL DATA,1101484,08/08/2019,3295968,550.00,0.00,N/A,N/A
Early Help & Children�s Safeguarding,Integrated and Safeguarding Services Locality 2,Non-Schools,REDACTED - PERSONAL DATA,3338,08/08/2019,3295271,850.00,0.00,N/A,N/A
Early Help & Children�s Safeguarding,Integrated and Safeguarding Services Locality 2,Non-Schools,REDACTED - PERSONAL DATA,171362,08/08/2019,3292663,"1,116.06",0.00,N/A,N/A
"Environmental Protection, Licensing, Housing",Licensing,"Communities, Environment & Regulatory Services",REDACTED - PERSONAL DATA,686448,08/08/2019,3295258,700.00,0.00,N/A,N/A
Adults Health and Housing,Capital,Capital,REDACTED - PERSONAL DATA,1114468,08/08/2019,3294987,"4,163.14",0.00,N/A,N/A
Integrated Services,Agency Placements,Non-Schools,REGIONAL FOSTER PLACEMENTS,913475,08/08/2019,3294912,"3,297.00",0.00,N/A,N/A
Grounds Maintenance & Cleansing,Grounds Maintenance,"Strategic Partnerships, Planning & Streetpride",RIGBY TAYLOR LTD,76509,08/08/2019,3287782,"1,200.00",0.00,Communities & Place,Farming Fishing Forestry and Wildlife Co
Public Health,Drugs and Alcohol,Public Health,ROSEHILL PHARMACY LTD,187661,08/08/2019,3295351,"1,865.04",0.00,N/A,N/A
Property Design & Maintenance,Building - Repairs & Maintenance,"Regeneration, Property & Housing",S S SYSTEMS LTD,188339,08/08/2019,3295800,515.65,0.00,N/A,N/A
"Occupational Health, Safety, Markets & Bereavement Services",Occupational Health,"Communities, Environment & Regulatory Services",SAFETY FIRST AID GROUP,84709,08/08/2019,3295592,741.88,0.00,N/A,N/A
"Occupational Health, Safety, Markets & Bereavement Services",Occupational Health,"Communities, Environment & Regulatory Services",SAFETY FIRST AID GROUP,84709,08/08/2019,3295593,741.88,0.00,N/A,N/A
"Occupational Health, Safety, Markets & Bereavement Services",Occupational Health,"Communities, Environment & Regulatory Services",SAFETY FIRST AID GROUP,84709,08/08/2019,3295594,981.90,0.00,N/A,N/A
"Occupational Health, Safety, Markets & Bereavement Services",Occupational Health,"Communities, Environment & Regulatory Services",SAFETY FIRST AID GROUP,84709,08/08/2019,3295595,"1,636.50",0.00,N/A,N/A
"Occupational Health, Safety, Markets & Bereavement Services",Occupational Health,"Communities, Environment & Regulatory Services",SAFETY FIRST AID GROUP,84709,08/08/2019,3295596,741.88,0.00,N/A,N/A
"Occupational Health, Safety, Markets & Bereavement Services",Occupational Health,"Communities, Environment & Regulatory Services",SAFETY FIRST AID GROUP,84709,08/08/2019,3295597,741.88,0.00,N/A,N/A
"Occupational Health, Safety, Markets & Bereavement Services",Occupational Health,"Communities, Environment & Regulatory Services",SAFETY FIRST AID GROUP,84709,08/08/2019,3295598,"1,636.50",0.00,N/A,N/A
"Occupational Health, Safety, Markets & Bereavement Services",Occupational Health,"Communities, Environment & Regulatory Services",SAFETY FIRST AID GROUP,84709,08/08/2019,3295599,"1,636.50",0.00,N/A,N/A
Culture & Business Development,Culture & Business Development,"Leisure, Culture and Tourism",ST JOHN AMBULANCE,4552,08/08/2019,3295556,508.30,0.00,N/A,N/A
Neighbourhoods,Capital,Capital,STADIUM TM,873444,08/08/2019,3292288,760.00,0.00,N/A,N/A
Integrated Services,Residential Children's Homes,Non-Schools,STANLEY SECURITY SOLUTIONS LTD,243452,08/08/2019,3295587,944.22,0.00,People Services - Children & Young People,Information Technology Broadcasting and
Social Care Activities,Home First - Social Care Activities,Home First,STANNAH LIFT SERVICES LTD,4627,08/08/2019,3295830,787.00,0.00,People Services - Adults and Health,Medical Equipment and Accessories and Su
Social Care Activities,Home First - Social Care Activities,Home First,STANNAH LIFT SERVICES LTD,4627,08/08/2019,3295831,"1,582.00",0.00,People Services - Adults and Health,Medical Equipment and Accessories and Su
Social Care Activities,Home First - Social Care Activities,Home First,STANNAH LIFT SERVICES LTD,4627,08/08/2019,3295832,"1,250.00",0.00,People Services - Adults and Health,Medical Equipment and Accessories and Su
Public Health,Drugs and Alcohol,Public Health,SUPERDRUG STORES PLC,260408,08/08/2019,3295352,554.04,0.00,N/A,N/A
Integrated Services,Agency Placements,Non-Schools,THE ADOLESCENT AND CHILDRENS TRUST,227387,08/08/2019,3211228,717.80,0.00,People Services - Children & Young People,Healthcare Services
Commissioning - Schools Block,Recoupment - Independent Special School Fees,Schools Block,THE ECCLESBOURNE SCHOOL,5143,08/08/2019,3295210,"16,985.28",0.00,N/A,N/A
Commissioning - Schools Block,Recoupment - Independent Special School Fees,Schools Block,THE ECCLESBOURNE SCHOOL,5143,08/08/2019,3295211,"14,375.13",0.00,N/A,N/A
Integrated Services,Residential Children's Homes,Non-Schools,THE LODDON FOUNDATION LTD,384443,08/08/2019,3295601,"2,055.00",0.00,People Services - Children & Young People,Education and Training Services
Strategic Housing,Housing and Advice,"Regeneration, Property & Housing",THE RIVERSIDE GROUP LTD,90997,08/08/2019,3295314,"101,851.57",0.00,Communities & Place,Healthcare Services
Strategic Housing,Housing and Advice,"Regeneration, Property & Housing",THE RIVERSIDE GROUP LTD,90997,08/08/2019,3295316,"103,058.12",0.00,Communities & Place,Healthcare Services
Early Help & Children�s Safeguarding,Integrated and Safeguarding Services Locality 3/4,Non-Schools,THE RIVERSIDE GROUP LTD,90997,08/08/2019,3205733,664.80,0.00,People Services - Children & Young People,Healthcare Services
Integrated Services,Agency Placements,Non-Schools,UK FOSTERING LTD,941505,08/08/2019,3294910,"2,850.00",0.00,N/A,N/A
Commissioning,Commissioned Providers,Non-Schools,UMBRELLA DERBY AND DERBYSHIRE,915471,08/08/2019,3292725,"11,075.93",0.00,N/A,N/A
Integrated Services,Adoption,Non-Schools,UNIVERSITY HOSPITALS OF DERBY AND BURTON NHS FOUNDATION TRUST,907472,08/08/2019,3249082,"2,200.00",0.00,N/A,N/A
Strategic Housing,Housing and Advice,"Regeneration, Property & Housing",VALUATION OFFICE AGENCY,874443,08/08/2019,3271463,"1,250.00",0.00,N/A,N/A
Adults Health and Housing,Capital,Capital,VINSHIRE PLUMBING and HEATING,5339,08/08/2019,3295991,"2,341.50",0.00,Healthy Housing Assistance,Structures and Building and Construction
Leisure,Leisure,"Leisure, Culture and Tourism",WATER PLUS LIMITED,1034471,08/08/2019,3294841,"3,448.46",0.00,N/A,N/A
Public Health,Drugs and Alcohol,Public Health,WELFARE PHARMACY,194498,08/08/2019,3295356,976.60,0.00,N/A,N/A
Highways & Engineering,Highways Maintenance & Street Lighting,"Strategic Partnerships, Planning & Streetpride",WOLSELEY UK LTD,5259,08/08/2019,3288269,"1,013.77",0.00,Communities & Place,Structures and Building and Construction
Highways & Engineering,Highways Maintenance & Street Lighting,"Strategic Partnerships, Planning & Streetpride",WOLSELEY UK LTD,5259,08/08/2019,3288270,"1,074.50",0.00,Communities & Place,Structures and Building and Construction
Strategic Housing,Housing and Advice,"Regeneration, Property & Housing",WOODLAND PROPERTY SERVICES LTD,1059483,08/08/2019,3295217,560.05,0.00,N/A,N/A
Adults Health and Housing,Capital,Capital,WOODLAND PROPERTY SERVICES LTD,1059483,08/08/2019,3295302,"1,020.00",0.00,N/A,N/A
Early Help & Children�s Safeguarding,Integrated and Safeguarding Services Locality 3/4,Non-Schools,YMCA DERBYSHIRE,113811,08/08/2019,3197966,"1,355.68",0.00,N/A,N/A
Democracy,Democracy,Governance and Assurance,A WALTERS AND SON,133,13/08/2019,3296681,600.00,0.00,Organisation & Governance,Furniture and Furnishings
Sensory Support,Community Support - Sensory Support,Community Support,ACTION DEAFNESS LTD,473411,13/08/2019,3296560,"7,758.90",0.00,N/A,N/A
Non Delegated Schools Budget,Non Delegated School Expenditure,Schools Block,ACTION FOR CHILDREN,30169,13/08/2019,3297569,"2,100.00",0.00,N/A,N/A
Leisure,Leisure,"Leisure, Culture and Tourism",ACTIVE PARTNERS TRUST,771446,13/08/2019,3296599,"25,056.00",0.00,N/A,N/A
Highways & Engineering,Highways Maintenance & Street Lighting,"Strategic Partnerships, Planning & Streetpride",AGGREGATE INDUSTRIES UK LTD,117850,13/08/2019,3295880,878.52,0.00,Communities & Place,Building and Construction Machinery and
Highways & Engineering,Highways Maintenance & Street Lighting,"Strategic Partnerships, Planning & Streetpride",AGGREGATE INDUSTRIES UK LTD,117850,13/08/2019,3295892,"1,424.32",0.00,Communities & Place,Building and Construction Machinery and
Non Delegated Schools Budget,Non Delegated School Expenditure,Schools Block,ALVASTON ACHIEVERS DAY NURSERY LIMITED,640451,13/08/2019,3297566,"1,050.00",0.00,N/A,N/A
Non Delegated Schools Budget,Non Delegated School Expenditure,Schools Block,ALVASTON ACHIEVERS DAY NURSERY LIMITED,640451,13/08/2019,3297567,"1,400.00",0.00,N/A,N/A
Non Delegated Schools Budget,Non Delegated School Expenditure,Schools Block,ALVASTON ACHIEVERS DAY NURSERY LIMITED,640451,13/08/2019,3297568,700.00,0.00,N/A,N/A
Grounds Maintenance & Cleansing,Grounds Maintenance,"Strategic Partnerships, Planning & Streetpride",AMA SUPPLIES LTD,285,13/08/2019,3296600,638.63,0.00,Communities & Place,Apparel and Luggage and Personal Care Pr
Neighbourhoods,Capital,Capital,ANARCHITECTURE LTD,949479,13/08/2019,3297831,"2,280.00",0.00,N/A,N/A
Neighbourhoods,Capital,Capital,ARCADIS UK LTD,1063470,13/08/2019,3295249,"4,740.00",0.00,N/A,N/A
Early Help & Children�s Safeguarding,Children In Care,Non-Schools,ARRIVA MIDLANDS LTD,864451,13/08/2019,3296594,640.00,0.00,N/A,N/A
Leisure,Leisure,"Leisure, Culture and Tourism",ASHBOURNE RD AND DISTRICT ALLOTMENT ASSN LTD,821469,13/08/2019,3296017,802.00,0.00,N/A,N/A
Highways & Engineering,Highways Maintenance & Street Lighting,"Strategic Partnerships, Planning & Streetpride",ASHTEAD PLANT HIRE CO LTD,596,13/08/2019,3297474,525.74,0.00,N/A,N/A
Highways & Engineering,Highways Maintenance & Street Lighting,"Strategic Partnerships, Planning & Streetpride",ASHTEAD PLANT HIRE CO LTD,596,13/08/2019,3297481,549.73,0.00,N/A,N/A
Libraries,Libraries,"Leisure, Culture and Tourism",ASKEWS AND HOLTS LIBRARY SERVICES LTD,876447,13/08/2019,3296614,994.45,0.00,N/A,N/A
Community Safety and Integration,Partnerships,"Communities, Environment & Regulatory Services",ATLAS ENFORCEMENT LTD,904472,13/08/2019,3297511,"1,280.00",0.00,N/A,N/A
Community Safety and Integration,Partnerships,"Communities, Environment & Regulatory Services",ATLAS ENFORCEMENT LTD,904472,13/08/2019,3297515,"1,920.00",0.00,N/A,N/A
Community Safety and Integration,Partnerships,"Communities, Environment & Regulatory Services",ATLAS ENFORCEMENT LTD,904472,13/08/2019,3297606,"2,469.00",0.00,N/A,N/A
General,Stores Road Depot & Fleet Management,"Strategic Partnerships, Planning & Streetpride",BALFOUR BEATTY UTILITIES SOLUTIONS LTD,231431,13/08/2019,3297513,613.00,0.00,N/A,N/A
Integrated Services,Agency Placements,Non-Schools,BANYA FAMILY PLACEMENT AGENCY LTD,175346,13/08/2019,3295864,"2,719.92",0.00,People Services - Children & Young People,Politics and Civic Affairs Services
Integrated Services,Agency Placements,Non-Schools,BANYA FAMILY PLACEMENT AGENCY LTD,175346,13/08/2019,3295865,"2,719.92",0.00,People Services - Children & Young People,Politics and Civic Affairs Services
Integrated Services,Agency Placements,Non-Schools,BANYA FAMILY PLACEMENT AGENCY LTD,175346,13/08/2019,3295869,"2,800.00",0.00,People Services - Children & Young People,Politics and Civic Affairs Services
Integrated Services,Agency Placements,Non-Schools,BANYA FAMILY PLACEMENT AGENCY LTD,175346,13/08/2019,3295872,"2,719.92",0.00,People Services - Children & Young People,Politics and Civic Affairs Services
Integrated Services,Agency Placements,Non-Schools,BANYA FAMILY PLACEMENT AGENCY LTD,175346,13/08/2019,3295873,"2,800.00",0.00,People Services - Children & Young People,Politics and Civic Affairs Services
Integrated Services,Agency Placements,Non-Schools,BANYA FAMILY PLACEMENT AGENCY LTD,175346,13/08/2019,3295875,"3,011.34",0.00,People Services - Children & Young People,Politics and Civic Affairs Services
Integrated Services,Agency Placements,Non-Schools,BANYA FAMILY PLACEMENT AGENCY LTD,175346,13/08/2019,3295876,"3,920.00",0.00,People Services - Children & Young People,Politics and Civic Affairs Services
Economic Regeneration,Economic Regeneration,"Regeneration, Property & Housing",BH PR AND COMMUNICATIONS LTD,483,13/08/2019,3297765,"8,000.00",0.00,Communities & Place,Management and Business Professionals an
Refuse & Waste Management,Waste Disposal,"Strategic Partnerships, Planning & Streetpride",BIFFA WASTE SERVICES LTD,485,13/08/2019,3295895,"27,952.95",0.00,Communities & Place,Environmental Services
Non Delegated Schools Budget,Non Delegated School Expenditure,Schools Block,BISHOP LONSDALE CE AIDED PRIMARY SCHOOL AND NURSERY,11152,13/08/2019,3284140,"2,663.00",0.00,N/A,N/A
Neighbourhoods,Capital,Capital,BROXAP LTD,411,13/08/2019,3290632,558.00,0.00,Network Management - Local Traffic Management,Structures and Building and Construction
Neighbourhoods,Capital,Capital,BROXAP LTD,411,13/08/2019,3297552,"1,080.00",0.00,Network Management - Local Traffic Management,Structures and Building and Construction
Physical Support,Community Support - Physical Support,Community Support,BT PLC,5400,13/08/2019,3296590,"1,025.28",0.00,N/A,N/A
Social Care Activities,Direct Services - Social Care Activities,Direct Services,CHADS CARS LTD,717,13/08/2019,3297715,590.10,0.00,People Services - Adults and Health,Transportation and Storage and Mail Serv
Social Care Activities,Direct Services - Social Care Activities,Direct Services,CHADS CARS LTD,717,13/08/2019,3297715,570.10,0.00,People Services - Adults and Health,Transportation and Storage and Mail Serv
Non Delegated Schools Budget,Non Delegated School Expenditure,Schools Block,CHETWYND PRIMARY ACADEMY,170338,13/08/2019,3188921,"1,091.68",0.00,N/A,N/A
Property Design & Maintenance,Building - Repairs & Maintenance,"Regeneration, Property & Housing",CHUBB FIRE AND SECURITY LTD,218385,13/08/2019,3297371,530.40,0.00,N/A,N/A
Leisure,Leisure,"Leisure, Culture and Tourism",CITY SIGNS,828,13/08/2019,3276926,"3,126.81",0.00,Communities & Place,Printing and Photographic and Audio and
Leisure,Leisure,"Leisure, Culture and Tourism",CITY SIGNS,828,13/08/2019,3276926,"3,752.17",0.00,Communities & Place,Printing and Photographic and Audio and
Leisure,Leisure,"Leisure, Culture and Tourism",CITY SIGNS,828,13/08/2019,3276926,625.36,0.00,Communities & Place,Printing and Photographic and Audio and
Leisure,Leisure,"Leisure, Culture and Tourism",CITY SIGNS,828,13/08/2019,3276926,"3,752.17",0.00,Communities & Place,Printing and Photographic and Audio and
Neighbourhoods,Capital,Capital,CITYFIBRE LTD,473484,13/08/2019,3296603,"3,237.50",0.00,N/A,N/A
Integrated Services,Agency Placements,Non-Schools,COMPASS FOSTERING CENTRAL LTD,194367,13/08/2019,3294888,"3,169.50",0.00,People Services - Children & Young People,Politics and Civic Affairs Services
Early Help & Children�s Safeguarding,Integrated and Safeguarding Services Locality 3/4,Non-Schools,CORAMBAAF ADOPTION AND FOSTERING ACADEMY,1121473,13/08/2019,3297459,"4,659.41",0.00,N/A,N/A
Early Help & Children�s Safeguarding,Integrated and Safeguarding Services Locality 3/4,Non-Schools,CORAMBAAF ADOPTION AND FOSTERING ACADEMY,1121473,13/08/2019,3297459,"4,659.41",0.00,N/A,N/A
Early Help & Children�s Safeguarding,Integrated and Safeguarding Services Locality 3/4,Non-Schools,CORAMBAAF ADOPTION AND FOSTERING ACADEMY,1121473,13/08/2019,3297459,550.01,0.00,N/A,N/A
Non Delegated Schools Budget,Non Delegated School Expenditure,Schools Block,CORBY BUSINESS ACADEMY,433397,13/08/2019,3188916,"1,000.00",0.00,N/A,N/A
Traffic & Transportation,Traffic & Transportation (inc Integrated Pass Transport),"Strategic Partnerships, Planning & Streetpride",CROWN CARS Derby LTD,112999,13/08/2019,3296081,"1,438.20",0.00,N/A,N/A
Traffic & Transportation,Traffic & Transportation (inc Integrated Pass Transport),"Strategic Partnerships, Planning & Streetpride",CROWN CARS Derby LTD,112999,13/08/2019,3296050,"1,314.00",0.00,N/A,N/A
"Information, Computing & Technology","Information, Computing & Technology",Digital Services,DAISY COMMUNICATIONS LTD,86429,13/08/2019,3296620,"17,994.19",0.00,Organisation & Governance,Information Technology Broadcasting and
Culture & Business Development,Culture & Business Development,"Leisure, Culture and Tourism",DANCING DUCK BEER LTD,243409,13/08/2019,3295244,504.17,0.00,N/A,N/A
Strategic Housing,Housing and Advice,"Regeneration, Property & Housing",DERBY CITY COUNCIL - FUND 13,1145,13/08/2019,3296664,"1,286.54",0.00,N/A,N/A
Strategic Housing,Housing and Advice,"Regeneration, Property & Housing",DERBY CITY COUNCIL - FUND 13,1145,13/08/2019,3296668,"1,235.80",0.00,N/A,N/A
Strategic Housing,Housing and Advice,"Regeneration, Property & Housing",DERBY CITY COUNCIL - FUND 13,1145,13/08/2019,3296669,"1,909.07",0.00,N/A,N/A
Strategic Housing,Housing and Advice,"Regeneration, Property & Housing",DERBY CITY COUNCIL - FUND 13,1145,13/08/2019,3296675,727.27,0.00,N/A,N/A
Strategic Housing,Housing and Advice,"Regeneration, Property & Housing",DERBY CITY COUNCIL - FUND 13,1145,13/08/2019,3296678,622.52,0.00,N/A,N/A
Neighbourhoods,Capital,Capital,DERBY RENTALS LTD,1001487,13/08/2019,3295998,"19,223.31",0.00,N/A,N/A
Retained Housing Revenue Account,Retained Housing Revenue Account,"Regeneration, Property & Housing",DERBYSHIRE CARE SERVICES,1207,13/08/2019,3297480,"2,744.87",0.00,N/A,N/A
Retained Housing Revenue Account,Retained Housing Revenue Account,"Regeneration, Property & Housing",DERBYSHIRE CARE SERVICES,1207,13/08/2019,3297483,"2,617.44",0.00,N/A,N/A
Retained Housing Revenue Account,Retained Housing Revenue Account,"Regeneration, Property & Housing",DERBYSHIRE CARE SERVICES,1207,13/08/2019,3297484,"2,671.56",0.00,N/A,N/A
Retained Housing Revenue Account,Retained Housing Revenue Account,"Regeneration, Property & Housing",DERBYSHIRE CARE SERVICES,1207,13/08/2019,3297485,"2,671.56",0.00,N/A,N/A
Public Health,Sexual Health,Public Health,DERBYSHIRE COMMUNITY HEALTH SERVICE NHS TRUST,109973,13/08/2019,3295981,"184,250.00",0.00,People Services - Adults and Health,Education and Training Services
Non Delegated Schools Budget,Non Delegated School Expenditure,Schools Block,DERBYSHIRE COUNTY COUNCIL,9786,13/08/2019,3188931,599.10,0.00,People Services - Children & Young People,Politics and Civic Affairs Services
Traffic & Transportation,Traffic & Transportation (inc Integrated Pass Transport),"Strategic Partnerships, Planning & Streetpride",DERBYSHIRE COUNTY COUNCIL,113015,13/08/2019,3296044,"431,369.35",0.00,N/A,N/A
Traffic & Transportation,Traffic & Transportation (inc Integrated Pass Transport),"Strategic Partnerships, Planning & Streetpride",DERBYSHIRE COUNTY COUNCIL,113015,13/08/2019,3296053,"489,201.18",0.00,N/A,N/A
Traffic & Transportation,Traffic & Transportation (inc Integrated Pass Transport),"Strategic Partnerships, Planning & Streetpride",DERBYSHIRE COUNTY COUNCIL,113015,13/08/2019,3296070,"11,320.52",0.00,N/A,N/A
Traffic & Transportation,Traffic & Transportation (inc Integrated Pass Transport),"Strategic Partnerships, Planning & Streetpride",DERBYSHIRE COUNTY COUNCIL,113015,13/08/2019,3296070,"441,640.11",0.00,N/A,N/A
Traffic & Transportation,Traffic & Transportation (inc Integrated Pass Transport),"Strategic Partnerships, Planning & Streetpride",DERBYSHIRE COUNTY COUNCIL,113015,13/08/2019,3296070,"53,211.56",0.00,N/A,N/A
Refuse & Waste Management,Waste Disposal,"Strategic Partnerships, Planning & Streetpride",DERBYSHIRE COUNTY COUNCIL,1216,13/08/2019,3284599,"25,000.00",0.00,Communities & Place,Education and Training Services
Public Health,CYP,Public Health,DERBYSHIRE HEALTHCARE NHS FOUNDATION TRUST,107468,13/08/2019,3297512,"560,548.42",0.00,People Services - Adults and Health,Healthcare Services
Public Health,Drugs and Alcohol,Public Health,DERBYSHIRE HEALTHCARE NHS FOUNDATION TRUST,107468,13/08/2019,3297512,"560,548.42",0.00,People Services - Adults and Health,Healthcare Services
Highways & Engineering,Engineering,"Strategic Partnerships, Planning & Streetpride",DEVELOP TRAINING LIMITED,14252,13/08/2019,3288006,"1,170.00",0.00,Communities & Place,Education and Training Services
"Occupational Health, Safety, Markets & Bereavement Services",Bereavement Services,"Communities, Environment & Regulatory Services",DR IAN ROYSTON FERRER,8359,13/08/2019,3296493,536.50,0.00,Communities & Place,Healthcare Services
Early Help & Children�s Safeguarding,Integrated and Safeguarding Services Locality 3/4,Non-Schools,EMS SECURITY SERVICES LTD,471442,13/08/2019,3295949,"1,289.50",0.00,People Services - Children & Young People,Defense and Law Enforcement and Security
Property Design & Maintenance,Building - Repairs & Maintenance,"Regeneration, Property & Housing",FAITHFUL AND GOULD LIMITED,945490,13/08/2019,3297374,"8,122.50",0.00,N/A,N/A
Neighbourhoods,Capital,Capital,FAITHFUL AND GOULD LIMITED,945490,13/08/2019,3297362,"7,402.50",0.00,N/A,N/A
Integrated Services,Agency Placements,Non-Schools,FOOTSTEPS TO FUTURES,1117478,13/08/2019,3297571,"31,132.99",0.00,N/A,N/A
Integrated Services,Agency Placements,Non-Schools,FOOTSTEPS TO FUTURES,1117478,13/08/2019,3297533,"29,142.96",0.00,N/A,N/A
Learning Disability Support,Community Support - Learning Disability Support,Community Support,FOSSE HEALTHCARE LTD,448402,13/08/2019,3296178,"1,091.18",0.00,N/A,N/A
Mental Health Support,Community Support - Mental Health Support,Community Support,FOSSE HEALTHCARE LTD,448402,13/08/2019,3296181,876.34,0.00,N/A,N/A
Physical Support,Community Support - Physical Support,Community Support,FOSSE HEALTHCARE LTD,448402,13/08/2019,3296256,"1,008.92",0.00,N/A,N/A
Physical Support,Community Support - Physical Support,Community Support,FOSSE HEALTHCARE LTD,448402,13/08/2019,3296262,536.41,0.00,N/A,N/A
Physical Support,Community Support - Physical Support,Community Support,FOSSE HEALTHCARE LTD,448402,13/08/2019,3296263,688.72,0.00,N/A,N/A
Physical Support,Community Support - Physical Support,Community Support,FOSSE HEALTHCARE LTD,448402,13/08/2019,3296264,856.64,0.00,N/A,N/A
Physical Support,Community Support - Physical Support,Community Support,FOSSE HEALTHCARE LTD,448402,13/08/2019,3296270,989.21,0.00,N/A,N/A
Physical Support,Community Support - Physical Support,Community Support,FOSSE HEALTHCARE LTD,448402,13/08/2019,3296089,620.20,0.00,N/A,N/A
Physical Support,Community Support - Physical Support,Community Support,FOSSE HEALTHCARE LTD,448402,13/08/2019,3296090,797.76,0.00,N/A,N/A
Physical Support,Community Support - Physical Support,Community Support,FOSSE HEALTHCARE LTD,448402,13/08/2019,3296090,797.76,0.00,N/A,N/A
Physical Support,Community Support - Physical Support,Community Support,FOSSE HEALTHCARE LTD,448402,13/08/2019,3296094,941.47,0.00,N/A,N/A
Physical Support,Community Support - Physical Support,Community Support,FOSSE HEALTHCARE LTD,448402,13/08/2019,3296094,941.47,0.00,N/A,N/A
Physical Support,Community Support - Physical Support,Community Support,FOSSE HEALTHCARE LTD,448402,13/08/2019,3296102,827.43,0.00,N/A,N/A
Physical Support,Community Support - Physical Support,Community Support,FOSSE HEALTHCARE LTD,448402,13/08/2019,3296102,853.06,0.00,N/A,N/A
Physical Support,Community Support - Physical Support,Community Support,FOSSE HEALTHCARE LTD,448402,13/08/2019,3296105,797.76,0.00,N/A,N/A
Physical Support,Community Support - Physical Support,Community Support,FOSSE HEALTHCARE LTD,448402,13/08/2019,3296106,820.88,0.00,N/A,N/A
Physical Support,Community Support - Physical Support,Community Support,FOSSE HEALTHCARE LTD,448402,13/08/2019,3296106,820.88,0.00,N/A,N/A
Physical Support,Community Support - Physical Support,Community Support,FOSSE HEALTHCARE LTD,448402,13/08/2019,3296136,"1,158.57",0.00,N/A,N/A
Physical Support,Community Support - Physical Support,Community Support,FOSSE HEALTHCARE LTD,448402,13/08/2019,3296175,"1,097.74",0.00,N/A,N/A
Physical Support,Community Support - Physical Support,Community Support,FOSSE HEALTHCARE LTD,448402,13/08/2019,3296215,705.02,0.00,N/A,N/A
Physical Support,Community Support - Physical Support,Community Support,FOSSE HEALTHCARE LTD,448402,13/08/2019,3296216,872.58,0.00,N/A,N/A
Physical Support,Community Support - Physical Support,Community Support,FOSSE HEALTHCARE LTD,448402,13/08/2019,3296219,974.74,0.00,N/A,N/A
Physical Support,Community Support - Physical Support,Community Support,FOSSE HEALTHCARE LTD,448402,13/08/2019,3296220,"1,012.56",0.00,N/A,N/A
Physical Support,Community Support - Physical Support,Community Support,FOSSE HEALTHCARE LTD,448402,13/08/2019,3296221,"1,051.68",0.00,N/A,N/A
Physical Support,Community Support - Physical Support,Community Support,FOSSE HEALTHCARE LTD,448402,13/08/2019,3296280,811.70,0.00,N/A,N/A
Physical Support,Community Support - Physical Support,Community Support,FOSSE HEALTHCARE LTD,448402,13/08/2019,3296281,529.31,0.00,N/A,N/A
Physical Support,Community Support - Physical Support,Community Support,FOSSE HEALTHCARE LTD,448402,13/08/2019,3296309,563.28,0.00,N/A,N/A
Physical Support,Community Support - Physical Support,Community Support,FOSSE HEALTHCARE LTD,448402,13/08/2019,3296310,639.21,0.00,N/A,N/A
Physical Support,Community Support - Physical Support,Community Support,FOSSE HEALTHCARE LTD,448402,13/08/2019,3296311,747.58,0.00,N/A,N/A
Physical Support,Community Support - Physical Support,Community Support,FOSSE HEALTHCARE LTD,448402,13/08/2019,3296311,747.58,0.00,N/A,N/A
Physical Support,Community Support - Physical Support,Community Support,FOSSE HEALTHCARE LTD,448402,13/08/2019,3296316,937.92,0.00,N/A,N/A
Physical Support,Community Support - Physical Support,Community Support,FOSSE HEALTHCARE LTD,448402,13/08/2019,3296317,957.36,0.00,N/A,N/A
Physical Support,Community Support - Physical Support,Community Support,FOSSE HEALTHCARE LTD,448402,13/08/2019,3296317,957.36,0.00,N/A,N/A
Physical Support,Community Support - Physical Support,Community Support,FOSSE HEALTHCARE LTD,448402,13/08/2019,3296318,"1,021.20",0.00,N/A,N/A
Physical Support,Community Support - Physical Support,Community Support,FOSSE HEALTHCARE LTD,448402,13/08/2019,3296318,"1,032.24",0.00,N/A,N/A
Physical Support,Community Support - Physical Support,Community Support,FOSSE HEALTHCARE LTD,448402,13/08/2019,3296319,"1,032.24",0.00,N/A,N/A
Physical Support,Community Support - Physical Support,Community Support,FOSSE HEALTHCARE LTD,448402,13/08/2019,3296319,"1,032.24",0.00,N/A,N/A
Physical Support,Community Support - Physical Support,Community Support,FOSSE HEALTHCARE LTD,448402,13/08/2019,3296320,"1,199.16",0.00,N/A,N/A
Physical Support,Community Support - Physical Support,Community Support,FOSSE HEALTHCARE LTD,448402,13/08/2019,3296320,"1,199.16",0.00,N/A,N/A
Physical Support,Community Support - Physical Support,Community Support,FOSSE HEALTHCARE LTD,448402,13/08/2019,3296362,554.72,0.00,N/A,N/A
Physical Support,Community Support - Physical Support,Community Support,FOSSE HEALTHCARE LTD,448402,13/08/2019,3296371,"1,008.92",0.00,N/A,N/A
Physical Support,Community Support - Physical Support,Community Support,FOSSE HEALTHCARE LTD,448402,13/08/2019,3296371,"1,008.92",0.00,N/A,N/A
Physical Support,Community Support - Physical Support,Community Support,FOSSE HEALTHCARE LTD,448402,13/08/2019,3296375,544.10,0.00,N/A,N/A
Physical Support,Community Support - Physical Support,Community Support,FOSSE HEALTHCARE LTD,448402,13/08/2019,3296376,659.20,0.00,N/A,N/A
Physical Support,Community Support - Physical Support,Community Support,FOSSE HEALTHCARE LTD,448402,13/08/2019,3296376,659.20,0.00,N/A,N/A
Physical Support,Community Support - Physical Support,Community Support,FOSSE HEALTHCARE LTD,448402,13/08/2019,3296416,502.90,0.00,N/A,N/A
Physical Support,Community Support - Physical Support,Community Support,FOSSE HEALTHCARE LTD,448402,13/08/2019,3296416,"1,000.54",0.00,N/A,N/A
Physical Support,Community Support - Physical Support,Community Support,FOSSE HEALTHCARE LTD,448402,13/08/2019,3296417,532.86,0.00,N/A,N/A
Physical Support,Community Support - Physical Support,Community Support,FOSSE HEALTHCARE LTD,448402,13/08/2019,3296418,605.88,0.00,N/A,N/A
Physical Support,Community Support - Physical Support,Community Support,FOSSE HEALTHCARE LTD,448402,13/08/2019,3296419,699.56,0.00,N/A,N/A
Physical Support,Community Support - Physical Support,Community Support,FOSSE HEALTHCARE LTD,448402,13/08/2019,3296420,837.86,0.00,N/A,N/A
Physical Support,Community Support - Physical Support,Community Support,FOSSE HEALTHCARE LTD,448402,13/08/2019,3296421,901.00,0.00,N/A,N/A
Physical Support,Community Support - Physical Support,Community Support,FOSSE HEALTHCARE LTD,448402,13/08/2019,3296428,"1,103.24",0.00,N/A,N/A
Physical Support,Community Support - Physical Support,Community Support,FOSSE HEALTHCARE LTD,448402,13/08/2019,3296428,"1,103.24",0.00,N/A,N/A
Physical Support,Community Support - Physical Support,Community Support,FOSSE HEALTHCARE LTD,448402,13/08/2019,3296429,"1,162.12",0.00,N/A,N/A
Physical Support,Community Support - Physical Support,Community Support,FOSSE HEALTHCARE LTD,448402,13/08/2019,3296430,"1,078.39",0.00,N/A,N/A
Support with Memory and Cognition,Community Support - Support with Memory and Cognition,Community Support,FOSSE HEALTHCARE LTD,448402,13/08/2019,3296141,659.20,0.00,N/A,N/A
Support with Memory and Cognition,Community Support - Support with Memory and Cognition,Community Support,FOSSE HEALTHCARE LTD,448402,13/08/2019,3296141,659.20,0.00,N/A,N/A
Mental Health Support,Mental Health - Mental Health Support,Mental Health,FOSSE HEALTHCARE LTD,448402,13/08/2019,3296100,552.37,0.00,N/A,N/A
Early Help & Children�s Safeguarding,Children In Care,Non-Schools,FOSTER CARE ASSOCIATES LTD fca,885474,13/08/2019,3295941,750.00,0.00,N/A,N/A
Early Help & Children�s Safeguarding,Children In Care,Non-Schools,FOSTER CARE ASSOCIATES LTD fca,885474,13/08/2019,3295942,750.00,0.00,N/A,N/A
Early Help & Children�s Safeguarding,Children In Care,Non-Schools,FOSTER CARE ASSOCIATES LTD fca,885474,13/08/2019,3295945,850.00,0.00,N/A,N/A
Early Help & Children�s Safeguarding,Children In Care,Non-Schools,FOSTER CARE ASSOCIATES LTD fca,885474,13/08/2019,3295947,700.00,0.00,N/A,N/A
Integrated Services,Agency Placements,Non-Schools,FOSTERING SOLUTIONS LTD,123940,13/08/2019,3262286,"2,595.78",0.00,People Services - Children & Young People,Politics and Civic Affairs Services
Integrated Services,Agency Placements,Non-Schools,FOSTERING SOLUTIONS LTD,123940,13/08/2019,3262287,"2,465.99",0.00,People Services - Children & Young People,Politics and Civic Affairs Services
Grounds Maintenance & Cleansing,Grounds Maintenance,"Strategic Partnerships, Planning & Streetpride",FR SHARROCKS LTD,644448,13/08/2019,3296501,645.76,0.00,N/A,N/A
Public Health,Drugs and Alcohol,Public Health,FRAMEWORK HOUSING ASSOCIATION,956473,13/08/2019,3297781,"1,950.00",0.00,N/A,N/A
Public Health,Drugs and Alcohol,Public Health,FRONTIER MEDICAL GROUP,189372,13/08/2019,3297636,"5,913.00",0.00,People Services - Adults and Health,Healthcare Services
Neighbourhoods,Capital,Capital,GBV JV LTD,879470,13/08/2019,3279870,"259,179.12",0.00,N/A,N/A
Children and Young People,Capital,Capital,GREENHATCH LTD,188000,13/08/2019,3297354,"1,000.00",0.00,N/A,N/A
Neighbourhoods,Capital,Capital,GTM GO TRAFFIC MANAGEMENT,200402,13/08/2019,3296610,"1,190.00",0.00,Asset Management - Highways Maintenance,Defense and Law Enforcement and Security
Neighbourhoods,Capital,Capital,HARROW GREEN GROUP,604452,13/08/2019,3297605,"1,337.62",0.00,N/A,N/A
Neighbourhoods,Capital,Capital,HARROW GREEN GROUP,604452,13/08/2019,3297605,"1,242.00",0.00,N/A,N/A
Facilities Management,Accommodation Buildings,Strategic Services and Organisational Development,HAS TECHNOLOGY LTD,523447,13/08/2019,3284087,"1,040.66",0.00,N/A,N/A
Early Help & Children�s Safeguarding,Integrated Services Locality 3/4,Non-Schools,HILBROKE HOUSE LTD,1002472,13/08/2019,3297553,525.00,0.00,N/A,N/A
Early Help & Children�s Safeguarding,Integrated Services Locality 3/4,Non-Schools,HILBROKE HOUSE LTD,1002472,13/08/2019,3297554,525.00,0.00,N/A,N/A
Early Help & Children�s Safeguarding,Integrated Services Locality 3/4,Non-Schools,HILBROKE HOUSE LTD,1002472,13/08/2019,3297555,525.00,0.00,N/A,N/A
Early Help & Children�s Safeguarding,Integrated Services Locality 3/4,Non-Schools,HILBROKE HOUSE LTD,1002472,13/08/2019,3297556,525.00,0.00,N/A,N/A
Physical Support,Community Support - Physical Support,Community Support,HOME SUPPORT SERVICES,1120473,13/08/2019,3287719,717.50,0.00,N/A,N/A
Physical Support,Community Support - Physical Support,Community Support,HOME SUPPORT SERVICES,1742,13/08/2019,3287724,608.84,0.00,N/A,N/A
Physical Support,Community Support - Physical Support,Community Support,HOME SUPPORT SERVICES,1742,13/08/2019,3287744,760.14,0.00,N/A,N/A
Physical Support,Community Support - Physical Support,Community Support,HOME SUPPORT SERVICES,1742,13/08/2019,3287747,628.56,0.00,N/A,N/A
Physical Support,Community Support - Physical Support,Community Support,HOME SUPPORT SERVICES,1120473,13/08/2019,3287752,"2,206.48",0.00,N/A,N/A
Integrated Services,Agency Placements,Non-Schools,HORIZON CARE AND EDUCATION LTD,221385,13/08/2019,3297542,"16,828.66",0.00,People Services - Children & Young People,Politics and Civic Affairs Services
Strategic Housing,Housing and Advice,"Regeneration, Property & Housing",HORTON AUTOMATICS LTD,1753,13/08/2019,3297863,"11,700.00",0.00,Communities & Place,Electrical systems and Lighting and comp
Learning Disability Support,Community Support - Learning Disability Support,Community Support,HOUSING 21,1116470,13/08/2019,3296209,"1,008.92",0.00,N/A,N/A
Learning Disability Support,Community Support - Learning Disability Support,Community Support,HOUSING 21,1116470,13/08/2019,3296209,"1,185.56",0.00,N/A,N/A
Learning Disability Support,Community Support - Learning Disability Support,Community Support,HOUSING 21,1116470,13/08/2019,3296306,989.48,0.00,N/A,N/A
Mental Health Support,Community Support - Mental Health Support,Community Support,HOUSING 21,1116470,13/08/2019,3296210,947.56,0.00,N/A,N/A
Physical Support,Community Support - Physical Support,Community Support,HOUSING 21,1116470,13/08/2019,3296251,602.68,0.00,N/A,N/A
Physical Support,Community Support - Physical Support,Community Support,HOUSING 21,1116470,13/08/2019,3296252,856.60,0.00,N/A,N/A
Physical Support,Community Support - Physical Support,Community Support,HOUSING 21,1116470,13/08/2019,3296253,883.64,0.00,N/A,N/A
Physical Support,Community Support - Physical Support,Community Support,HOUSING 21,1116470,13/08/2019,3296253,883.64,0.00,N/A,N/A
Physical Support,Community Support - Physical Support,Community Support,HOUSING 21,1116470,13/08/2019,3296121,766.77,0.00,N/A,N/A
Physical Support,Community Support - Physical Support,Community Support,HOUSING 21,1116470,13/08/2019,3296126,687.40,0.00,N/A,N/A
Physical Support,Community Support - Physical Support,Community Support,HOUSING 21,1116470,13/08/2019,3296128,"1,022.36",0.00,N/A,N/A
Physical Support,Community Support - Physical Support,Community Support,HOUSING 21,1116470,13/08/2019,3296161,927.32,0.00,N/A,N/A
Physical Support,Community Support - Physical Support,Community Support,HOUSING 21,1116470,13/08/2019,3296162,927.32,0.00,N/A,N/A
Physical Support,Community Support - Physical Support,Community Support,HOUSING 21,1116470,13/08/2019,3296164,"1,155.52",0.00,N/A,N/A
Physical Support,Community Support - Physical Support,Community Support,HOUSING 21,1116470,13/08/2019,3296164,"1,155.52",0.00,N/A,N/A
Physical Support,Community Support - Physical Support,Community Support,HOUSING 21,1116470,13/08/2019,3296166,856.60,0.00,N/A,N/A
Physical Support,Community Support - Physical Support,Community Support,HOUSING 21,1116470,13/08/2019,3296167,856.60,0.00,N/A,N/A
Physical Support,Community Support - Physical Support,Community Support,HOUSING 21,1116470,13/08/2019,3296168,"1,152.44",0.00,N/A,N/A
Physical Support,Community Support - Physical Support,Community Support,HOUSING 21,1116470,13/08/2019,3296168,"1,152.44",0.00,N/A,N/A
Physical Support,Community Support - Physical Support,Community Support,HOUSING 21,1116470,13/08/2019,3296170,953.48,0.00,N/A,N/A
Physical Support,Community Support - Physical Support,Community Support,HOUSING 21,1116470,13/08/2019,3296296,927.32,0.00,N/A,N/A
Physical Support,Community Support - Physical Support,Community Support,HOUSING 21,1116470,13/08/2019,3296301,762.28,0.00,N/A,N/A
Physical Support,Community Support - Physical Support,Community Support,HOUSING 21,1116470,13/08/2019,3296302,"1,232.13",0.00,N/A,N/A
Physical Support,Community Support - Physical Support,Community Support,HOUSING 21,1116470,13/08/2019,3296302,"1,364.61",0.00,N/A,N/A
Physical Support,Community Support - Physical Support,Community Support,HOUSING 21,1116470,13/08/2019,3296304,776.12,0.00,N/A,N/A
Physical Support,Community Support - Physical Support,Community Support,HOUSING 21,1116470,13/08/2019,3296305,937.92,0.00,N/A,N/A
Physical Support,Community Support - Physical Support,Community Support,HOUSING 21,1116470,13/08/2019,3296343,927.32,0.00,N/A,N/A
Physical Support,Community Support - Physical Support,Community Support,HOUSING 21,1116470,13/08/2019,3296344,577.76,0.00,N/A,N/A
Physical Support,Community Support - Physical Support,Community Support,HOUSING 21,1116470,13/08/2019,3296344,577.76,0.00,N/A,N/A
Physical Support,Community Support - Physical Support,Community Support,HOUSING 21,1116470,13/08/2019,3296344,577.76,0.00,N/A,N/A
Physical Support,Community Support - Physical Support,Community Support,HOUSING 21,1116470,13/08/2019,3296353,762.28,0.00,N/A,N/A
Physical Support,Community Support - Physical Support,Community Support,HOUSING 21,1116470,13/08/2019,3296354,"1,270.08",0.00,N/A,N/A
Physical Support,Community Support - Physical Support,Community Support,HOUSING 21,1116470,13/08/2019,3296404,762.28,0.00,N/A,N/A
Physical Support,Community Support - Physical Support,Community Support,HOUSING 21,1116470,13/08/2019,3296405,953.48,0.00,N/A,N/A
Physical Support,Community Support - Physical Support,Community Support,HOUSING 21,1116470,13/08/2019,3296406,687.44,0.00,N/A,N/A
Physical Support,Community Support - Physical Support,Community Support,HOUSING 21,1116470,13/08/2019,3296407,869.60,0.00,N/A,N/A
Physical Support,Community Support - Physical Support,Community Support,HOUSING 21,1116470,13/08/2019,3296408,932.04,0.00,N/A,N/A
Physical Support,Community Support - Physical Support,Community Support,HOUSING 21,1116470,13/08/2019,3296409,762.28,0.00,N/A,N/A
Physical Support,Community Support - Physical Support,Community Support,HOUSING 21,1116470,13/08/2019,3296450,766.77,0.00,N/A,N/A
Physical Support,Community Support - Physical Support,Community Support,HOUSING 21,1116470,13/08/2019,3296451,"1,022.36",0.00,N/A,N/A
Physical Support,Community Support - Physical Support,Community Support,HOUSING 21,1116470,13/08/2019,3296453,912.04,0.00,N/A,N/A
Support with Memory and Cognition,Community Support - Support with Memory and Cognition,Community Support,HOUSING 21,1116470,13/08/2019,3296255,771.88,0.00,N/A,N/A
Support with Memory and Cognition,Community Support - Support with Memory and Cognition,Community Support,HOUSING 21,1116470,13/08/2019,3296351,668.48,0.00,N/A,N/A
Mental Health Support,Mental Health - Mental Health Support,Mental Health,HOUSING 21,1116470,13/08/2019,3296355,"1,033.51",0.00,N/A,N/A
Mental Health Support,Community Support - Mental Health Support,Community Support,I CARE GB LTD,471255,13/08/2019,3296118,"1,316.80",0.00,N/A,N/A
Mental Health Support,Community Support - Mental Health Support,Community Support,I CARE GB LTD,471255,13/08/2019,3296118,"1,316.80",0.00,N/A,N/A
Physical Support,Community Support - Physical Support,Community Support,I CARE GB LTD,471255,13/08/2019,3296191,"1,199.16",0.00,N/A,N/A
Physical Support,Community Support - Physical Support,Community Support,I CARE GB LTD,471255,13/08/2019,3296198,638.40,0.00,N/A,N/A
Physical Support,Community Support - Physical Support,Community Support,I CARE GB LTD,471255,13/08/2019,3296199,762.28,0.00,N/A,N/A
Physical Support,Community Support - Physical Support,Community Support,I CARE GB LTD,471255,13/08/2019,3296200,"1,178.08",0.00,N/A,N/A
Physical Support,Community Support - Physical Support,Community Support,I CARE GB LTD,471255,13/08/2019,3296240,543.79,0.00,N/A,N/A
Physical Support,Community Support - Physical Support,Community Support,I CARE GB LTD,471255,13/08/2019,3296240,543.79,0.00,N/A,N/A
Physical Support,Community Support - Physical Support,Community Support,I CARE GB LTD,471255,13/08/2019,3296291,666.48,0.00,N/A,N/A
Physical Support,Community Support - Physical Support,Community Support,I CARE GB LTD,471255,13/08/2019,3296292,713.28,0.00,N/A,N/A
Physical Support,Community Support - Physical Support,Community Support,I CARE GB LTD,471255,13/08/2019,3296337,706.52,0.00,N/A,N/A
Physical Support,Community Support - Physical Support,Community Support,I CARE GB LTD,471255,13/08/2019,3296338,713.28,0.00,N/A,N/A
Physical Support,Community Support - Physical Support,Community Support,I CARE GB LTD,471255,13/08/2019,3296338,"1,032.24",0.00,N/A,N/A
Physical Support,Community Support - Physical Support,Community Support,I CARE GB LTD,471255,13/08/2019,3296339,925.86,0.00,N/A,N/A
Physical Support,Community Support - Physical Support,Community Support,I CARE GB LTD,471255,13/08/2019,3296340,665.76,0.00,N/A,N/A
Physical Support,Community Support - Physical Support,Community Support,I CARE GB LTD,471255,13/08/2019,3296341,612.56,0.00,N/A,N/A
Physical Support,Community Support - Physical Support,Community Support,I CARE GB LTD,471255,13/08/2019,3296392,587.82,0.00,N/A,N/A
Physical Support,Community Support - Physical Support,Community Support,I CARE GB LTD,471255,13/08/2019,3296393,713.28,0.00,N/A,N/A
Physical Support,Community Support - Physical Support,Community Support,I CARE GB LTD,471255,13/08/2019,3296394,958.46,0.00,N/A,N/A
Physical Support,Community Support - Physical Support,Community Support,I CARE GB LTD,471255,13/08/2019,3296446,522.96,0.00,N/A,N/A
Physical Support,Community Support - Physical Support,Community Support,I CARE GB LTD,471255,13/08/2019,3296447,821.17,0.00,N/A,N/A
Physical Support,Community Support - Physical Support,Community Support,I CARE GB LTD,471255,13/08/2019,3296448,784.28,0.00,N/A,N/A
Physical Support,Community Support - Physical Support,Community Support,I CARE GB LTD,471255,13/08/2019,3296448,"1,162.12",0.00,N/A,N/A
Support with Memory and Cognition,Community Support - Support with Memory and Cognition,Community Support,I CARE GB LTD,471255,13/08/2019,3296395,638.40,0.00,N/A,N/A
Mental Health Support,Mental Health - Mental Health Support,Mental Health,I CARE GB LTD,471255,13/08/2019,3296345,662.16,0.00,N/A,N/A
Traffic & Transportation,Traffic & Transportation (inc Integrated Pass Transport),"Strategic Partnerships, Planning & Streetpride",INITIAL WASHROOM HYGIENE,892475,13/08/2019,3288284,655.60,0.00,N/A,N/A
Traffic & Transportation,Traffic & Transportation (inc Integrated Pass Transport),"Strategic Partnerships, Planning & Streetpride",INITIAL WASHROOM HYGIENE,892475,13/08/2019,3288284,"2,417.60",0.00,N/A,N/A
Integrated Services,Agency Placements,Non-Schools,ISP CENTRAL OFFICE,502422,13/08/2019,3294893,"7,281.30",0.00,N/A,N/A
Early Help & Children�s Safeguarding,Integrated and Safeguarding Services Locality 3/4,Non-Schools,ISPOKE LANGUAGES LTD,689447,13/08/2019,3294940,"1,150.00",0.00,N/A,N/A
Early Help & Children�s Safeguarding,Integrated and Safeguarding Services Locality 3/4,Non-Schools,ISPOKE LANGUAGES LTD,689447,13/08/2019,3294940,"1,150.00",0.00,N/A,N/A
Traffic & Transportation,Parking Services,"Strategic Partnerships, Planning & Streetpride",KINGS ARMOURED SECURITY SERVICES,2618,13/08/2019,3296573,"6,355.41",0.00,Communities & Place,National Defense and Public Order and Se
Facilities Management,Cleaning & Caretaking,Strategic Services and Organisational Development,KIRK CONTRACTS LTD,2621,13/08/2019,3279713,"2,395.28",0.00,Organisation & Governance,Building and Construction and Maintenanc
Business Support,Business Support,Strategic Services and Organisational Development,KONICA MINOLTA BUSINESS SOLUTIONS (UK) LIMITED,902473,13/08/2019,3296551,"6,046.33",0.00,N/A,N/A
"Occupational Health, Safety, Markets & Bereavement Services",Bereavement Services,"Communities, Environment & Regulatory Services",LACEYS LOCUMS LTD,576452,13/08/2019,3296558,888.00,0.00,N/A,N/A
Non Delegated Schools Budget,Non Delegated School Expenditure,Schools Block,LANDAU FORTE COLLEGE,1123478,13/08/2019,3210990,"3,095.88",0.00,N/A,N/A
Early Help & Children�s Safeguarding,Integrated and Safeguarding Services Locality 2,Non-Schools,LEXTOX DRUG AND ALCOHOL TESTING,188563,13/08/2019,3297466,734.00,0.00,People Services - Children & Young People,Healthcare Services
Property Design & Maintenance,Building - Repairs & Maintenance,"Regeneration, Property & Housing",LINCLIFF MANAGEMENT SERVICES LTD,869461,13/08/2019,3297381,500.25,0.00,N/A,N/A
Learning & Inclusion,Adult Learning - SFA,Non-Schools,LINK ICT SERVICES LTD,154331,13/08/2019,3297508,"1,021.01",0.00,N/A,N/A
Strategic Housing,Housing and Advice,"Regeneration, Property & Housing",LOCAL PAD,127322,13/08/2019,3297668,"2,000.00",0.00,Communities & Place,Information Technology Broadcasting and
Grounds Maintenance & Cleansing,Grounds Maintenance,"Strategic Partnerships, Planning & Streetpride",LODGE TYRES CO LTD,186856,13/08/2019,3297514,"1,158.80",0.00,Communities & Place,Commercial and Military and Private Vehi
Democracy,Democracy,Governance and Assurance,MAIR PERKINS LTD,997477,13/08/2019,3283214,"1,250.00",0.00,N/A,N/A
Property Design & Maintenance,Building - Repairs & Maintenance,"Regeneration, Property & Housing",MANOR ELECTRICAL SERVICES,188116,13/08/2019,3297355,939.00,0.00,N/A,N/A
Property Design & Maintenance,Building - Repairs & Maintenance,"Regeneration, Property & Housing",MANOR ELECTRICAL SERVICES,188116,13/08/2019,3297366,620.40,0.00,N/A,N/A
Property Design & Maintenance,Building - Repairs & Maintenance,"Regeneration, Property & Housing",MANOR ELECTRICAL SERVICES,188116,13/08/2019,3297378,"1,911.60",0.00,N/A,N/A
Learning Disability Support,Community Support - Learning Disability Support,Community Support,MEARS CARE LIMITED,1052472,13/08/2019,3296449,788.61,0.00,N/A,N/A
Learning Disability Support,Community Support - Learning Disability Support,Community Support,MEARS CARE LIMITED,1052472,13/08/2019,3296449,791.10,0.00,N/A,N/A
Mental Health Support,Community Support - Mental Health Support,Community Support,MEARS CARE LIMITED,1052472,13/08/2019,3296397,771.36,0.00,N/A,N/A
Physical Support,Community Support - Physical Support,Community Support,MEARS CARE LIMITED,1052472,13/08/2019,3296109,711.14,0.00,N/A,N/A
Physical Support,Community Support - Physical Support,Community Support,MEARS CARE LIMITED,1052472,13/08/2019,3296110,856.89,0.00,N/A,N/A
Physical Support,Community Support - Physical Support,Community Support,MEARS CARE LIMITED,1052472,13/08/2019,3296111,909.46,0.00,N/A,N/A
Physical Support,Community Support - Physical Support,Community Support,MEARS CARE LIMITED,1052472,13/08/2019,3296111,960.16,0.00,N/A,N/A
Physical Support,Community Support - Physical Support,Community Support,MEARS CARE LIMITED,1052472,13/08/2019,3296116,797.42,0.00,N/A,N/A
Physical Support,Community Support - Physical Support,Community Support,MEARS CARE LIMITED,1052472,13/08/2019,3296147,554.82,0.00,N/A,N/A
Physical Support,Community Support - Physical Support,Community Support,MEARS CARE LIMITED,1052472,13/08/2019,3296148,689.86,0.00,N/A,N/A
Physical Support,Community Support - Physical Support,Community Support,MEARS CARE LIMITED,1052472,13/08/2019,3296149,846.64,0.00,N/A,N/A
Physical Support,Community Support - Physical Support,Community Support,MEARS CARE LIMITED,1052472,13/08/2019,3296149,852.68,0.00,N/A,N/A
Physical Support,Community Support - Physical Support,Community Support,MEARS CARE LIMITED,1052472,13/08/2019,3296150,"1,163.94",0.00,N/A,N/A
Physical Support,Community Support - Physical Support,Community Support,MEARS CARE LIMITED,1052472,13/08/2019,3296150,"1,185.41",0.00,N/A,N/A
Physical Support,Community Support - Physical Support,Community Support,MEARS CARE LIMITED,1052472,13/08/2019,3296163,968.79,0.00,N/A,N/A
Physical Support,Community Support - Physical Support,Community Support,MEARS CARE LIMITED,1052472,13/08/2019,3296163,972.23,0.00,N/A,N/A
Physical Support,Community Support - Physical Support,Community Support,MEARS CARE LIMITED,1052472,13/08/2019,3296188,673.48,0.00,N/A,N/A
Physical Support,Community Support - Physical Support,Community Support,MEARS CARE LIMITED,1052472,13/08/2019,3296189,763.38,0.00,N/A,N/A
Physical Support,Community Support - Physical Support,Community Support,MEARS CARE LIMITED,1052472,13/08/2019,3296189,763.38,0.00,N/A,N/A
Physical Support,Community Support - Physical Support,Community Support,MEARS CARE LIMITED,1052472,13/08/2019,3296190,776.56,0.00,N/A,N/A
Physical Support,Community Support - Physical Support,Community Support,MEARS CARE LIMITED,1052472,13/08/2019,3296190,783.54,0.00,N/A,N/A
Physical Support,Community Support - Physical Support,Community Support,MEARS CARE LIMITED,1052472,13/08/2019,3296195,522.06,0.00,N/A,N/A
Physical Support,Community Support - Physical Support,Community Support,MEARS CARE LIMITED,1052472,13/08/2019,3296196,541.67,0.00,N/A,N/A
Physical Support,Community Support - Physical Support,Community Support,MEARS CARE LIMITED,1052472,13/08/2019,3296205,588.84,0.00,N/A,N/A
Physical Support,Community Support - Physical Support,Community Support,MEARS CARE LIMITED,1052472,13/08/2019,3296205,602.68,0.00,N/A,N/A
Physical Support,Community Support - Physical Support,Community Support,MEARS CARE LIMITED,1052472,13/08/2019,3296238,578.58,0.00,N/A,N/A
Physical Support,Community Support - Physical Support,Community Support,MEARS CARE LIMITED,1052472,13/08/2019,3296239,581.49,0.00,N/A,N/A
Physical Support,Community Support - Physical Support,Community Support,MEARS CARE LIMITED,1052472,13/08/2019,3296245,574.99,0.00,N/A,N/A
Physical Support,Community Support - Physical Support,Community Support,MEARS CARE LIMITED,1052472,13/08/2019,3296246,948.39,0.00,N/A,N/A
Physical Support,Community Support - Physical Support,Community Support,MEARS CARE LIMITED,1052472,13/08/2019,3296246,"1,026.48",0.00,N/A,N/A
Physical Support,Community Support - Physical Support,Community Support,MEARS CARE LIMITED,1052472,13/08/2019,3296286,877.63,0.00,N/A,N/A
Physical Support,Community Support - Physical Support,Community Support,MEARS CARE LIMITED,1052472,13/08/2019,3296297,509.99,0.00,N/A,N/A
Physical Support,Community Support - Physical Support,Community Support,MEARS CARE LIMITED,1052472,13/08/2019,3296298,568.07,0.00,N/A,N/A
Physical Support,Community Support - Physical Support,Community Support,MEARS CARE LIMITED,1052472,13/08/2019,3296299,604.59,0.00,N/A,N/A
Physical Support,Community Support - Physical Support,Community Support,MEARS CARE LIMITED,1052472,13/08/2019,3296329,705.92,0.00,N/A,N/A
Physical Support,Community Support - Physical Support,Community Support,MEARS CARE LIMITED,1052472,13/08/2019,3296330,914.71,0.00,N/A,N/A
Physical Support,Community Support - Physical Support,Community Support,MEARS CARE LIMITED,1052472,13/08/2019,3296330,959.61,0.00,N/A,N/A
